{"text_format":"1","workbook":"xlsx","n_sheets":40,"sheets":["福祉","様式","旅客の範囲","北旭市福第1号","北旭市福第5号","北旭市福第6号","北旭市福第9号","北旭市福第10号","北旭市福第11号","北旭市福第12号","北旭市福第13号","北旭福第2号","北旭福第5号","北旭福第6号","北旭福第7号","北旭福第10号","北旭福第11号","北旭福第12号","北旭福第13号","北旭福第14号","北旭福第16号","北旭福第17号","北旭福第19号","北旭福第20号","北旭福第21号","北旭福第22号","北旭福第23号","北旭福第24号","北旭福第26号","北旭福第27号","北旭福第28号","北旭福第29号","北旭福第32号","北旭福第36号","北旭福第38号","北旭福第40号","北旭福第41号","北旭福第42号","北旭福第43号","北旭福第44号"],"not_rendered":{"charts":0,"images":0,"macros":0,"external_links":0,"defined_names":40,"comments":38,"pivot_tables":0},"unopened":[],"bounds":{"document_bytes":16777216,"sheet_cells":100000,"rows_first":2000,"rows_last":500,"rows_between":2000,"halvings":0,"cell_chars":16384,"cell_head_chars":4096},"cells_cut":0,"cells_raw":0,"read":"whole","date_system":"1900"}

{"sheet":"福祉","index":0,"n_rows":137,"n_cols":73,"rows_kept":137,"cut":false,"hidden":false,"merged":[[2,40,2,41],[2,42,2,43],[2,45,2,46],[1,60,1,72],[2,60,2,61],[2,62,2,63],[2,64,2,65],[2,66,2,67],[2,68,2,69],[2,71,2,72],[2,32,2,33],[2,34,2,35],[2,36,2,37],[2,38,2,39],[2,21,2,22],[2,23,2,24],[2,25,2,26],[2,27,2,28],[2,29,2,30],[1,20,2,20],[1,19,2,19],[1,18,2,18],[1,17,2,17],[1,15,1,16],[1,4,2,4],[1,3,2,3],[1,2,2,2],[1,13,1,14],[1,11,1,12],[1,9,1,10],[1,8,2,8],[1,7,2,7],[1,75,2,75],[1,74,2,74],[1,73,2,73],[1,1,2,1],[1,0,2,0],[1,21,1,33],[1,34,1,46],[1,47,1,59],[2,47,2,48],[2,49,2,50],[2,51,2,52],[2,53,2,54],[2,55,2,56],[2,58,2,59],[1,6,2,6],[1,5,2,5]]}
["u"]
["№","登録番号","登録年月日","更新登録年月日","有効期間","名称","代表者の氏名","郵便番号","住所","事務所１",null,"事務所２",null,"事務所３",null,"事務所４",null,"路線又は運送の区域","運送する旅客の範囲","事業者協力型有償運送の事業者名称","事業者協力型有償運送の事業者住所","事務所１",null,null,null,null,null,null,null,null,null,null,null,null,"事務所２",null,null,null,null,null,null,null,null,null,null,null,null,"事務所３",null,null,null,null,null,null,null,null,null,null,null,null,"事務所４"]
[null,null,null,null,null,null,null,null,null,"事務所の名称","事務所の位置","事務所の名称","事務所の位置","事務所の名称","事務所の位置","事務所の名称","事務所の位置",null,null,null,null,"寝台車\n(軽自動車)　　　　　　　　",null,"車いす車\n(軽自動車)",null,"兼用車\n(軽自動車)",null,"回転ｼｰﾄ車\n(軽自動車)",null,"セダン等\n(軽自動車)",null,"バス","計",null,"寝台車\n(軽自動車)　　　　　　　　",null,"車いす車\n(軽自動車)",null,"兼用車\n(軽自動車)",null,"回転ｼｰﾄ車\n(軽自動車)",null,"セダン等\n(軽自動車)",null,"バス","計",null,"寝台車\n(軽自動車)　　　　　　　　",null,"車いす車\n(軽自動車)",null,"兼用車\n(軽自動車)",null,"回転ｼｰﾄ車\n(軽自動車)",null,"セダン等\n(軽自動車)",null,"バス","計",null,"寝台車\n(軽自動車)　　　　　　　　",null,"車いす車\n(軽自動車)",null,"兼用車\n(軽自動車)",null,"回転ｼｰﾄ車\n(軽自動車)",null,"セダン等\n(軽自動車)",null,"バス","計"]
[1,"北旭市福第1号","2006-10-01","2023-10-03","2026-09-30","上富良野町","町長　斉藤　繁",null,"空知郡上富良野町大町２丁目２番１１号","上富良野町ラベンダーハイツ","北海道空知郡上富良野町西１線北２４号",null,null,null,null,null,null,"上富良野町","イ",null,null,null,null,2,-1,null,null,null,null,null,null,null,{"$f":"SUM(V4,X4,Z4,AB4,AD4,AF4)","v":2},{"$f":"SUM(W4,Y4,AA4,AC4,AE4)","v":-1},null,null,null,null,null,null,null,null,null,null,null,{"$f":"SUM(AI4,AK4,AM4,AO4,AQ4,AS4)","v":0},{"$f":"SUM(AJ4,AL4,AN4,AP4,AR4)","v":0},null,null,null,null,null,null,null,null,null,null,null,{"$f":"SUM(AV4,AX4,AZ4,BB4,BD4,BF4)","v":0},{"$f":"SUM(AW4,AY4,BA4,BC4,BE4)","v":0},null,null,null,null,null,null,null,null,null,null,null,{"$f":"SUM(BI4,BK4,BM4,BO4,BQ4,BS4)","v":0},{"$f":"SUM(BJ4,BL4,BN4,BP4,BR4)","v":0}]
[2,"北旭市福第5号","2006-10-01","2023-10-11","2026-09-30","中川町","町長　石垣　寿聰",null,"中川郡中川町字中川３３７番地","社会福祉法人中川町社会福祉協議会","北海道中川郡中川町字中川337番地",null,null,null,null,null,null,"中川町","イロニ",null,null,null,null,1,null,null,null,null,null,1,null,null,2,0,null,null,null,null,null,null,null,null,null,null,null,0,0,null,null,null,null,null,null,null,null,null,null,null,0,0,null,null,null,null,null,null,null,null,null,null,null,{"$f":"SUM(BI5,BK5,BM5,BO5,BQ5,BS5)","v":0},{"$f":"SUM(BJ5,BL5,BN5,BP5,BR5)","v":0}]
[3,"北旭市福第6号","2006-10-01","2024-03-28","2026-09-30","利尻富士町","町長　　田村　祥三",null,"利尻郡利尻富士町鴛泊字富士野６番地","利尻富士町","北海道利尻郡利尻富士町鴛泊字富士野6番地",null,null,null,null,null,null,"利尻富士町","イロハニホ",null,null,null,null,null,null,1,null,null,null,2,-1,null,3,-1,null,null,null,null,null,null,null,null,null,null,null,0,0,null,null,null,null,null,null,null,null,null,null,null,0,0,null,null,null,null,null,null,null,null,null,null,null,{"$f":"SUM(BI6,BK6,BM6,BO6,BQ6,BS6)","v":0},0]
[4,"北旭市福第9号","2006-10-01","2023-10-13","2026-09-30","鷹栖町","町長　谷　寿男",null,"上川郡鷹栖町南１条３丁目５番１号","社会福祉法人さつき会","上川郡鷹栖町南１条3丁目2番7号",null,null,null,null,null,null,"鷹栖町","二",null,null,null,null,null,null,1,null,null,null,null,null,null,1,0,null,null,null,null,null,null,null,null,null,null,null,0,0,null,null,null,null,null,null,null,null,null,null,null,0,0,null,null,null,null,null,null,null,null,null,null,null,0,0]
[5,"北旭市福第10号","2006-10-01","2023-10-16","2026-09-30","東川町","町長　菊地　伸",null,"上川郡東川町東町１丁目１６番１号","東川町役場","上川郡東川町東町1丁目16番1号",null,null,null,null,null,null,"東川町","イロハニホヘト",null,null,null,null,null,null,1,null,null,null,null,null,null,1,0,null,null,null,null,null,null,null,null,null,null,null,0,0,null,null,null,null,null,null,null,null,null,null,null,0,0,null,null,null,null,null,null,null,null,null,null,null,0,0]
[6,"北旭市福第11号","2006-10-01","2023-09-26","2026-09-30","剣淵町","町長　早坂　純夫",null,"上川郡剣淵町仲町３７番１号","国立健康保険剣淵町立診療所","上川郡剣淵町仲町28番1号",null,null,null,null,null,null,"剣淵町","イニホト",null,null,null,null,null,null,null,null,1,null,null,null,null,1,0,null,null,null,null,null,null,null,null,null,null,null,0,0,null,null,null,null,null,null,null,null,null,null,null,0,0,null,null,null,null,null,null,null,null,null,null,null,0,0]
[7,"北旭市福第12号","2006-10-01","2023-08-09","2026-09-30","猿払村","村長　　伊藤　浩一",null,"宗谷郡猿払村鬼志別西町１７２番地１","猿払村運営有償運送事務所","宗谷郡猿払村鬼志別南町243番地",null,null,null,null,null,null,"猿払村","イロハニホヘト",null,null,null,null,3,null,null,null,null,null,2,null,null,5,0,null,null,null,null,null,null,null,null,null,null,null,0,0,null,null,null,null,null,null,null,null,null,null,null,0,0,null,null,null,null,null,null,null,null,null,null,null,0,0]
[8,"北旭市福第13号","2006-10-01","2023-09-29","2026-09-30","上川町","佐藤　芳治",null,"上川郡上川町南町１８０番地","上川町役場","上川町南町１８０番地",null,null,null,null,null,null,"上川町","ト",null,null,null,null,null,null,null,null,null,null,1,null,null,1,0,null,null,null,null,null,null,null,null,null,null,null,0,0,null,null,null,null,null,null,null,null,null,null,null,0,0,null,null,null,null,null,null,null,null,null,null,null,0,0]
[9,"北旭福第2号","2006-10-01","2022-04-19","2025-04-30","社会福祉法人　南富良野社会福祉協議会","会長　上林　康政",null,"空知郡南富良野町字幾寅708番地","社会福祉法人南富良野町社会福祉協議会","空知郡南富良野町字幾寅708番地",null,null,null,null,null,null,"南富良野町","イニホヘト",null,null,null,null,1,null,1,null,null,null,2,-1,null,4,-1,null,null,null,null,null,null,null,null,null,null,null,0,0,null,null,null,null,null,null,null,null,null,null,null,0,0,null,null,null,null,null,null,null,null,null,null,null,{"$f":"SUM(BI12,BK12,BM12,BO12,BQ12,BS12)","v":0},0]
[11,"北旭福第5号","2006-10-01","2023-03-28","2026-03-31","特定非営利活動法人　ゆい・ゆい","理事長　野々村　雅人",null,"旭川市神楽岡8条4丁目3番4号","特定非営利活動法人　ゆい・ゆい","旭川市神楽岡8条4丁目3番4号","ゆい・ゆいさんぽ","旭川市東光１条４丁目５番３号",null,null,null,null,"旭川市","イハト",null,null,null,null,null,null,null,null,null,null,2,-1,null,2,-1,null,null,null,null,null,null,1,null,1,null,null,2,0,null,null,null,null,null,null,null,null,null,null,null,0,0,null,null,null,null,null,null,null,null,null,null,null,{"$f":"SUM(BI13,BK13,BM13,BO13,BQ13,BS13)","v":0},{"$f":"SUM(BJ13,BL13,BN13,BP13,BR13)","v":0}]
[12,"北旭福第6号","2007-08-06","2021-09-17","2024-08-31","社会福祉法人　東川町社会福祉協議会","会長　永江　竜心",null,"上川郡東川町東町1丁目7番14号","東川町社会福祉協議会","上川郡東川町東町1丁目7番14号",null,null,null,null,null,null,"東川町","イロ　ニホ　ト",null,null,null,null,2,-2,null,null,1,null,5,-5,null,8,-7,null,null,null,null,null,null,null,null,null,null,null,0,0,null,null,null,null,null,null,null,null,null,null,null,0,0,null,null,null,null,null,null,null,null,null,null,null,{"$f":"SUM(BI14,BK14,BM14,BO14,BQ14,BS14)","v":0},{"$f":"SUM(BJ14,BL14,BN14,BP14,BR14)","v":0}]
[13,"北旭福第7号","2006-10-01","2022-09-21","2025-09-30","社会福祉法人　北竜町社会福祉協議会","会長　山本　剛嗣",null,"雨竜郡北竜町字和１９番地６","社会福祉法人北竜町社会福祉協議会","雨竜郡北竜町字和１９番地６",null,null,null,null,null,null,"北竜町","　ニホ",null,null,null,null,null,null,1,null,null,null,null,null,null,1,0,null,null,null,null,null,null,null,null,null,null,null,0,0,null,null,null,null,null,null,null,null,null,null,null,0,0,null,null,null,null,null,null,null,null,null,null,null,{"$f":"SUM(BI15,BK15,BM15,BO15,BQ15,BS15)","v":0},{"$f":"SUM(BJ15,BL15,BN15,BP15,BR15)","v":0}]
[16,"北旭福第10号","2006-10-01","2023-01-25","2026-01-31","社会福祉法人　愛別町社会福祉協議会","理事長　鈴木　彰",null,"上川郡愛別町字本町３４５番地１","社会福祉法人愛別町社会福祉協議会","愛別町字本町３４５番地の１",null,null,null,null,null,null,"愛別町","イニホト",null,null,null,null,null,null,1,null,null,null,null,null,null,1,0,null,null,null,null,null,null,null,null,null,null,null,0,0,null,null,null,null,null,null,null,null,null,null,null,0,0,null,null,null,null,null,null,null,null,null,null,null,0,0]
[17,"北旭福第11号","2006-10-01","2023-03-28","2026-03-31","社会福祉法人　幌延町社会福祉協議会","会長　中岡　妙子","〒098-3223","天塩郡幌延町字幌延102番地1","社会福祉法人幌延町社会福祉協議会幌延町指定訪問介護事業所","天塩郡幌延町字幌延102番地1",null,null,null,null,null,null,"幌延町","イハニホト",null,null,null,null,1,-1,null,null,null,null,3,-3,null,4,-4,null,null,null,null,null,null,null,null,null,null,null,0,0,null,null,null,null,null,null,null,null,null,null,null,0,0,null,null,null,null,null,null,null,null,null,null,null,0,0]
[18,"北旭福第12号","2006-10-01","2023-03-28","2026-03-31","社会福祉法人　幌延福祉会","理事長　山本　昭博","〒098-3201","天塩郡幌延町1条北2丁目1番3","特別養護老人ホームこざくら荘","天塩郡幌延町1条北2丁目1番3","こざくら荘短期入所生活介護事業所","天塩郡幌延町1条北2丁目1番3","障害者支援施設幌延町立北星園","天塩郡幌延町幌延１５番地４",null,null,"幌延町","イハニホヘ",null,null,null,null,1,null,1,null,null,null,3,null,null,5,0,null,null,1,null,1,null,null,null,3,null,null,5,0,null,null,2,-1,null,null,null,null,2,null,null,4,-1,null,null,null,null,null,null,null,null,null,null,null,0,0]
[19,"北旭福第13号","2006-10-01","2023-03-23","2026-03-31","社会福祉法人　当麻柏陽会","理事長　安田　秀敏","〒078-1316","上川郡当麻町6条東4丁目6番1号","訪問介護事業所当麻柏陽園","上川郡当麻町4条東3丁目4番35号",null,null,null,null,null,null,"当麻町","ニホヘ",null,null,null,null,1,-1,null,null,null,null,3,-1,null,4,-2,null,null,null,null,null,null,null,null,null,null,null,0,0,null,null,null,null,null,null,null,null,null,null,null,0,0,null,null,null,null,null,null,null,null,null,null,null,0,0]
[20,"北旭福第14号","2006-10-01","2023-02-24","2026-02-28","社会福祉法人　下川町社会福祉協議会","会長　加藤　久","〒098-1206","上川郡下川町幸町40番地1","社会福祉法人下川町社会福祉協議会","上川郡下川町幸町40番地1",null,null,null,null,null,null,"下川町","イロニホヘト",null,null,null,null,2,-1,null,null,null,null,2,-1,null,4,-2,null,null,null,null,null,null,null,null,null,null,null,0,0,null,null,null,null,null,null,null,null,null,null,null,0,0,null,null,null,null,null,null,null,null,null,null,null,0,0]
[21,"北旭福第16号","2006-10-01","2023-03-17","2026-03-31","社会福祉法人　初山別村社会福祉協議会","会長　伊藤　太一","〒078-4421","苫前郡初山別村字初山別149番地","初山別村社会福祉協議会","苫前郡初山別村字初山別149番地",null,null,null,null,null,null,"初山別村","イニホト",null,null,null,null,1,null,null,null,null,null,3,-1,null,4,-1,null,null,null,null,null,null,null,null,null,null,null,0,0,null,null,null,null,null,null,null,null,null,null,null,0,0,null,null,null,null,null,null,null,null,null,null,null,0,0]
[22,"北旭福第17号","2006-10-01","2023-02-28","2026-02-28","社会福祉法人　上富良野町社会福祉協議会","理事長　田中　利幸",null,"空知郡上富良野町大町2丁目8番4号","社会福祉法人上富良野町社会福祉協議会","空知郡上富良野町大町2丁目8番4号",null,null,null,null,null,null,"上富良野町","イニホト",null,null,null,null,2,-1,2,null,null,null,null,null,null,4,-1,null,null,null,null,null,null,null,null,null,null,null,0,0,null,null,null,null,null,null,null,null,null,null,null,0,0,null,null,null,null,null,null,null,null,null,null,null,0,0]
[23,"北旭福第19号","2006-10-01","2023-03-28","2026-03-31","社会福祉法人　当麻町社会福祉協議会","会長　　河野　豊","〒078-1314","上川郡当麻町４条東２丁目１６番３号","社会福祉法人当麻町社会福祉協議会","上川郡当麻町４条東２丁目１６番３号",null,null,null,null,null,null,"当麻町","イロニホヘト",null,null,null,null,5,-2,null,null,null,null,2,-1,null,7,-3,null,null,null,null,null,null,null,null,null,null,null,0,0,null,null,null,null,null,null,null,null,null,null,null,0,0,null,null,null,null,null,null,null,null,null,null,null,0,0]
[24,"北旭福第20号","2006-10-01","2023-03-30","2026-03-31","社会福祉法人　比布町社会福祉協議会","会長　大西　昭博","〒078-0348","上川郡比布町北町1丁目2番2号","社会福祉法人比布町社会福祉協議会","上川郡比布町北町1丁目2番2号",null,null,null,null,null,null,"比布町","イロニホヘ",null,null,null,null,2,-1,null,null,2,-2,3,-2,null,7,-5,null,null,null,null,null,null,null,null,null,null,null,0,0,null,null,null,null,null,null,null,null,null,null,null,0,0,null,null,null,null,null,null,null,null,null,null,null,0,0]
[25,"北旭福第21号","2006-10-01","2023-03-31","2026-03-31","社会福祉法人　当麻町かたるべの森","理事長　貞森　裕一","〒078-1315","上川郡当麻町5条東3丁目7番25号","ギャラリーかたるべプラス","上川郡当麻町5条東3丁目7番25号",null,null,null,null,null,null,"当麻町","ハト",null,null,null,null,null,null,null,null,null,null,8,-1,null,8,-1,null,null,null,null,null,null,null,null,null,null,null,0,0,null,null,null,null,null,null,null,null,null,null,null,0,0,null,null,null,null,null,null,null,null,null,null,null,0,0]
[26,"北旭福第22号","2006-10-01","2023-03-23","2026-03-31","社会福祉法人　剣渕北斗会","理事長　渡辺　祐一","〒098-0339","上川郡剣淵町西原町3084番地","社会福祉法人剣渕北斗会","上川郡剣淵町西原町3084番地",null,null,null,null,null,null,"剣淵町","イロハト",null,null,null,null,null,null,null,null,null,null,7,null,null,7,0,null,null,null,null,null,null,null,null,null,null,null,0,0,null,null,null,null,null,null,null,null,null,null,null,0,0,null,null,null,null,null,null,null,null,null,null,null,0,0]
[27,"北旭福第23号","2006-10-01","2023-03-17","2026-02-28","社会福祉法人　礼文町社会福祉協議会","会長　道場　好","〒097-1201","礼文郡礼文町香深村字ベッシュ９６１番２","社会福祉法人礼文町社会福祉協議会","礼文郡礼文町香深村字ベッシュ９６１番２",null,null,null,null,null,null,"礼文町","イニホト",null,null,null,null,3,-3,null,null,2,null,3,null,null,8,-3,null,null,null,null,null,null,null,null,null,null,null,0,0,null,null,null,null,null,null,null,null,null,null,null,0,0,null,null,null,null,null,null,null,null,null,null,null,0,0]
[28,"北旭福第24号","2006-10-01","2023-03-31","2026-03-31","社会福祉法人　剣淵町社会福祉協議会","会長　柴田　泰成","〒098-0338","上川郡剣淵町仲町28番1号","剣淵町社会福祉協議会","上川郡剣淵町仲町28番1号 剣淵町健康福祉総合センター内",null,null,null,null,null,null,"剣淵町","ニ",null,null,null,null,2,-1,null,null,null,null,2,null,null,4,-1,null,null,null,null,null,null,null,null,null,null,null,0,0,null,null,null,null,null,null,null,null,null,null,null,0,0,null,null,null,null,null,null,null,null,null,null,null,0,0]
[30,"北旭福第26号","2006-10-01","2023-03-14","2026-03-31","社会福祉法人　天塩町社会福祉協議会","会長　長瀬　啓嗣","〒098-3312","天塩郡天塩町字川口5699番地の1","本部事務所","天塩郡天塩町字川口5699番地の1",null,null,null,null,null,null,"天塩町","イニホヘト",null,null,null,null,6,-2,null,null,null,null,2,null,null,8,-2,null,null,null,null,null,null,null,null,null,null,null,0,0,null,null,null,null,null,null,null,null,null,null,null,0,0,null,null,null,null,null,null,null,null,null,null,null,0,0]
[31,"北旭福第27号","2006-10-01","2023-03-28","2026-03-31","特定非営利活動法人　ウイシュ","下田　智",null,"留萌市明元町６丁目２２－１","特定非営利活動法人ウイシュ","留萌市明元町６丁目２２－１",null,null,null,null,null,null,"留萌市","ニホ",null,null,null,null,1,-1,null,null,null,null,2,null,null,3,-1,null,null,null,null,null,null,null,null,null,null,null,0,0,null,null,null,null,null,null,null,null,null,null,null,0,0,null,null,null,null,null,null,null,null,null,null,null,0,0]
[32,"北旭福第28号","2006-10-01","2023-08-24","2026-08-31","社会福祉法人　歌登福祉会","理事長　澤田　礼二",null,"枝幸郡枝幸町歌登桧垣町142番地","歌翠園","枝幸郡枝幸町歌登桧垣町１４２番地",null,null,null,null,null,null,"枝幸町歌登地区","イニト",null,null,null,null,null,null,2,null,null,null,null,null,null,{"$f":"SUM(V31,X31,Z31,AB31,AD31,AF31)","v":2},{"$f":"SUM(W31,Y31,AA31,AC31,AE31)","v":0},null,null,null,null,null,null,null,null,null,null,null,{"$f":"SUM(AI31,AK31,AM31,AO31,AQ31,AS31)","v":0},{"$f":"SUM(AJ31,AL31,AN31,AP31,AR31)","v":0},null,null,null,null,null,null,null,null,null,null,null,{"$f":"SUM(AV31,AX31,AZ31,BB31,BD31,BF31)","v":0},{"$f":"SUM(AW31,AY31,BA31,BC31,BE31)","v":0},null,null,null,null,null,null,null,null,null,null,null,0,0]
[33,"北旭福第29号","2006-10-01","2022-05-27","2025-04-30","社会福祉法人　　南富良野大乗会","理事長　鷹嘴　充子",null,"空知郡南富良野町字幾寅528番2","南富良野からまつ園","空知郡南富良野町字幾寅528番2","南富良野こざくら園","空知郡南富良野町字幾寅528番5","なんぷ～香房","空知郡南富良野町字幾寅695番地2","ふくしあ","空知郡南富良野町字金山586番地4","南富良野町","　　ハニ",null,null,null,null,1,null,null,null,null,null,3,-1,null,4,-1,null,null,1,null,null,null,null,null,2,null,null,3,0,null,null,null,null,null,null,null,null,2,null,null,2,0,null,null,1,null,null,null,null,null,null,null,null,1,0]
[34,"北旭福第32号","2010-03-19","2021-04-07","2024-03-31","社会福祉法人　浜頓別福祉会","理事長　平井　義春",null,"枝幸郡浜頓別町旭ヶ丘3丁目８番地","特別養護老人ホーム　清風苑","枝幸郡浜頓別町旭ヶ丘3丁目８番地",null,null,null,null,null,null,"浜頓別町","イロハニホ　ト",null,null,null,null,3,null,null,null,null,null,1,null,null,4,0,null,null,null,null,null,null,null,null,null,null,null,0,0,null,null,null,null,null,null,null,null,null,null,null,0,0,null,null,null,null,null,null,null,null,null,null,null,0,0]
[35,"北旭福第36号","2011-09-15","2022-09-15","2025-09-30","社会福祉法人　苫前町社会福祉協議会","会長　渡部　一男",null,"苫前郡苫前町字旭３７番地の１","社会福祉法人苫前町社会福祉協議会","苫前郡苫前町字旭３７番地の１",null,null,null,null,null,null,"苫前町","　　　　ニホ",null,null,null,null,2,-2,null,null,1,null,3,-2,null,6,-4,null,null,null,null,null,null,null,null,null,null,null,0,0,null,null,null,null,null,null,null,null,null,null,null,0,0,null,null,null,null,null,null,null,null,null,null,null,0,0]
[36,"北旭福第38号","2014-02-27","2022-03-04","2025-02-28","特定非営利活動法人　南宗谷ひだまりの会","理事長　　開米　一有","〒098-5825","枝幸郡枝幸町新栄町３１４番地１","特定非営利活動法人南宗谷ひだまりの会","枝幸郡枝幸町新栄町３１４番地１",null,null,null,null,null,null,"枝幸町","イロハ　　　ト",null,null,null,null,null,null,1,null,null,null,1,-1,null,2,-1,null,null,null,null,null,null,null,null,null,null,null,0,0,null,null,null,null,null,null,null,null,null,null,null,0,0,null,null,null,null,null,null,null,null,null,null,null,0,0]
[37,"北旭福第40号","2014-03-18","2022-04-22","2025-03-31","社会福祉法人　揺籃会","理事長　　永倉　隆太郎","〒078-0151","深川市納内町２丁目４１２３番地４","特別養護老人ホーム清祥園","深川市納内町北３番９７号",null,null,null,null,null,null,"深川市","　　　　ニ",null,null,null,null,2,null,null,null,null,null,null,null,null,2,0,null,null,null,null,null,null,null,null,null,null,null,0,0,null,null,null,null,null,null,null,null,null,null,null,0,0,null,null,null,null,null,null,null,null,null,null,null,0,0]
[38,"北旭福第41号","2015-06-01","2023-05-31","2026-05-31","社会福祉法人　湯らん福祉会","理事長　　松田　祐太朗",null,"旭川市永山町１５丁目１１６番地４","特別養護老人ホーム友愛苑","天塩郡遠別町字本町６丁目１－６",null,null,null,null,null,null,"遠別町","イロニホト",null,null,null,null,1,-1,1,null,null,null,null,null,null,2,-1,null,null,null,null,null,null,null,null,null,null,null,0,0,null,null,null,null,null,null,null,null,null,null,null,0,0,null,null,null,null,null,null,null,null,null,null,null,0,0]
[39,"北旭福第42号","2016-08-15","2021-08-31","2024-08-31","社会福祉法人　あかしあ労働福祉センター","理事長　　北村　典幸",null,"旭川市末広２条１３丁目６番１７号","社会福祉法人あかしあ労働福祉センター","旭川市末広２条１３丁目７番１１号",null,null,null,null,null,null,"旭川市","イロハ　　　ト",null,null,null,null,2,-1,null,null,null,null,2,-2,null,4,-3,null,null,null,null,null,null,null,null,null,null,null,0,0,null,null,null,null,null,null,null,null,null,null,null,0,0,null,null,null,null,null,null,null,null,null,null,null,0,0]
[40,"北旭福第43号","2022-09-28",null,"2024-09-30","社会福祉法人　北海道療育園","理事長　丸山　静男","〒071-8144","旭川市春光台４条１０丁目","社会福祉法人　北海道療育園","旭川市春光台４条１０丁目",null,null,null,null,null,null,"旭川市","イ　ハ",null,null,null,null,4,null,null,null,null,null,null,null,null,{"$f":"SUM(V39,X39,Z39,AB39,AD39,AF39)","v":4},{"$f":"SUM(W39,Y39,AA39,AC39,AE39)","v":0},null,null,null,null,null,null,null,null,null,null,null,{"$f":"SUM(AI39,AK39,AM39,AO39,AQ39,AS39)","v":0},{"$f":"SUM(AJ39,AL39,AN39,AP39,AR39)","v":0},null,null,null,null,null,null,null,null,null,null,null,{"$f":"SUM(AV39,AX39,AZ39,BB39,BD39,BF39)","v":0},{"$f":"SUM(AW39,AY39,BA39,BC39,BE39)","v":0},null,null,null,null,null,null,null,null,null,null,null,{"$f":"SUM(BI39,BK39,BM39,BO39,BQ39,BS39)","v":0},{"$f":"SUM(BJ39,BL39,BN39,BP39,BR39)","v":0}]
[41,"北旭福第44号","2024-03-12",null,"2026-03-31","社会福祉法人　浜頓別町社会福祉協議会","会長　横山　豊広","〒098ー5705","北海道枝幸郡浜頓別町中央南１番地","浜頓別町役場庁舎内","枝幸郡浜頓別町中央南１番地",null,null,null,null,null,null,"浜頓別町","イロハニホト",null,null,null,null,2,null,null,null,null,null,1,null,null,3,0,null,null,null,null,null,null,null,null,null,null,null,0,0,null,null,null,null,null,null,null,null,null,null,null,0,0,null,null,null,null,null,null,null,null,null,null,null,0,0]
[42,null,null,null,null,null,null,null,null,null,null,null,null,null,null,null,null,null,null,null,null,null,null,{"$f":"SUM(X4:X40)","v":53},-21,13,0,7,-2,{"$f":"SUM(AD4:AD40)","v":69},-24,null,142,-47,null,null,null,null,null,null,null,null,null,null,null,0,0,null,null,null,null,null,null,null,null,null,null,null,0,0,null,null,null,null,null,null,null,null,null,null,null,0,0]
[43,null,null,null,null,null,null,null,null,null,null,null,null,null,null,null,null,null,null,null,null,null,null,null,null,null,null,null,null,null,null,null,0,0,null,null,null,null,null,null,null,null,null,null,null,0,0,null,null,null,null,null,null,null,null,null,null,null,0,0,null,null,null,null,null,null,null,null,null,null,null,0,0]
[44,null,null,null,null,null,null,null,null,null,null,null,null,null,null,null,null,null,null,null,null,null,null,null,null,null,null,null,null,null,null,null,0,0,null,null,null,null,null,null,null,null,null,null,null,0,0,null,null,null,null,null,null,null,null,null,null,null,0,0,null,null,null,null,null,null,null,null,null,null,null,0,0]
[45,null,null,null,null,null,null,null,null,null,null,null,null,null,null,null,null,null,null,null,null,null,null,null,null,null,null,null,null,null,null,null,0,0,null,null,null,null,null,null,null,null,null,null,null,0,0,null,null,null,null,null,null,null,null,null,null,null,0,0,null,null,null,null,null,null,null,null,null,null,null,0,0]
[46,null,null,null,null,null,null,null,null,null,null,null,null,null,null,null,null,null,null,null,null,null,null,null,null,null,null,null,null,null,null,null,0,0,null,null,null,null,null,null,null,null,null,null,null,0,0,null,null,null,null,null,null,null,null,null,null,null,0,0,null,null,null,null,null,null,null,null,null,null,null,0,0]
[47,null,null,null,null,null,null,null,null,null,null,null,null,null,null,null,null,null,null,null,null,null,null,null,null,null,null,null,null,null,null,null,0,0,null,null,null,null,null,null,null,null,null,null,null,0,0,null,null,null,null,null,null,null,null,null,null,null,0,0,null,null,null,null,null,null,null,null,null,null,null,0,0]
[48,null,null,null,null,null,null,null,null,null,null,null,null,null,null,null,null,null,null,null,null,null,null,null,null,null,null,null,null,null,null,null,0,0,null,null,null,null,null,null,null,null,null,null,null,0,0,null,null,null,null,null,null,null,null,null,null,null,0,0,null,null,null,null,null,null,null,null,null,null,null,0,0]
[49,null,null,null,null,null,null,null,null,null,null,null,null,null,null,null,null,null,null,null,null,null,null,null,null,null,null,null,null,null,null,null,0,0,null,null,null,null,null,null,null,null,null,null,null,0,0,null,null,null,null,null,null,null,null,null,null,null,0,0,null,null,null,null,null,null,null,null,null,null,null,0,0]
[50,null,null,null,null,null,null,null,null,null,null,null,null,null,null,null,null,null,null,null,null,null,null,null,null,null,null,null,null,null,null,null,0,0,null,null,null,null,null,null,null,null,null,null,null,0,0,null,null,null,null,null,null,null,null,null,null,null,0,0,null,null,null,null,null,null,null,null,null,null,null,0,0]
[51,null,null,null,null,null,null,null,null,null,null,null,null,null,null,null,null,null,null,null,null,null,null,null,null,null,null,null,null,null,null,null,0,0,null,null,null,null,null,null,null,null,null,null,null,0,0,null,null,null,null,null,null,null,null,null,null,null,0,0,null,null,null,null,null,null,null,null,null,null,null,0,0]
[52,null,null,null,null,null,null,null,null,null,null,null,null,null,null,null,null,null,null,null,null,null,null,null,null,null,null,null,null,null,null,null,0,0,null,null,null,null,null,null,null,null,null,null,null,0,0,null,null,null,null,null,null,null,null,null,null,null,0,0,null,null,null,null,null,null,null,null,null,null,null,0,0]
[53,null,null,null,null,null,null,null,null,null,null,null,null,null,null,null,null,null,null,null,null,null,null,null,null,null,null,null,null,null,null,null,0,0,null,null,null,null,null,null,null,null,null,null,null,0,0,null,null,null,null,null,null,null,null,null,null,null,0,0,null,null,null,null,null,null,null,null,null,null,null,0,0]
[54,null,null,null,null,null,null,null,null,null,null,null,null,null,null,null,null,null,null,null,null,null,null,null,null,null,null,null,null,null,null,null,0,0,null,null,null,null,null,null,null,null,null,null,null,0,0,null,null,null,null,null,null,null,null,null,null,null,0,0,null,null,null,null,null,null,null,null,null,null,null,0,0]
[55,null,null,null,null,null,null,null,null,null,null,null,null,null,null,null,null,null,null,null,null,null,null,null,null,null,null,null,null,null,null,null,0,0,null,null,null,null,null,null,null,null,null,null,null,0,0,null,null,null,null,null,null,null,null,null,null,null,0,0,null,null,null,null,null,null,null,null,null,null,null,0,0]
[56,null,null,null,null,null,null,null,null,null,null,null,null,null,null,null,null,null,null,null,null,null,null,null,null,null,null,null,null,null,null,null,0,0,null,null,null,null,null,null,null,null,null,null,null,0,0,null,null,null,null,null,null,null,null,null,null,null,0,0,null,null,null,null,null,null,null,null,null,null,null,0,0]
[57,null,null,null,null,null,null,null,null,null,null,null,null,null,null,null,null,null,null,null,null,null,null,null,null,null,null,null,null,null,null,null,0,0,null,null,null,null,null,null,null,null,null,null,null,0,0,null,null,null,null,null,null,null,null,null,null,null,0,0,null,null,null,null,null,null,null,null,null,null,null,0,0]
[58,null,null,null,null,null,null,null,null,null,null,null,null,null,null,null,null,null,null,null,null,null,null,null,null,null,null,null,null,null,null,null,0,0,null,null,null,null,null,null,null,null,null,null,null,0,0,null,null,null,null,null,null,null,null,null,null,null,0,0,null,null,null,null,null,null,null,null,null,null,null,0,0]
[59,null,null,null,null,null,null,null,null,null,null,null,null,null,null,null,null,null,null,null,null,null,null,null,null,null,null,null,null,null,null,null,0,0,null,null,null,null,null,null,null,null,null,null,null,0,0,null,null,null,null,null,null,null,null,null,null,null,0,0,null,null,null,null,null,null,null,null,null,null,null,0,0]
[60,null,null,null,null,null,null,null,null,null,null,null,null,null,null,null,null,null,null,null,null,null,null,null,null,null,null,null,null,null,null,null,0,0,null,null,null,null,null,null,null,null,null,null,null,0,0,null,null,null,null,null,null,null,null,null,null,null,0,0,null,null,null,null,null,null,null,null,null,null,null,0,0]
[61,null,null,null,null,null,null,null,null,null,null,null,null,null,null,null,null,null,null,null,null,null,null,null,null,null,null,null,null,null,null,null,0,0,null,null,null,null,null,null,null,null,null,null,null,0,0,null,null,null,null,null,null,null,null,null,null,null,0,0,null,null,null,null,null,null,null,null,null,null,null,0,0]
[62,null,null,null,null,null,null,null,null,null,null,null,null,null,null,null,null,null,null,null,null,null,null,null,null,null,null,null,null,null,null,null,0,0,null,null,null,null,null,null,null,null,null,null,null,0,0,null,null,null,null,null,null,null,null,null,null,null,0,0,null,null,null,null,null,null,null,null,null,null,null,0,0]
[63,null,null,null,null,null,null,null,null,null,null,null,null,null,null,null,null,null,null,null,null,null,null,null,null,null,null,null,null,null,null,null,0,0,null,null,null,null,null,null,null,null,null,null,null,0,0,null,null,null,null,null,null,null,null,null,null,null,0,0,null,null,null,null,null,null,null,null,null,null,null,0,0]
[64,null,null,null,null,null,null,null,null,null,null,null,null,null,null,null,null,null,null,null,null,null,null,null,null,null,null,null,null,null,null,null,{"$f":"SUM(V63,X63,Z63,AB63,AD63,AF63)","v":0},{"$f":"SUM(W63,Y63,AA63,AC63,AE63)","v":0},null,null,null,null,null,null,null,null,null,null,null,{"$f":"SUM(AI63,AK63,AM63,AO63,AQ63,AS63)","v":0},{"$f":"SUM(AJ63,AL63,AN63,AP63,AR63)","v":0},null,null,null,null,null,null,null,null,null,null,null,{"$f":"SUM(AV63,AX63,AZ63,BB63,BD63,BF63)","v":0},{"$f":"SUM(AW63,AY63,BA63,BC63,BE63)","v":0},null,null,null,null,null,null,null,null,null,null,null,0,0]
[65,null,null,null,null,null,null,null,null,null,null,null,null,null,null,null,null,null,null,null,null,null,null,null,null,null,null,null,null,null,null,null,0,0,null,null,null,null,null,null,null,null,null,null,null,0,0,null,null,null,null,null,null,null,null,null,null,null,0,0,null,null,null,null,null,null,null,null,null,null,null,0,0]
[66,null,null,null,null,null,null,null,null,null,null,null,null,null,null,null,null,null,null,null,null,null,null,null,null,null,null,null,null,null,null,null,0,0,null,null,null,null,null,null,null,null,null,null,null,0,0,null,null,null,null,null,null,null,null,null,null,null,0,0,null,null,null,null,null,null,null,null,null,null,null,0,0]
[67,null,null,null,null,null,null,null,null,null,null,null,null,null,null,null,null,null,null,null,null,null,null,null,null,null,null,null,null,null,null,null,0,0,null,null,null,null,null,null,null,null,null,null,null,0,0,null,null,null,null,null,null,null,null,null,null,null,0,0,null,null,null,null,null,null,null,null,null,null,null,0,0]
[68,null,null,null,null,null,null,null,null,null,null,null,null,null,null,null,null,null,null,null,null,null,null,null,null,null,null,null,null,null,null,null,0,0,null,null,null,null,null,null,null,null,null,null,null,0,0,null,null,null,null,null,null,null,null,null,null,null,0,0,null,null,null,null,null,null,null,null,null,null,null,0,0]
[69,null,null,null,null,null,null,null,null,null,null,null,null,null,null,null,null,null,null,null,null,null,null,null,null,null,null,null,null,null,null,null,0,0,null,null,null,null,null,null,null,null,null,null,null,0,0,null,null,null,null,null,null,null,null,null,null,null,0,0,null,null,null,null,null,null,null,null,null,null,null,0,0]
[70,null,null,null,null,null,null,null,null,null,null,null,null,null,null,null,null,null,null,null,null,null,null,null,null,null,null,null,null,null,null,null,0,0,null,null,null,null,null,null,null,null,null,null,null,0,0,null,null,null,null,null,null,null,null,null,null,null,0,0,null,null,null,null,null,null,null,null,null,null,null,0,0]
[71,null,null,null,null,null,null,null,null,null,null,null,null,null,null,null,null,null,null,null,null,null,null,null,null,null,null,null,null,null,null,null,0,0,null,null,null,null,null,null,null,null,null,null,null,0,0,null,null,null,null,null,null,null,null,null,null,null,0,0,null,null,null,null,null,null,null,null,null,null,null,0,0]
[72,null,null,null,null,null,null,null,null,null,null,null,null,null,null,null,null,null,null,null,null,null,null,null,null,null,null,null,null,null,null,null,0,0,null,null,null,null,null,null,null,null,null,null,null,0,0,null,null,null,null,null,null,null,null,null,null,null,0,0,null,null,null,null,null,null,null,null,null,null,null,0,0]
[73,null,null,null,null,null,null,null,null,null,null,null,null,null,null,null,null,null,null,null,null,null,null,null,null,null,null,null,null,null,null,null,0,0,null,null,null,null,null,null,null,null,null,null,null,0,0,null,null,null,null,null,null,null,null,null,null,null,0,0,null,null,null,null,null,null,null,null,null,null,null,0,0]
[74,null,null,null,null,null,null,null,null,null,null,null,null,null,null,null,null,null,null,null,null,null,null,null,null,null,null,null,null,null,null,null,0,0,null,null,null,null,null,null,null,null,null,null,null,0,0,null,null,null,null,null,null,null,null,null,null,null,0,0,null,null,null,null,null,null,null,null,null,null,null,0,0]
[75,null,null,null,null,null,null,null,null,null,null,null,null,null,null,null,null,null,null,null,null,null,null,null,null,null,null,null,null,null,null,null,0,0,null,null,null,null,null,null,null,null,null,null,null,0,0,null,null,null,null,null,null,null,null,null,null,null,0,0,null,null,null,null,null,null,null,null,null,null,null,0,0]
[76,null,null,null,null,null,null,null,null,null,null,null,null,null,null,null,null,null,null,null,null,null,null,null,null,null,null,null,null,null,null,null,0,0,null,null,null,null,null,null,null,null,null,null,null,0,0,null,null,null,null,null,null,null,null,null,null,null,0,0,null,null,null,null,null,null,null,null,null,null,null,0,0]
[77,null,null,null,null,null,null,null,null,null,null,null,null,null,null,null,null,null,null,null,null,null,null,null,null,null,null,null,null,null,null,null,0,0,null,null,null,null,null,null,null,null,null,null,null,0,0,null,null,null,null,null,null,null,null,null,null,null,0,0,null,null,null,null,null,null,null,null,null,null,null,0,0]
[78,null,null,null,null,null,null,null,null,null,null,null,null,null,null,null,null,null,null,null,null,null,null,null,null,null,null,null,null,null,null,null,0,0,null,null,null,null,null,null,null,null,null,null,null,0,0,null,null,null,null,null,null,null,null,null,null,null,0,0,null,null,null,null,null,null,null,null,null,null,null,0,0]
[79,null,null,null,null,null,null,null,null,null,null,null,null,null,null,null,null,null,null,null,null,null,null,null,null,null,null,null,null,null,null,null,0,0,null,null,null,null,null,null,null,null,null,null,null,0,0,null,null,null,null,null,null,null,null,null,null,null,0,0,null,null,null,null,null,null,null,null,null,null,null,0,0]
[80,null,null,null,null,null,null,null,null,null,null,null,null,null,null,null,null,null,null,null,null,null,null,null,null,null,null,null,null,null,null,null,0,0,null,null,null,null,null,null,null,null,null,null,null,0,0,null,null,null,null,null,null,null,null,null,null,null,0,0,null,null,null,null,null,null,null,null,null,null,null,0,0]
[81,null,null,null,null,null,null,null,null,null,null,null,null,null,null,null,null,null,null,null,null,null,null,null,null,null,null,null,null,null,null,null,0,0,null,null,null,null,null,null,null,null,null,null,null,0,0,null,null,null,null,null,null,null,null,null,null,null,0,0,null,null,null,null,null,null,null,null,null,null,null,0,0]
[82,null,null,null,null,null,null,null,null,null,null,null,null,null,null,null,null,null,null,null,null,null,null,null,null,null,null,null,null,null,null,null,0,0,null,null,null,null,null,null,null,null,null,null,null,0,0,null,null,null,null,null,null,null,null,null,null,null,0,0,null,null,null,null,null,null,null,null,null,null,null,{"$f":"SUM(BI81,BK81,BM81,BO81,BQ81,BS81)","v":0},0]
[83,null,null,null,null,null,null,null,null,null,null,null,null,null,null,null,null,null,null,null,null,null,null,null,null,null,null,null,null,null,null,null,0,0,null,null,null,null,null,null,null,null,null,null,null,0,0,null,null,null,null,null,null,null,null,null,null,null,0,0,null,null,null,null,null,null,null,null,null,null,null,0,{"$f":"SUM(BJ82,BL82,BN82,BP82,BR82)","v":0}]
[84,null,null,null,null,null,null,null,null,null,null,null,null,null,null,null,null,null,null,null,null,null,null,null,null,null,null,null,null,null,null,null,0,0,null,null,null,null,null,null,null,null,null,null,null,0,0,null,null,null,null,null,null,null,null,null,null,null,0,0,null,null,null,null,null,null,null,null,null,null,null,0,0]
[85,null,null,null,null,null,null,null,null,null,null,null,null,null,null,null,null,null,null,null,null,null,null,null,null,null,null,null,null,null,null,null,0,0,null,null,null,null,null,null,null,null,null,null,null,0,0,null,null,null,null,null,null,null,null,null,null,null,0,0,null,null,null,null,null,null,null,null,null,null,null,0,0]
[86,null,null,null,null,null,null,null,null,null,null,null,null,null,null,null,null,null,null,null,null,null,null,null,null,null,null,null,null,null,null,null,0,0,null,null,null,null,null,null,null,null,null,null,null,0,0,null,null,null,null,null,null,null,null,null,null,null,0,0,null,null,null,null,null,null,null,null,null,null,null,0,0]
[87,null,null,null,null,null,null,null,null,null,null,null,null,null,null,null,null,null,null,null,null,null,null,null,null,null,null,null,null,null,null,null,0,0,null,null,null,null,null,null,null,null,null,null,null,0,0,null,null,null,null,null,null,null,null,null,null,null,0,0,null,null,null,null,null,null,null,null,null,null,null,0,0]
[88,null,null,null,null,null,null,null,null,null,null,null,null,null,null,null,null,null,null,null,null,null,null,null,null,null,null,null,null,null,null,null,0,0,null,null,null,null,null,null,null,null,null,null,null,0,0,null,null,null,null,null,null,null,null,null,null,null,0,0,null,null,null,null,null,null,null,null,null,null,null,0,0]
[89,null,null,null,null,null,null,null,null,null,null,null,null,null,null,null,null,null,null,null,null,null,null,null,null,null,null,null,null,null,null,null,0,0,null,null,null,null,null,null,null,null,null,null,null,0,0,null,null,null,null,null,null,null,null,null,null,null,0,0,null,null,null,null,null,null,null,null,null,null,null,0,0]
[90,null,null,null,null,null,null,null,null,null,null,null,null,null,null,null,null,null,null,null,null,null,null,null,null,null,null,null,null,null,null,null,0,0,null,null,null,null,null,null,null,null,null,null,null,0,0,null,null,null,null,null,null,null,null,null,null,null,0,0,null,null,null,null,null,null,null,null,null,null,null,0,0]
[91,null,null,null,null,null,null,null,null,null,null,null,null,null,null,null,null,null,null,null,null,null,null,null,null,null,null,null,null,null,null,null,0,0,null,null,null,null,null,null,null,null,null,null,null,0,0,null,null,null,null,null,null,null,null,null,null,null,0,0,null,null,null,null,null,null,null,null,null,null,null,0,0]
[92,null,null,null,null,null,null,null,null,null,null,null,null,null,null,null,null,null,null,null,null,null,null,null,null,null,null,null,null,null,null,null,0,0,null,null,null,null,null,null,null,null,null,null,null,0,0,null,null,null,null,null,null,null,null,null,null,null,0,0,null,null,null,null,null,null,null,null,null,null,null,0,0]
[93,null,null,null,null,null,null,null,null,null,null,null,null,null,null,null,null,null,null,null,null,null,null,null,null,null,null,null,null,null,null,null,0,0,null,null,null,null,null,null,null,null,null,null,null,0,0,null,null,null,null,null,null,null,null,null,null,null,0,0,null,null,null,null,null,null,null,null,null,null,null,0,0]
[94,null,null,null,null,null,null,null,null,null,null,null,null,null,null,null,null,null,null,null,null,null,null,null,null,null,null,null,null,null,null,null,0,0,null,null,null,null,null,null,null,null,null,null,null,0,0,null,null,null,null,null,null,null,null,null,null,null,0,0,null,null,null,null,null,null,null,null,null,null,null,0,0]
[95,null,null,null,null,null,null,null,null,null,null,null,null,null,null,null,null,null,null,null,null,null,null,null,null,null,null,null,null,null,null,null,0,0,null,null,null,null,null,null,null,null,null,null,null,0,0,null,null,null,null,null,null,null,null,null,null,null,0,0,null,null,null,null,null,null,null,null,null,null,null,0,0]
[96,null,null,null,null,null,null,null,null,null,null,null,null,null,null,null,null,null,null,null,null,null,null,null,null,null,null,null,null,null,null,null,{"$f":"SUM(V95,X95,Z95,AB95,AD95,AF95)","v":0},{"$f":"SUM(W95,Y95,AA95,AC95,AE95)","v":0},null,null,null,null,null,null,null,null,null,null,null,{"$f":"SUM(AI95,AK95,AM95,AO95,AQ95,AS95)","v":0},{"$f":"SUM(AJ95,AL95,AN95,AP95,AR95)","v":0},null,null,null,null,null,null,null,null,null,null,null,{"$f":"SUM(AV95,AX95,AZ95,BB95,BD95,BF95)","v":0},{"$f":"SUM(AW95,AY95,BA95,BC95,BE95)","v":0},null,null,null,null,null,null,null,null,null,null,null,0,0]
[97,null,null,null,null,null,null,null,null,null,null,null,null,null,null,null,null,null,null,null,null,null,null,null,null,null,null,null,null,null,null,null,0,0,null,null,null,null,null,null,null,null,null,null,null,0,0,null,null,null,null,null,null,null,null,null,null,null,0,0,null,null,null,null,null,null,null,null,null,null,null,0,0]
[98,null,null,null,null,null,null,null,null,null,null,null,null,null,null,null,null,null,null,null,null,null,null,null,null,null,null,null,null,null,null,null,0,0,null,null,null,null,null,null,null,null,null,null,null,0,0,null,null,null,null,null,null,null,null,null,null,null,0,0,null,null,null,null,null,null,null,null,null,null,null,0,0]
[99,null,null,null,null,null,null,null,null,null,null,null,null,null,null,null,null,null,null,null,null,null,null,null,null,null,null,null,null,null,null,null,0,0,null,null,null,null,null,null,null,null,null,null,null,0,0,null,null,null,null,null,null,null,null,null,null,null,0,0,null,null,null,null,null,null,null,null,null,null,null,0,0]
[100,null,null,null,null,null,null,null,null,null,null,null,null,null,null,null,null,null,null,null,null,null,null,null,null,null,null,null,null,null,null,null,0,0,null,null,null,null,null,null,null,null,null,null,null,0,0,null,null,null,null,null,null,null,null,null,null,null,0,0,null,null,null,null,null,null,null,null,null,null,null,0,0]
[101,null,null,null,null,null,null,null,null,null,null,null,null,null,null,null,null,null,null,null,null,null,null,null,null,null,null,null,null,null,null,null,0,0,null,null,null,null,null,null,null,null,null,null,null,0,0,null,null,null,null,null,null,null,null,null,null,null,0,0,null,null,null,null,null,null,null,null,null,null,null,0,0]
[102,null,null,null,null,null,null,null,null,null,null,null,null,null,null,null,null,null,null,null,null,null,null,null,null,null,null,null,null,null,null,null,0,0,null,null,null,null,null,null,null,null,null,null,null,0,0,null,null,null,null,null,null,null,null,null,null,null,0,0,null,null,null,null,null,null,null,null,null,null,null,0,0]
[null,null,null,null,null,null,null,null,null,null,null,null,null,null,null,null,null,null,null,null,null,null,null,null,null,null,null,null,null,null,null,null,0,0,null,null,null,null,null,null,null,null,null,null,null,0,0,null,null,null,null,null,null,null,null,null,null,null,0,0,null,null,null,null,null,null,null,null,null,null,null,0,0]
[null,null,null,null,null,null,null,null,null,null,null,null,null,null,null,null,null,null,null,null,null,null,null,null,null,null,null,null,null,null,null,null,0,0,null,null,null,null,null,null,null,null,null,null,null,0,0,null,null,null,null,null,null,null,null,null,null,null,0,0,null,null,null,null,null,null,null,null,null,null,null,0,0]
[null,null,null,null,null,null,null,null,null,null,null,null,null,null,null,null,null,null,null,null,null,null,null,null,null,null,null,null,null,null,null,null,0,0,null,null,null,null,null,null,null,null,null,null,null,0,0,null,null,null,null,null,null,null,null,null,null,null,0,0,null,null,null,null,null,null,null,null,null,null,null,0,0]
[null,null,null,null,null,null,null,null,null,null,null,null,null,null,null,null,null,null,null,null,null,null,null,null,null,null,null,null,null,null,null,null,0,0,null,null,null,null,null,null,null,null,null,null,null,0,0,null,null,null,null,null,null,null,null,null,null,null,0,0,null,null,null,null,null,null,null,null,null,null,null,0,0]
[null,null,null,null,null,null,null,null,null,null,null,null,null,null,null,null,null,null,null,null,null,null,null,null,null,null,null,null,null,null,null,null,0,0,null,null,null,null,null,null,null,null,null,null,null,0,0,null,null,null,null,null,null,null,null,null,null,null,0,0,null,null,null,null,null,null,null,null,null,null,null,0,0]
[null,null,null,null,null,null,null,null,null,null,null,null,null,null,null,null,null,null,null,null,null,null,null,null,null,null,null,null,null,null,null,null,0,0,null,null,null,null,null,null,null,null,null,null,null,0,0,null,null,null,null,null,null,null,null,null,null,null,0,0,null,null,null,null,null,null,null,null,null,null,null,0,0]
[null,null,null,null,null,null,null,null,null,null,null,null,null,null,null,null,null,null,null,null,null,null,null,null,null,null,null,null,null,null,null,null,0,0,null,null,null,null,null,null,null,null,null,null,null,0,0,null,null,null,null,null,null,null,null,null,null,null,0,0,null,null,null,null,null,null,null,null,null,null,null,0,0]
[null,null,null,null,null,null,null,null,null,null,null,null,null,null,null,null,null,null,null,null,null,null,null,null,null,null,null,null,null,null,null,null,0,0,null,null,null,null,null,null,null,null,null,null,null,0,0,null,null,null,null,null,null,null,null,null,null,null,0,0,null,null,null,null,null,null,null,null,null,null,null,0,0]
[null,null,null,null,null,null,null,null,null,null,null,null,null,null,null,null,null,null,null,null,null,null,null,null,null,null,null,null,null,null,null,null,0,0,null,null,null,null,null,null,null,null,null,null,null,0,0,null,null,null,null,null,null,null,null,null,null,null,0,0,null,null,null,null,null,null,null,null,null,null,null,0,0]
[null,null,null,null,null,null,null,null,null,null,null,null,null,null,null,null,null,null,null,null,null,null,null,null,null,null,null,null,null,null,null,null,0,0,null,null,null,null,null,null,null,null,null,null,null,0,0,null,null,null,null,null,null,null,null,null,null,null,0,0,null,null,null,null,null,null,null,null,null,null,null,0,0]
[null,null,null,null,null,null,null,null,null,null,null,null,null,null,null,null,null,null,null,null,null,null,null,null,null,null,null,null,null,null,null,null,0,0,null,null,null,null,null,null,null,null,null,null,null,0,0,null,null,null,null,null,null,null,null,null,null,null,0,0,null,null,null,null,null,null,null,null,null,null,null,0,0]
[null,null,null,null,null,null,null,null,null,null,null,null,null,null,null,null,null,null,null,null,null,null,null,null,null,null,null,null,null,null,null,null,0,0,null,null,null,null,null,null,null,null,null,null,null,0,0,null,null,null,null,null,null,null,null,null,null,null,0,0,null,null,null,null,null,null,null,null,null,null,null,0,0]
[null,null,null,null,null,null,null,null,null,null,null,null,null,null,null,null,null,null,null,null,null,null,null,null,null,null,null,null,null,null,null,null,0,0,null,null,null,null,null,null,null,null,null,null,null,0,0,null,null,null,null,null,null,null,null,null,null,null,0,0,null,null,null,null,null,null,null,null,null,null,null,0,0]
[null,null,null,null,null,null,null,null,null,null,null,null,null,null,null,null,null,null,null,null,null,null,null,null,null,null,null,null,null,null,null,null,0,0,null,null,null,null,null,null,null,null,null,null,null,0,0,null,null,null,null,null,null,null,null,null,null,null,0,0,null,null,null,null,null,null,null,null,null,null,null,0,0]
[null,null,null,null,null,null,null,null,null,null,null,null,null,null,null,null,null,null,null,null,null,null,null,null,null,null,null,null,null,null,null,null,0,0,null,null,null,null,null,null,null,null,null,null,null,0,0,null,null,null,null,null,null,null,null,null,null,null,0,0,null,null,null,null,null,null,null,null,null,null,null,0,0]
[null,null,null,null,null,null,null,null,null,null,null,null,null,null,null,null,null,null,null,null,null,null,null,null,null,null,null,null,null,null,null,null,0,0,null,null,null,null,null,null,null,null,null,null,null,0,0,null,null,null,null,null,null,null,null,null,null,null,0,0,null,null,null,null,null,null,null,null,null,null,null,0,0]
[null,null,null,null,null,null,null,null,null,null,null,null,null,null,null,null,null,null,null,null,null,null,null,null,null,null,null,null,null,null,null,null,0,0,null,null,null,null,null,null,null,null,null,null,null,0,0,null,null,null,null,null,null,null,null,null,null,null,0,0,null,null,null,null,null,null,null,null,null,null,null,0,0]
[null,null,null,null,null,null,null,null,null,null,null,null,null,null,null,null,null,null,null,null,null,null,null,null,null,null,null,null,null,null,null,null,0,0,null,null,null,null,null,null,null,null,null,null,null,0,0,null,null,null,null,null,null,null,null,null,null,null,0,0,null,null,null,null,null,null,null,null,null,null,null,0,0]
[null,null,null,null,null,null,null,null,null,null,null,null,null,null,null,null,null,null,null,null,null,null,null,null,null,null,null,null,null,null,null,null,0,0,null,null,null,null,null,null,null,null,null,null,null,0,0,null,null,null,null,null,null,null,null,null,null,null,0,0,null,null,null,null,null,null,null,null,null,null,null,0,0]
[null,null,null,null,null,null,null,null,null,null,null,null,null,null,null,null,null,null,null,null,null,null,null,null,null,null,null,null,null,null,null,null,0,0,null,null,null,null,null,null,null,null,null,null,null,0,0,null,null,null,null,null,null,null,null,null,null,null,0,0,null,null,null,null,null,null,null,null,null,null,null,0,0]
[null,null,null,null,null,null,null,null,null,null,null,null,null,null,null,null,null,null,null,null,null,null,null,null,null,null,null,null,null,null,null,null,0,0,null,null,null,null,null,null,null,null,null,null,null,0,0,null,null,null,null,null,null,null,null,null,null,null,0,0,null,null,null,null,null,null,null,null,null,null,null,0,0]
[null,null,null,null,null,null,null,null,null,null,null,null,null,null,null,null,null,null,null,null,null,null,null,null,null,null,null,null,null,null,null,null,0,0,null,null,null,null,null,null,null,null,null,null,null,0,0,null,null,null,null,null,null,null,null,null,null,null,0,0,null,null,null,null,null,null,null,null,null,null,null,0,0]
[null,null,null,null,null,null,null,null,null,null,null,null,null,null,null,null,null,null,null,null,null,null,null,null,null,null,null,null,null,null,null,null,0,0,null,null,null,null,null,null,null,null,null,null,null,0,0,null,null,null,null,null,null,null,null,null,null,null,0,0,null,null,null,null,null,null,null,null,null,null,null,0,0]
[null,null,null,null,null,null,null,null,null,null,null,null,null,null,null,null,null,null,null,null,null,null,null,null,null,null,null,null,null,null,null,null,0,0,null,null,null,null,null,null,null,null,null,null,null,0,0,null,null,null,null,null,null,null,null,null,null,null,0,0,null,null,null,null,null,null,null,null,null,null,null,0,0]
[null,null,null,null,null,null,null,null,null,null,null,null,null,null,null,null,null,null,null,null,null,null,null,null,null,null,null,null,null,null,null,null,0,0,null,null,null,null,null,null,null,null,null,null,null,0,0,null,null,null,null,null,null,null,null,null,null,null,0,0,null,null,null,null,null,null,null,null,null,null,null,0,0]
[null,null,null,null,null,null,null,null,null,null,null,null,null,null,null,null,null,null,null,null,null,null,null,null,null,null,null,null,null,null,null,null,{"$f":"SUM(V127,X127,Z127,AB127,AD127,AF127)","v":0},{"$f":"SUM(W127,Y127,AA127,AC127,AE127)","v":0},null,null,null,null,null,null,null,null,null,null,null,{"$f":"SUM(AI127,AK127,AM127,AO127,AQ127,AS127)","v":0},{"$f":"SUM(AJ127,AL127,AN127,AP127,AR127)","v":0},null,null,null,null,null,null,null,null,null,null,null,{"$f":"SUM(AV127,AX127,AZ127,BB127,BD127,BF127)","v":0},{"$f":"SUM(AW127,AY127,BA127,BC127,BE127)","v":0},null,null,null,null,null,null,null,null,null,null,null,0,0]
[null,null,null,null,null,null,null,null,null,null,null,null,null,null,null,null,null,null,null,null,null,null,null,null,null,null,null,null,null,null,null,null,0,0,null,null,null,null,null,null,null,null,null,null,null,0,0,null,null,null,null,null,null,null,null,null,null,null,0,0,null,null,null,null,null,null,null,null,null,null,null,0,0]
[null,null,null,null,null,null,null,null,null,null,null,null,null,null,null,null,null,null,null,null,null,null,null,null,null,null,null,null,null,null,null,null,0,0,null,null,null,null,null,null,null,null,null,null,null,0,0,null,null,null,null,null,null,null,null,null,null,null,0,0,null,null,null,null,null,null,null,null,null,null,null,0,0]
[null,null,null,null,null,null,null,null,null,null,null,null,null,null,null,null,null,null,null,null,null,null,null,null,null,null,null,null,null,null,null,null,0,0,null,null,null,null,null,null,null,null,null,null,null,0,0,null,null,null,null,null,null,null,null,null,null,null,0,0,null,null,null,null,null,null,null,null,null,null,null,0,0]
[null,null,null,null,null,null,null,null,null,null,null,null,null,null,null,null,null,null,null,null,null,null,null,null,null,null,null,null,null,null,null,null,0,0,null,null,null,null,null,null,null,null,null,null,null,0,0,null,null,null,null,null,null,null,null,null,null,null,0,0,null,null,null,null,null,null,null,null,null,null,null,0,0]
[null,null,null,null,null,null,null,null,null,null,null,null,null,null,null,null,null,null,null,null,null,null,null,null,null,null,null,null,null,null,null,null,0,0,null,null,null,null,null,null,null,null,null,null,null,0,0,null,null,null,null,null,null,null,null,null,null,null,0,0,null,null,null,null,null,null,null,null,null,null,null,0,0]
[null,null,null,null,null,null,null,null,null,null,null,null,null,null,null,null,null,null,null,null,null,null,null,null,null,null,null,null,null,null,null,null,0,0,null,null,null,null,null,null,null,null,null,null,null,0,0,null,null,null,null,null,null,null,null,null,null,null,0,0,null,null,null,null,null,null,null,null,null,null,null,0,0]
[null,null,null,null,null,null,null,null,null,null,null,null,null,null,null,null,null,null,null,null,null,null,null,null,null,null,null,null,null,null,null,null,{"$f":"SUM(V134,X134,Z134,AB134,AD134,AF134)","v":0},{"$f":"SUM(W134,Y134,AA134,AC134,AE134)","v":0},null,null,null,null,null,null,null,null,null,null,null,0,0,null,null,null,null,null,null,null,null,null,null,null,0,0,null,null,null,null,null,null,null,null,null,null,null,0,0]
[null,null,null,null,null,null,null,null,null,null,null,null,null,null,null,null,null,null,null,null,null,null,null,null,null,null,null,null,null,null,null,null,0,0,null,null,null,null,null,null,null,null,null,null,null,0,0,null,null,null,null,null,null,null,null,null,null,null,0,0,null,null,null,null,null,null,null,null,null,null,null,0,0]
[null,null,null,null,null,null,null,null,null,null,null,null,null,null,null,null,null,null,null,null,null,null,null,null,null,null,null,null,null,null,null,null,0,0,null,null,null,null,null,null,null,null,null,null,null,0,0,null,null,null,null,null,null,null,null,null,null,null,0,0,null,null,null,null,null,null,null,null,null,null,null,0,0]
[null,null,null,null,null,null,null,null,null,null,null,null,null,null,null,null,null,null,null,null,null,null,null,null,null,null,null,null,null,null,null,null,0,0,null,null,null,null,null,null,null,null,null,null,null,0,0,null,null,null,null,null,null,null,null,null,null,null,0,0,null,null,null,null,null,null,null,null,null,null,null,0,0]

{"sheet":"様式","index":1,"n_rows":36,"n_cols":15,"rows_kept":36,"cut":false,"hidden":false,"merged":[[3,0,3,2],[3,3,3,10],[0,0,0,10],[1,0,1,2],[1,3,1,10],[2,0,2,2],[2,3,2,10],[4,0,4,2],[4,3,4,10],[5,0,5,2],[5,3,5,10],[6,0,6,2],[6,3,6,10],[10,0,12,2],[10,3,10,4],[10,5,10,6],[10,7,10,8],[10,9,10,10],[11,3,11,4],[11,5,11,6],[11,7,11,8],[11,9,11,10],[12,3,12,4],[12,5,12,6],[12,7,12,8],[12,9,12,10],[7,0,7,2],[7,3,7,10],[8,0,9,2],[8,3,8,10],[9,3,9,10],[13,0,13,2],[13,3,13,6],[13,7,13,10],[14,0,14,2],[14,3,14,6],[14,7,14,10],[15,3,15,4],[15,5,15,6],[15,7,15,8],[15,9,15,10],[16,3,16,4],[16,5,16,6],[16,7,16,8],[16,9,16,10],[0,14,0,16],[33,0,35,1],[33,2,35,3],[21,0,26,1],[21,2,23,3],[24,2,26,3],[27,0,32,1],[27,2,29,3],[30,2,32,3],[17,0,17,2],[17,3,17,6],[17,7,17,10],[18,0,20,1],[18,2,20,3],[18,4,18,10],[15,0,16,2]]}
["自家用有償旅客運送者登録簿",null,null,null,null,null,null,null,null,null,null,"第２号様式（第５１条の５関係）",null,null,"目次"]
["登録番号",null,null,null,null,null,null,null,null,null,null,"←福祉のシートからコピペ"]
["登録年月日"]
["更新登録年月日"]
["有効期間",null,null,null,null,null,null,null,null,null,null,"本省様式はなし"]
["名称"]
["代表者の氏名"]
["住所"]
["運送の種別",null,null,"福祉有償運送"]
[null,null,null,"○"]
["事務所の名称及び位置",null,null,"名　　　　称",null,"位　　　　　置",null,"名　　　　称",null,"位　　　　　置"]
[]
[]
["路線又は運送の区域"]
["運送する旅客の範囲"]
["事業者協力型自家用有償旅客運送を行うときは協力を得る一般旅客自動車運送事業者の氏名又は名称及び住所",null,null,"氏名又は名称",null,"住　　　　所",null,"氏名又は名称",null,"住　　　　所"]
[]
["備考"]
["運送の種別",null,"事務所",null,"　　自家用有償旅客運送自動車の数"]
[null,null,null,null,"寝台車","車いす車","兼用車","回転シート車","セダン等","バ　ス","合　計"]
[null,null,null,null,"（軽自動車）","（軽自動車）","（軽自動車）","（軽自動車）","（軽自動車）",null,"（軽自動車）"]
["福祉有償運送"]
[]
[]
[]
[]
[]
[]
[]
[]
[]
[]
[]
[null,null,"合計"]
[null,null,null,null,{"$f":"SUM(E23+E26+E29+E32)","v":0},{"$f":"SUM(F23+F26+F29+F32)","v":0},0,0,0,0,{"$f":"SUM(E35:J35)","v":0}]
[null,null,null,null,{"$f":"SUM(E24+E27+E30+E33)","v":0},{"$f":"SUM(F24+F27+F30+F33)","v":0},{"$f":"SUM(G24+G27+G30+G33)","v":0},{"$f":"SUM(H24+H27+H30+H33)","v":0},{"$f":"SUM(I24+I27+I30+I33)","v":0},null,{"$f":"SUM(E36:I36)","v":0}]

{"sheet":"旅客の範囲","index":2,"n_rows":15,"n_cols":13,"rows_kept":15,"cut":false,"hidden":false,"merged":[[12,1,12,11],[13,1,13,11],[14,1,14,11],[1,0,1,11],[10,0,10,11],[2,1,2,11],[3,1,3,11],[4,1,4,11],[5,1,5,11],[6,1,6,11],[7,1,7,11],[8,1,8,11],[11,1,11,11]]}
["運送する旅客の範囲（福祉）"]
["新",null,null,null,null,null,null,null,null,null,null,null,"新はR2.11.27以降の更新登録の際に協議することをもって適用（本省回答より）"]
["イ","身体障害者福祉法第４条に規定する身体障害者",null,null,null,null,null,null,null,null,null,null,"旅客の範囲の拡大　→　変更登録"]
["ロ","精神保健及び精神障害者福祉に関する法律第５条に規定する精神障害者",null,null,null,null,null,null,null,null,null,null,"旅客の範囲の縮小　→　軽微変更届出"]
["ハ","障害者の雇用の促進等に関する法律第２条第４号に規定する知的障害者"]
["ニ","介護保険法第十九条第一項に規定する要介護認定を受けている者"]
["ホ","介護保険法第十九条第二項に規定する要支援認定を受けている者"]
["ヘ","介護保険施行規則第１４０条の６２の４第２号の厚生労働大臣が定める基準に該当する者（基本チェックリスト該当者）"]
["ト","その他肢体不自由、内部障害、知的障害、精神障害その他の障害を有する者"]
[]
["旧"]
["イ","身体障害者福祉法第４条に規定する身体障害者"]
["ロ","介護保険法第十九条第一項に規定する要介護認定を受けている者"]
["ハ","介護保険法第十九条第二項に規定する要支援認定を受けている者"]
["ニ","その他肢体不自由、内部障害、知的障害、精神障害その他の障害を有する者"]

{"sheet":"北旭市福第1号","index":3,"n_rows":36,"n_cols":15,"rows_kept":36,"cut":false,"hidden":false,"merged":[[0,0,0,10],[0,14,0,16],[1,0,1,2],[1,3,1,10],[2,0,2,2],[2,3,2,10],[3,0,3,2],[3,3,3,10],[4,0,4,2],[4,3,4,10],[5,0,5,2],[5,3,5,10],[6,0,6,2],[6,3,6,10],[7,0,7,2],[7,3,7,10],[8,0,9,2],[8,3,8,10],[9,3,9,10],[12,5,12,6],[12,7,12,8],[12,9,12,10],[13,0,13,2],[13,3,13,6],[13,7,13,10],[10,0,12,2],[10,3,10,4],[10,5,10,6],[10,7,10,8],[10,9,10,10],[11,3,11,4],[11,5,11,6],[11,7,11,8],[11,9,11,10],[12,3,12,4],[14,0,14,2],[14,3,14,6],[14,7,14,10],[15,0,16,2],[15,3,15,4],[15,5,15,6],[15,7,15,8],[15,9,15,10],[16,3,16,4],[16,5,16,6],[16,7,16,8],[16,9,16,10],[17,3,17,6],[17,7,17,10],[33,0,35,1],[33,2,35,3],[21,0,26,1],[21,2,23,3],[24,2,26,3],[27,0,32,1],[27,2,29,3],[30,2,32,3],[18,0,20,1],[18,2,20,3],[18,4,18,10],[17,0,17,2]]}
["自家用有償旅客運送者登録簿",null,null,null,null,null,null,null,null,null,null,"第２号様式（第５１条の５関係）",null,null,"目次"]
["登録番号",null,null,"北旭市福第1号",null,null,null,null,null,null,null,"←福祉のシートからコピペ"]
["登録年月日",null,null,"2006-10-01"]
["更新登録年月日",null,null,"2023-10-03"]
["有効期間",null,null,"2026-09-30",null,null,null,null,null,null,null,"本省様式はなし"]
["名称",null,null,"上富良野町"]
["代表者の氏名",null,null,"町長　斉藤　繁"]
["住所",null,null,"空知郡上富良野町大町２丁目２番１１号"]
["運送の種別",null,null,"福祉有償運送"]
[null,null,null,"○"]
["事務所の名称及び位置",null,null,"名　　　　称",null,"位　　　　　置",null,"名　　　　称",null,"位　　　　　置"]
[null,null,null,"上富良野町ラベンダーハイツ",null,"北海道空知郡上富良野町西１線北２４号"]
[]
["路線又は運送の区域",null,null,"上富良野町"]
["運送する旅客の範囲",null,null,"イ"]
["事業者協力型自家用有償旅客運送を行うときは協力を得る一般旅客自動車運送事業者の氏名又は名称及び住所",null,null,"氏名又は名称",null,"住　　　　所",null,"氏名又は名称",null,"住　　　　所"]
[]
["備考"]
["運送の種別",null,"事務所",null,"　　自家用有償旅客運送自動車の数"]
[null,null,null,null,"寝台車","車いす車","兼用車","回転シート車","セダン等","バ　ス","合　計"]
[null,null,null,null,"（軽自動車）","（軽自動車）","（軽自動車）","（軽自動車）","（軽自動車）",null,"（軽自動車）"]
["福祉有償運送",null,"上富良野町ラベンダーハイツ"]
[null,null,null,null,null,2,null,null,null,null,2]
[null,null,null,null,null,-1,null,null,null,null,-1]
[]
[null,null,null,null,null,null,null,null,null,null,0]
[null,null,null,null,null,null,null,null,null,null,0]
[]
[null,null,null,null,null,null,null,null,null,null,0]
[null,null,null,null,null,null,null,null,null,null,0]
[]
[null,null,null,null,null,null,null,null,null,null,0]
[null,null,null,null,null,null,null,null,null,null,0]
[null,null,"合計"]
[null,null,null,null,{"$f":"SUM(E23+E26+E29+E32)","v":0},{"$f":"SUM(F23+F26+F29+F32)","v":2},0,0,0,0,{"$f":"SUM(E35:J35)","v":2}]
[null,null,null,null,{"$f":"SUM(E24+E27+E30+E33)","v":0},{"$f":"SUM(F24+F27+F30+F33)","v":-1},{"$f":"SUM(G24+G27+G30+G33)","v":0},{"$f":"SUM(H24+H27+H30+H33)","v":0},{"$f":"SUM(I24+I27+I30+I33)","v":0},null,{"$f":"SUM(E36:I36)","v":-1}]

{"sheet":"北旭市福第5号","index":4,"n_rows":36,"n_cols":15,"rows_kept":36,"cut":false,"hidden":false,"merged":[[0,0,0,10],[0,14,0,16],[1,0,1,2],[1,3,1,10],[2,0,2,2],[2,3,2,10],[3,0,3,2],[3,3,3,10],[4,0,4,2],[4,3,4,10],[5,0,5,2],[5,3,5,10],[6,0,6,2],[6,3,6,10],[7,0,7,2],[7,3,7,10],[8,0,9,2],[8,3,8,10],[9,3,9,10],[12,5,12,6],[12,7,12,8],[12,9,12,10],[13,0,13,2],[13,3,13,6],[13,7,13,10],[10,0,12,2],[10,3,10,4],[10,5,10,6],[10,7,10,8],[10,9,10,10],[11,3,11,4],[11,5,11,6],[11,7,11,8],[11,9,11,10],[12,3,12,4],[14,0,14,2],[14,3,14,6],[14,7,14,10],[15,0,16,2],[15,3,15,4],[15,5,15,6],[15,7,15,8],[15,9,15,10],[16,3,16,4],[16,5,16,6],[16,7,16,8],[16,9,16,10],[17,3,17,6],[17,7,17,10],[33,0,35,1],[33,2,35,3],[21,0,26,1],[21,2,23,3],[24,2,26,3],[27,0,32,1],[27,2,29,3],[30,2,32,3],[18,0,20,1],[18,2,20,3],[18,4,18,10],[17,0,17,2]]}
["自家用有償旅客運送者登録簿",null,null,null,null,null,null,null,null,null,null,"第２号様式（第５１条の５関係）",null,null,"目次"]
["登録番号",null,null,"北旭市福第5号",null,null,null,null,null,null,null,"←福祉のシートからコピペ"]
["登録年月日",null,null,"2006-10-01"]
["更新登録年月日",null,null,"2023-10-11"]
["有効期間",null,null,"2026-09-30",null,null,null,null,null,null,null,"本省様式はなし"]
["名称",null,null,"中川町"]
["代表者の氏名",null,null,"町長　石垣　寿聰"]
["住所",null,null,"中川郡中川町字中川３３７番地"]
["運送の種別",null,null,"福祉有償運送"]
[null,null,null,"○"]
["事務所の名称及び位置",null,null,"名　　　　称",null,"位　　　　　置",null,"名　　　　称",null,"位　　　　　置"]
[null,null,null,"社会福祉法人中川町社会福祉協議会",null,"北海道中川郡中川町字中川337番地"]
[]
["路線又は運送の区域",null,null,"中川町"]
["運送する旅客の範囲",null,null,"イロニ"]
["事業者協力型自家用有償旅客運送を行うときは協力を得る一般旅客自動車運送事業者の氏名又は名称及び住所",null,null,"氏名又は名称",null,"住　　　　所",null,"氏名又は名称",null,"住　　　　所"]
[]
["備考"]
["運送の種別",null,"事務所",null,"　　自家用有償旅客運送自動車の数"]
[null,null,null,null,"寝台車","車いす車","兼用車","回転シート車","セダン等","バ　ス","合　計"]
[null,null,null,null,"（軽自動車）","（軽自動車）","（軽自動車）","（軽自動車）","（軽自動車）",null,"（軽自動車）"]
["福祉有償運送",null,"社会福祉法人中川町社会福祉協議会"]
[null,null,null,null,null,1,null,null,1,null,2]
[null,null,null,null,null,null,null,null,null,null,0]
[]
[null,null,null,null,null,null,null,null,null,null,0]
[null,null,null,null,null,null,null,null,null,null,0]
[]
[null,null,null,null,null,null,null,null,null,null,0]
[null,null,null,null,null,null,null,null,null,null,0]
[]
[null,null,null,null,null,null,null,null,null,null,0]
[null,null,null,null,null,null,null,null,null,null,0]
[null,null,"合計"]
[null,null,null,null,{"$f":"SUM(E23+E26+E29+E32)","v":0},{"$f":"SUM(F23+F26+F29+F32)","v":1},0,0,1,0,{"$f":"SUM(E35:J35)","v":2}]
[null,null,null,null,{"$f":"SUM(E24+E27+E30+E33)","v":0},{"$f":"SUM(F24+F27+F30+F33)","v":0},{"$f":"SUM(G24+G27+G30+G33)","v":0},{"$f":"SUM(H24+H27+H30+H33)","v":0},{"$f":"SUM(I24+I27+I30+I33)","v":0},null,{"$f":"SUM(E36:I36)","v":0}]

{"sheet":"北旭市福第6号","index":5,"n_rows":36,"n_cols":15,"rows_kept":36,"cut":false,"hidden":false,"merged":[[0,0,0,10],[0,14,0,16],[1,0,1,2],[1,3,1,10],[2,0,2,2],[2,3,2,10],[3,0,3,2],[3,3,3,10],[4,0,4,2],[4,3,4,10],[5,0,5,2],[5,3,5,10],[6,0,6,2],[6,3,6,10],[7,0,7,2],[7,3,7,10],[8,0,9,2],[8,3,8,10],[9,3,9,10],[12,5,12,6],[12,7,12,8],[12,9,12,10],[13,0,13,2],[13,3,13,6],[13,7,13,10],[10,0,12,2],[10,3,10,4],[10,5,10,6],[10,7,10,8],[10,9,10,10],[11,3,11,4],[11,5,11,6],[11,7,11,8],[11,9,11,10],[12,3,12,4],[14,0,14,2],[14,3,14,6],[14,7,14,10],[15,0,16,2],[15,3,15,4],[15,5,15,6],[15,7,15,8],[15,9,15,10],[16,3,16,4],[16,5,16,6],[16,7,16,8],[16,9,16,10],[17,3,17,6],[17,7,17,10],[33,0,35,1],[33,2,35,3],[21,0,26,1],[21,2,23,3],[24,2,26,3],[27,0,32,1],[27,2,29,3],[30,2,32,3],[18,0,20,1],[18,2,20,3],[18,4,18,10],[17,0,17,2]]}
["自家用有償旅客運送者登録簿",null,null,null,null,null,null,null,null,null,null,"第２号様式（第５１条の５関係）",null,null,"目次"]
["登録番号",null,null,"北旭市福第6号",null,null,null,null,null,null,null,"←福祉のシートからコピペ"]
["登録年月日",null,null,"2006-10-01"]
["更新登録年月日",null,null,"2024-03-28"]
["有効期間",null,null,"2026-09-30",null,null,null,null,null,null,null,"本省様式はなし"]
["名称",null,null,"利尻富士町"]
["代表者の氏名",null,null,"町長　　田村　祥三"]
["住所",null,null,"利尻郡利尻富士町鴛泊字富士野６番地"]
["運送の種別",null,null,"福祉有償運送"]
[null,null,null,"○"]
["事務所の名称及び位置",null,null,"名　　　　称",null,"位　　　　　置",null,"名　　　　称",null,"位　　　　　置"]
[null,null,null,"利尻富士町",null,"北海道利尻郡利尻富士町鴛泊字富士野6番地"]
[]
["路線又は運送の区域",null,null,"利尻富士町"]
["運送する旅客の範囲",null,null,"イロハニホ"]
["事業者協力型自家用有償旅客運送を行うときは協力を得る一般旅客自動車運送事業者の氏名又は名称及び住所",null,null,"氏名又は名称",null,"住　　　　所",null,"氏名又は名称",null,"住　　　　所"]
[]
["備考"]
["運送の種別",null,"事務所",null,"　　自家用有償旅客運送自動車の数"]
[null,null,null,null,"寝台車","車いす車","兼用車","回転シート車","セダン等","バ　ス","合　計"]
[null,null,null,null,"（軽自動車）","（軽自動車）","（軽自動車）","（軽自動車）","（軽自動車）",null,"（軽自動車）"]
["福祉有償運送",null,"利尻富士町"]
[null,null,null,null,null,null,1,null,2,null,3]
[null,null,null,null,null,null,null,null,-1,null,-1]
[]
[null,null,null,null,null,null,null,null,null,null,0]
[null,null,null,null,null,null,null,null,null,null,0]
[]
[null,null,null,null,null,null,null,null,null,null,0]
[null,null,null,null,null,null,null,null,null,null,0]
[]
[null,null,null,null,null,null,null,null,null,null,0]
[null,null,null,null,null,null,null,null,null,null,0]
[null,null,"合計"]
[null,null,null,null,{"$f":"SUM(E23+E26+E29+E32)","v":0},{"$f":"SUM(F23+F26+F29+F32)","v":0},1,0,2,0,{"$f":"SUM(E35:J35)","v":3}]
[null,null,null,null,{"$f":"SUM(E24+E27+E30+E33)","v":0},{"$f":"SUM(F24+F27+F30+F33)","v":0},{"$f":"SUM(G24+G27+G30+G33)","v":0},{"$f":"SUM(H24+H27+H30+H33)","v":0},{"$f":"SUM(I24+I27+I30+I33)","v":-1},null,{"$f":"SUM(E36:I36)","v":-1}]

{"sheet":"北旭市福第9号","index":6,"n_rows":36,"n_cols":15,"rows_kept":36,"cut":false,"hidden":false,"merged":[[0,0,0,10],[0,14,0,16],[1,0,1,2],[1,3,1,10],[2,0,2,2],[2,3,2,10],[3,0,3,2],[3,3,3,10],[4,0,4,2],[4,3,4,10],[5,0,5,2],[5,3,5,10],[6,0,6,2],[6,3,6,10],[7,0,7,2],[7,3,7,10],[8,0,9,2],[8,3,8,10],[9,3,9,10],[12,5,12,6],[12,7,12,8],[12,9,12,10],[13,0,13,2],[13,3,13,6],[13,7,13,10],[10,0,12,2],[10,3,10,4],[10,5,10,6],[10,7,10,8],[10,9,10,10],[11,3,11,4],[11,5,11,6],[11,7,11,8],[11,9,11,10],[12,3,12,4],[14,0,14,2],[14,3,14,6],[14,7,14,10],[15,0,16,2],[15,3,15,4],[15,5,15,6],[15,7,15,8],[15,9,15,10],[16,3,16,4],[16,5,16,6],[16,7,16,8],[16,9,16,10],[17,3,17,6],[17,7,17,10],[33,0,35,1],[33,2,35,3],[21,0,26,1],[21,2,23,3],[24,2,26,3],[27,0,32,1],[27,2,29,3],[30,2,32,3],[18,0,20,1],[18,2,20,3],[18,4,18,10],[17,0,17,2]]}
["自家用有償旅客運送者登録簿",null,null,null,null,null,null,null,null,null,null,"第２号様式（第５１条の５関係）",null,null,"目次"]
["登録番号",null,null,"北旭市福第9号",null,null,null,null,null,null,null,"←福祉のシートからコピペ"]
["登録年月日",null,null,"2006-10-01"]
["更新登録年月日",null,null,"2023-10-13"]
["有効期間",null,null,"2026-09-30",null,null,null,null,null,null,null,"本省様式はなし"]
["名称",null,null,"鷹栖町"]
["代表者の氏名",null,null,"町長　谷　寿男"]
["住所",null,null,"上川郡鷹栖町南１条３丁目５番１号"]
["運送の種別",null,null,"福祉有償運送"]
[null,null,null,"○"]
["事務所の名称及び位置",null,null,"名　　　　称",null,"位　　　　　置",null,"名　　　　称",null,"位　　　　　置"]
[null,null,null,"社会福祉法人さつき会",null,"上川郡鷹栖町南１条3丁目2番7号"]
[]
["路線又は運送の区域",null,null,"鷹栖町"]
["運送する旅客の範囲",null,null,"二"]
["事業者協力型自家用有償旅客運送を行うときは協力を得る一般旅客自動車運送事業者の氏名又は名称及び住所",null,null,"氏名又は名称",null,"住　　　　所",null,"氏名又は名称",null,"住　　　　所"]
[]
["備考"]
["運送の種別",null,"事務所",null,"　　自家用有償旅客運送自動車の数"]
[null,null,null,null,"寝台車","車いす車","兼用車","回転シート車","セダン等","バ　ス","合　計"]
[null,null,null,null,"（軽自動車）","（軽自動車）","（軽自動車）","（軽自動車）","（軽自動車）",null,"（軽自動車）"]
["福祉有償運送",null,"社会福祉法人さつき会"]
[null,null,null,null,null,null,1,null,null,null,1]
[null,null,null,null,null,null,null,null,null,null,0]
[]
[null,null,null,null,null,null,null,null,null,null,0]
[null,null,null,null,null,null,null,null,null,null,0]
[]
[null,null,null,null,null,null,null,null,null,null,0]
[null,null,null,null,null,null,null,null,null,null,0]
[]
[null,null,null,null,null,null,null,null,null,null,0]
[null,null,null,null,null,null,null,null,null,null,0]
[null,null,"合計"]
[null,null,null,null,{"$f":"SUM(E23+E26+E29+E32)","v":0},{"$f":"SUM(F23+F26+F29+F32)","v":0},1,0,0,0,{"$f":"SUM(E35:J35)","v":1}]
[null,null,null,null,{"$f":"SUM(E24+E27+E30+E33)","v":0},{"$f":"SUM(F24+F27+F30+F33)","v":0},{"$f":"SUM(G24+G27+G30+G33)","v":0},{"$f":"SUM(H24+H27+H30+H33)","v":0},{"$f":"SUM(I24+I27+I30+I33)","v":0},null,{"$f":"SUM(E36:I36)","v":0}]

{"sheet":"北旭市福第10号","index":7,"n_rows":36,"n_cols":15,"rows_kept":36,"cut":false,"hidden":false,"merged":[[0,0,0,10],[0,14,0,16],[1,0,1,2],[1,3,1,10],[2,0,2,2],[2,3,2,10],[3,0,3,2],[3,3,3,10],[4,0,4,2],[4,3,4,10],[5,0,5,2],[5,3,5,10],[6,0,6,2],[6,3,6,10],[7,0,7,2],[7,3,7,10],[8,0,9,2],[8,3,8,10],[9,3,9,10],[12,5,12,6],[12,7,12,8],[12,9,12,10],[13,0,13,2],[13,3,13,6],[13,7,13,10],[10,0,12,2],[10,3,10,4],[10,5,10,6],[10,7,10,8],[10,9,10,10],[11,3,11,4],[11,5,11,6],[11,7,11,8],[11,9,11,10],[12,3,12,4],[14,0,14,2],[14,3,14,6],[14,7,14,10],[15,0,16,2],[15,3,15,4],[15,5,15,6],[15,7,15,8],[15,9,15,10],[16,3,16,4],[16,5,16,6],[16,7,16,8],[16,9,16,10],[17,3,17,6],[17,7,17,10],[33,0,35,1],[33,2,35,3],[21,0,26,1],[21,2,23,3],[24,2,26,3],[27,0,32,1],[27,2,29,3],[30,2,32,3],[18,0,20,1],[18,2,20,3],[18,4,18,10],[17,0,17,2]]}
["自家用有償旅客運送者登録簿",null,null,null,null,null,null,null,null,null,null,"第２号様式（第５１条の５関係）",null,null,"目次"]
["登録番号",null,null,"北旭市福第10号",null,null,null,null,null,null,null,"←福祉のシートからコピペ"]
["登録年月日",null,null,"2006-10-01"]
["更新登録年月日",null,null,"2023-10-16"]
["有効期間",null,null,"2026-09-30",null,null,null,null,null,null,null,"本省様式はなし"]
["名称",null,null,"東川町"]
["代表者の氏名",null,null,"町長　菊地　伸"]
["住所",null,null,"上川郡東川町東町１丁目１６番１号"]
["運送の種別",null,null,"福祉有償運送"]
[null,null,null,"○"]
["事務所の名称及び位置",null,null,"名　　　　称",null,"位　　　　　置",null,"名　　　　称",null,"位　　　　　置"]
[null,null,null,"東川町役場",null,"上川郡東川町東町1丁目16番1号"]
[]
["路線又は運送の区域",null,null,"東川町"]
["運送する旅客の範囲",null,null,"イロハニホヘト"]
["事業者協力型自家用有償旅客運送を行うときは協力を得る一般旅客自動車運送事業者の氏名又は名称及び住所",null,null,"氏名又は名称",null,"住　　　　所",null,"氏名又は名称",null,"住　　　　所"]
[]
["備考"]
["運送の種別",null,"事務所",null,"　　自家用有償旅客運送自動車の数"]
[null,null,null,null,"寝台車","車いす車","兼用車","回転シート車","セダン等","バ　ス","合　計"]
[null,null,null,null,"（軽自動車）","（軽自動車）","（軽自動車）","（軽自動車）","（軽自動車）",null,"（軽自動車）"]
["福祉有償運送",null,"東川町役場"]
[null,null,null,null,null,null,1,null,null,null,1]
[null,null,null,null,null,null,null,null,null,null,0]
[]
[null,null,null,null,null,null,null,null,null,null,0]
[null,null,null,null,null,null,null,null,null,null,0]
[]
[null,null,null,null,null,null,null,null,null,null,0]
[null,null,null,null,null,null,null,null,null,null,0]
[]
[null,null,null,null,null,null,null,null,null,null,0]
[null,null,null,null,null,null,null,null,null,null,0]
[null,null,"合計"]
[null,null,null,null,{"$f":"SUM(E23+E26+E29+E32)","v":0},{"$f":"SUM(F23+F26+F29+F32)","v":0},1,0,0,0,{"$f":"SUM(E35:J35)","v":1}]
[null,null,null,null,{"$f":"SUM(E24+E27+E30+E33)","v":0},{"$f":"SUM(F24+F27+F30+F33)","v":0},{"$f":"SUM(G24+G27+G30+G33)","v":0},{"$f":"SUM(H24+H27+H30+H33)","v":0},{"$f":"SUM(I24+I27+I30+I33)","v":0},null,{"$f":"SUM(E36:I36)","v":0}]

{"sheet":"北旭市福第11号","index":8,"n_rows":36,"n_cols":15,"rows_kept":36,"cut":false,"hidden":false,"merged":[[0,0,0,10],[0,14,0,16],[1,0,1,2],[1,3,1,10],[2,0,2,2],[2,3,2,10],[3,0,3,2],[3,3,3,10],[4,0,4,2],[4,3,4,10],[5,0,5,2],[5,3,5,10],[6,0,6,2],[6,3,6,10],[7,0,7,2],[7,3,7,10],[8,0,9,2],[8,3,8,10],[9,3,9,10],[12,5,12,6],[12,7,12,8],[12,9,12,10],[13,0,13,2],[13,3,13,6],[13,7,13,10],[10,0,12,2],[10,3,10,4],[10,5,10,6],[10,7,10,8],[10,9,10,10],[11,3,11,4],[11,5,11,6],[11,7,11,8],[11,9,11,10],[12,3,12,4],[14,0,14,2],[14,3,14,6],[14,7,14,10],[15,0,16,2],[15,3,15,4],[15,5,15,6],[15,7,15,8],[15,9,15,10],[16,3,16,4],[16,5,16,6],[16,7,16,8],[16,9,16,10],[17,3,17,6],[17,7,17,10],[33,0,35,1],[33,2,35,3],[21,0,26,1],[21,2,23,3],[24,2,26,3],[27,0,32,1],[27,2,29,3],[30,2,32,3],[18,0,20,1],[18,2,20,3],[18,4,18,10],[17,0,17,2]]}
["自家用有償旅客運送者登録簿",null,null,null,null,null,null,null,null,null,null,"第２号様式（第５１条の５関係）",null,null,"目次"]
["登録番号",null,null,"北旭市福第11号",null,null,null,null,null,null,null,"←福祉のシートからコピペ"]
["登録年月日",null,null,"2006-10-01"]
["更新登録年月日",null,null,"2023-09-26"]
["有効期間",null,null,"2026-09-30",null,null,null,null,null,null,null,"本省様式はなし"]
["名称",null,null,"剣淵町"]
["代表者の氏名",null,null,"町長　早坂　純夫"]
["住所",null,null,"上川郡剣淵町仲町３７番１号"]
["運送の種別",null,null,"福祉有償運送"]
[null,null,null,"○"]
["事務所の名称及び位置",null,null,"名　　　　称",null,"位　　　　　置",null,"名　　　　称",null,"位　　　　　置"]
[null,null,null,"国立健康保険剣淵町立診療所",null,"上川郡剣淵町仲町28番1号"]
[]
["路線又は運送の区域",null,null,"剣淵町"]
["運送する旅客の範囲",null,null,"イニホト"]
["事業者協力型自家用有償旅客運送を行うときは協力を得る一般旅客自動車運送事業者の氏名又は名称及び住所",null,null,"氏名又は名称",null,"住　　　　所",null,"氏名又は名称",null,"住　　　　所"]
[]
["備考"]
["運送の種別",null,"事務所",null,"　　自家用有償旅客運送自動車の数"]
[null,null,null,null,"寝台車","車いす車","兼用車","回転シート車","セダン等","バ　ス","合　計"]
[null,null,null,null,"（軽自動車）","（軽自動車）","（軽自動車）","（軽自動車）","（軽自動車）",null,"（軽自動車）"]
["福祉有償運送",null,"国立健康保険剣淵町立診療所"]
[null,null,null,null,null,null,null,1,null,null,1]
[null,null,null,null,null,null,null,null,null,null,0]
[]
[null,null,null,null,null,null,null,null,null,null,0]
[null,null,null,null,null,null,null,null,null,null,0]
[]
[null,null,null,null,null,null,null,null,null,null,0]
[null,null,null,null,null,null,null,null,null,null,0]
[]
[null,null,null,null,null,null,null,null,null,null,0]
[null,null,null,null,null,null,null,null,null,null,0]
[null,null,"合計"]
[null,null,null,null,{"$f":"SUM(E23+E26+E29+E32)","v":0},{"$f":"SUM(F23+F26+F29+F32)","v":0},0,1,0,0,{"$f":"SUM(E35:J35)","v":1}]
[null,null,null,null,{"$f":"SUM(E24+E27+E30+E33)","v":0},{"$f":"SUM(F24+F27+F30+F33)","v":0},{"$f":"SUM(G24+G27+G30+G33)","v":0},{"$f":"SUM(H24+H27+H30+H33)","v":0},{"$f":"SUM(I24+I27+I30+I33)","v":0},null,{"$f":"SUM(E36:I36)","v":0}]

{"sheet":"北旭市福第12号","index":9,"n_rows":36,"n_cols":15,"rows_kept":36,"cut":false,"hidden":false,"merged":[[0,0,0,10],[0,14,0,16],[1,0,1,2],[1,3,1,10],[2,0,2,2],[2,3,2,10],[3,0,3,2],[3,3,3,10],[4,0,4,2],[4,3,4,10],[5,0,5,2],[5,3,5,10],[6,0,6,2],[6,3,6,10],[7,0,7,2],[7,3,7,10],[8,0,9,2],[8,3,8,10],[9,3,9,10],[12,5,12,6],[12,7,12,8],[12,9,12,10],[13,0,13,2],[13,3,13,6],[13,7,13,10],[10,0,12,2],[10,3,10,4],[10,5,10,6],[10,7,10,8],[10,9,10,10],[11,3,11,4],[11,5,11,6],[11,7,11,8],[11,9,11,10],[12,3,12,4],[14,0,14,2],[14,3,14,6],[14,7,14,10],[15,0,16,2],[15,3,15,4],[15,5,15,6],[15,7,15,8],[15,9,15,10],[16,3,16,4],[16,5,16,6],[16,7,16,8],[16,9,16,10],[17,3,17,6],[17,7,17,10],[33,0,35,1],[33,2,35,3],[21,0,26,1],[21,2,23,3],[24,2,26,3],[27,0,32,1],[27,2,29,3],[30,2,32,3],[18,0,20,1],[18,2,20,3],[18,4,18,10],[17,0,17,2]]}
["自家用有償旅客運送者登録簿",null,null,null,null,null,null,null,null,null,null,"第２号様式（第５１条の５関係）",null,null,"目次"]
["登録番号",null,null,"北旭市福第12号",null,null,null,null,null,null,null,"←福祉のシートからコピペ"]
["登録年月日",null,null,"2006-10-01"]
["更新登録年月日",null,null,"2023-08-09"]
["有効期間",null,null,"2026-09-30",null,null,null,null,null,null,null,"本省様式はなし"]
["名称",null,null,"猿払村"]
["代表者の氏名",null,null,"村長　　伊藤　浩一"]
["住所",null,null,"宗谷郡猿払村鬼志別西町１７２番地１"]
["運送の種別",null,null,"福祉有償運送"]
[null,null,null,"○"]
["事務所の名称及び位置",null,null,"名　　　　称",null,"位　　　　　置",null,"名　　　　称",null,"位　　　　　置"]
[null,null,null,"猿払村運営有償運送事務所",null,"宗谷郡猿払村鬼志別南町243番地"]
[]
["路線又は運送の区域",null,null,"猿払村"]
["運送する旅客の範囲",null,null,"イロハニホヘト"]
["事業者協力型自家用有償旅客運送を行うときは協力を得る一般旅客自動車運送事業者の氏名又は名称及び住所",null,null,"氏名又は名称",null,"住　　　　所",null,"氏名又は名称",null,"住　　　　所"]
[]
["備考"]
["運送の種別",null,"事務所",null,"　　自家用有償旅客運送自動車の数"]
[null,null,null,null,"寝台車","車いす車","兼用車","回転シート車","セダン等","バ　ス","合　計"]
[null,null,null,null,"（軽自動車）","（軽自動車）","（軽自動車）","（軽自動車）","（軽自動車）",null,"（軽自動車）"]
["福祉有償運送",null,"猿払村運営有償運送事務所"]
[null,null,null,null,null,3,null,null,2,null,5]
[null,null,null,null,null,null,null,null,null,null,0]
[]
[null,null,null,null,null,null,null,null,null,null,0]
[null,null,null,null,null,null,null,null,null,null,0]
[]
[null,null,null,null,null,null,null,null,null,null,0]
[null,null,null,null,null,null,null,null,null,null,0]
[]
[null,null,null,null,null,null,null,null,null,null,0]
[null,null,null,null,null,null,null,null,null,null,0]
[null,null,"合計"]
[null,null,null,null,{"$f":"SUM(E23+E26+E29+E32)","v":0},{"$f":"SUM(F23+F26+F29+F32)","v":3},0,0,2,0,{"$f":"SUM(E35:J35)","v":5}]
[null,null,null,null,{"$f":"SUM(E24+E27+E30+E33)","v":0},{"$f":"SUM(F24+F27+F30+F33)","v":0},{"$f":"SUM(G24+G27+G30+G33)","v":0},{"$f":"SUM(H24+H27+H30+H33)","v":0},{"$f":"SUM(I24+I27+I30+I33)","v":0},null,{"$f":"SUM(E36:I36)","v":0}]

{"sheet":"北旭市福第13号","index":10,"n_rows":36,"n_cols":15,"rows_kept":36,"cut":false,"hidden":false,"merged":[[0,0,0,10],[0,14,0,16],[1,0,1,2],[1,3,1,10],[2,0,2,2],[2,3,2,10],[3,0,3,2],[3,3,3,10],[4,0,4,2],[4,3,4,10],[5,0,5,2],[5,3,5,10],[6,0,6,2],[6,3,6,10],[7,0,7,2],[7,3,7,10],[8,0,9,2],[8,3,8,10],[9,3,9,10],[12,5,12,6],[12,7,12,8],[12,9,12,10],[13,0,13,2],[13,3,13,6],[13,7,13,10],[10,0,12,2],[10,3,10,4],[10,5,10,6],[10,7,10,8],[10,9,10,10],[11,3,11,4],[11,5,11,6],[11,7,11,8],[11,9,11,10],[12,3,12,4],[14,0,14,2],[14,3,14,6],[14,7,14,10],[15,0,16,2],[15,3,15,4],[15,5,15,6],[15,7,15,8],[15,9,15,10],[16,3,16,4],[16,5,16,6],[16,7,16,8],[16,9,16,10],[17,3,17,6],[17,7,17,10],[33,0,35,1],[33,2,35,3],[21,0,26,1],[21,2,23,3],[24,2,26,3],[27,0,32,1],[27,2,29,3],[30,2,32,3],[18,0,20,1],[18,2,20,3],[18,4,18,10],[17,0,17,2]]}
["自家用有償旅客運送者登録簿",null,null,null,null,null,null,null,null,null,null,"第２号様式（第５１条の５関係）",null,null,"目次"]
["登録番号",null,null,"北旭市福第13号",null,null,null,null,null,null,null,"←福祉のシートからコピペ"]
["登録年月日",null,null,"2006-10-01"]
["更新登録年月日",null,null,"2023-09-29"]
["有効期間",null,null,"2026-09-30",null,null,null,null,null,null,null,"本省様式はなし"]
["名称",null,null,"上川町"]
["代表者の氏名",null,null,"佐藤　芳治"]
["住所",null,null,"上川郡上川町南町１８０番地"]
["運送の種別",null,null,"福祉有償運送"]
[null,null,null,"○"]
["事務所の名称及び位置",null,null,"名　　　　称",null,"位　　　　　置",null,"名　　　　称",null,"位　　　　　置"]
[null,null,null,"上川町役場",null,"上川町南町１８０番地"]
[]
["路線又は運送の区域",null,null,"上川町"]
["運送する旅客の範囲",null,null,"ト"]
["事業者協力型自家用有償旅客運送を行うときは協力を得る一般旅客自動車運送事業者の氏名又は名称及び住所",null,null,"氏名又は名称",null,"住　　　　所",null,"氏名又は名称",null,"住　　　　所"]
[]
["備考"]
["運送の種別",null,"事務所",null,"　　自家用有償旅客運送自動車の数"]
[null,null,null,null,"寝台車","車いす車","兼用車","回転シート車","セダン等","バ　ス","合　計"]
[null,null,null,null,"（軽自動車）","（軽自動車）","（軽自動車）","（軽自動車）","（軽自動車）",null,"（軽自動車）"]
["福祉有償運送",null,"上川町役場"]
[null,null,null,null,null,null,null,null,1,null,1]
[null,null,null,null,null,null,null,null,null,null,0]
[]
[null,null,null,null,null,null,null,null,null,null,0]
[null,null,null,null,null,null,null,null,null,null,0]
[]
[null,null,null,null,null,null,null,null,null,null,0]
[null,null,null,null,null,null,null,null,null,null,0]
[]
[null,null,null,null,null,null,null,null,null,null,0]
[null,null,null,null,null,null,null,null,null,null,0]
[null,null,"合計"]
[null,null,null,null,{"$f":"SUM(E23+E26+E29+E32)","v":0},{"$f":"SUM(F23+F26+F29+F32)","v":0},0,0,1,0,{"$f":"SUM(E35:J35)","v":1}]
[null,null,null,null,{"$f":"SUM(E24+E27+E30+E33)","v":0},{"$f":"SUM(F24+F27+F30+F33)","v":0},{"$f":"SUM(G24+G27+G30+G33)","v":0},{"$f":"SUM(H24+H27+H30+H33)","v":0},{"$f":"SUM(I24+I27+I30+I33)","v":0},null,{"$f":"SUM(E36:I36)","v":0}]

{"sheet":"北旭福第2号","index":11,"n_rows":36,"n_cols":15,"rows_kept":36,"cut":false,"hidden":false,"merged":[[0,0,0,10],[0,14,0,16],[1,0,1,2],[1,3,1,10],[2,0,2,2],[2,3,2,10],[3,0,3,2],[3,3,3,10],[4,0,4,2],[4,3,4,10],[5,0,5,2],[5,3,5,10],[6,0,6,2],[6,3,6,10],[7,0,7,2],[7,3,7,10],[8,0,9,2],[8,3,8,10],[9,3,9,10],[12,5,12,6],[12,7,12,8],[12,9,12,10],[13,0,13,2],[13,3,13,6],[13,7,13,10],[10,0,12,2],[10,3,10,4],[10,5,10,6],[10,7,10,8],[10,9,10,10],[11,3,11,4],[11,5,11,6],[11,7,11,8],[11,9,11,10],[12,3,12,4],[14,0,14,2],[14,3,14,6],[14,7,14,10],[15,0,16,2],[15,3,15,4],[15,5,15,6],[15,7,15,8],[15,9,15,10],[16,3,16,4],[16,5,16,6],[16,7,16,8],[16,9,16,10],[17,3,17,6],[17,7,17,10],[33,0,35,1],[33,2,35,3],[21,0,26,1],[21,2,23,3],[24,2,26,3],[27,0,32,1],[27,2,29,3],[30,2,32,3],[18,0,20,1],[18,2,20,3],[18,4,18,10],[17,0,17,2]]}
["自家用有償旅客運送者登録簿",null,null,null,null,null,null,null,null,null,null,"第２号様式（第５１条の５関係）",null,null,"目次"]
["登録番号",null,null,"北旭福第2号",null,null,null,null,null,null,null,"←福祉のシートからコピペ"]
["登録年月日",null,null,"2006-10-01"]
["更新登録年月日",null,null,"2022-04-19"]
["有効期間",null,null,"2025-04-30",null,null,null,null,null,null,null,"本省様式はなし"]
["名称",null,null,"社会福祉法人　南富良野社会福祉協議会"]
["代表者の氏名",null,null,"会長　上林　康政"]
["住所",null,null,"空知郡南富良野町字幾寅708番地"]
["運送の種別",null,null,"福祉有償運送"]
[null,null,null,"○"]
["事務所の名称及び位置",null,null,"名　　　　称",null,"位　　　　　置",null,"名　　　　称",null,"位　　　　　置"]
[null,null,null,"社会福祉法人南富良野町社会福祉協議会",null,"空知郡南富良野町字幾寅708番地"]
[]
["路線又は運送の区域",null,null,"南富良野町"]
["運送する旅客の範囲",null,null,"イニホヘト"]
["事業者協力型自家用有償旅客運送を行うときは協力を得る一般旅客自動車運送事業者の氏名又は名称及び住所",null,null,"氏名又は名称",null,"住　　　　所",null,"氏名又は名称",null,"住　　　　所"]
[]
["備考"]
["運送の種別",null,"事務所",null,"　　自家用有償旅客運送自動車の数"]
[null,null,null,null,"寝台車","車いす車","兼用車","回転シート車","セダン等","バ　ス","合　計"]
[null,null,null,null,"（軽自動車）","（軽自動車）","（軽自動車）","（軽自動車）","（軽自動車）",null,"（軽自動車）"]
["福祉有償運送",null,"社会福祉法人南富良野町社会福祉協議会"]
[null,null,null,null,null,1,1,null,2,null,4]
[null,null,null,null,null,null,null,null,-1,null,-1]
[]
[null,null,null,null,null,null,null,null,null,null,0]
[null,null,null,null,null,null,null,null,null,null,0]
[]
[null,null,null,null,null,null,null,null,null,null,0]
[null,null,null,null,null,null,null,null,null,null,0]
[]
[null,null,null,null,null,null,null,null,null,null,0]
[null,null,null,null,null,null,null,null,null,null,0]
[null,null,"合計"]
[null,null,null,null,{"$f":"SUM(E23+E26+E29+E32)","v":0},{"$f":"SUM(F23+F26+F29+F32)","v":1},1,0,2,0,{"$f":"SUM(E35:J35)","v":4}]
[null,null,null,null,{"$f":"SUM(E24+E27+E30+E33)","v":0},{"$f":"SUM(F24+F27+F30+F33)","v":0},{"$f":"SUM(G24+G27+G30+G33)","v":0},{"$f":"SUM(H24+H27+H30+H33)","v":0},{"$f":"SUM(I24+I27+I30+I33)","v":-1},null,{"$f":"SUM(E36:I36)","v":-1}]

{"sheet":"北旭福第5号","index":12,"n_rows":36,"n_cols":15,"rows_kept":36,"cut":false,"hidden":false,"merged":[[0,0,0,10],[0,14,0,16],[1,0,1,2],[1,3,1,10],[2,0,2,2],[2,3,2,10],[3,0,3,2],[3,3,3,10],[4,0,4,2],[4,3,4,10],[5,0,5,2],[5,3,5,10],[6,0,6,2],[6,3,6,10],[7,0,7,2],[7,3,7,10],[8,0,9,2],[8,3,8,10],[9,3,9,10],[12,5,12,6],[12,7,12,8],[12,9,12,10],[13,0,13,2],[13,3,13,6],[13,7,13,10],[10,0,12,2],[10,3,10,4],[10,5,10,6],[10,7,10,8],[10,9,10,10],[11,3,11,4],[11,5,11,6],[11,7,11,8],[11,9,11,10],[12,3,12,4],[14,0,14,2],[14,3,14,6],[14,7,14,10],[15,0,16,2],[15,3,15,4],[15,5,15,6],[15,7,15,8],[15,9,15,10],[16,3,16,4],[16,5,16,6],[16,7,16,8],[16,9,16,10],[17,3,17,6],[17,7,17,10],[33,0,35,1],[33,2,35,3],[21,0,26,1],[21,2,23,3],[24,2,26,3],[27,0,32,1],[27,2,29,3],[30,2,32,3],[18,0,20,1],[18,2,20,3],[18,4,18,10],[17,0,17,2]]}
["自家用有償旅客運送者登録簿",null,null,null,null,null,null,null,null,null,null,"第２号様式（第５１条の５関係）",null,null,"目次"]
["登録番号",null,null,"北旭福第5号",null,null,null,null,null,null,null,"←福祉のシートからコピペ"]
["登録年月日",null,null,"2006-10-01"]
["更新登録年月日",null,null,"2023-03-28"]
["有効期間",null,null,"2026-03-31",null,null,null,null,null,null,null,"本省様式はなし"]
["名称",null,null,"特定非営利活動法人　ゆい・ゆい"]
["代表者の氏名",null,null,"理事長　野々村　雅人"]
["住所",null,null,"旭川市神楽岡8条4丁目3番4号"]
["運送の種別",null,null,"福祉有償運送"]
[null,null,null,"○"]
["事務所の名称及び位置",null,null,"名　　　　称",null,"位　　　　　置",null,"名　　　　称",null,"位　　　　　置"]
[null,null,null,"特定非営利活動法人　ゆい・ゆい",null,"旭川市神楽岡8条4丁目3番4号"]
[null,null,null,"ゆい・ゆいさんぽ",null,"旭川市東光１７条４丁目５番３号"]
["路線又は運送の区域",null,null,"旭川市"]
["運送する旅客の範囲",null,null,"イハト"]
["事業者協力型自家用有償旅客運送を行うときは協力を得る一般旅客自動車運送事業者の氏名又は名称及び住所",null,null,"氏名又は名称",null,"住　　　　所",null,"氏名又は名称",null,"住　　　　所"]
[]
["備考"]
["運送の種別",null,"事務所",null,"　　自家用有償旅客運送自動車の数"]
[null,null,null,null,"寝台車","車いす車","兼用車","回転シート車","セダン等","バ　ス","合　計"]
[null,null,null,null,"（軽自動車）","（軽自動車）","（軽自動車）","（軽自動車）","（軽自動車）",null,"（軽自動車）"]
["福祉有償運送",null,"特定非営利活動法人　ゆい・ゆい"]
[null,null,null,null,null,null,null,null,2,null,2]
[null,null,null,null,null,null,null,null,-1,null,-1]
[null,null,"ゆい・ゆいさんぽ"]
[null,null,null,null,null,null,null,1,1,null,2]
[null,null,null,null,null,null,null,null,null,null,0]
[]
[null,null,null,null,null,null,null,null,null,null,0]
[null,null,null,null,null,null,null,null,null,null,0]
[]
[null,null,null,null,null,null,null,null,null,null,0]
[null,null,null,null,null,null,null,null,null,null,0]
[null,null,"合計"]
[null,null,null,null,{"$f":"SUM(E23+E26+E29+E32)","v":0},{"$f":"SUM(F23+F26+F29+F32)","v":0},0,1,3,0,{"$f":"SUM(E35:J35)","v":4}]
[null,null,null,null,{"$f":"SUM(E24+E27+E30+E33)","v":0},{"$f":"SUM(F24+F27+F30+F33)","v":0},{"$f":"SUM(G24+G27+G30+G33)","v":0},{"$f":"SUM(H24+H27+H30+H33)","v":0},{"$f":"SUM(I24+I27+I30+I33)","v":-1},null,{"$f":"SUM(E36:I36)","v":-1}]

{"sheet":"北旭福第6号","index":13,"n_rows":36,"n_cols":15,"rows_kept":36,"cut":false,"hidden":false,"merged":[[0,0,0,10],[0,14,0,16],[1,0,1,2],[1,3,1,10],[2,0,2,2],[2,3,2,10],[3,0,3,2],[3,3,3,10],[4,0,4,2],[4,3,4,10],[5,0,5,2],[5,3,5,10],[6,0,6,2],[6,3,6,10],[7,0,7,2],[7,3,7,10],[8,0,9,2],[8,3,8,10],[9,3,9,10],[12,5,12,6],[12,7,12,8],[12,9,12,10],[13,0,13,2],[13,3,13,6],[13,7,13,10],[10,0,12,2],[10,3,10,4],[10,5,10,6],[10,7,10,8],[10,9,10,10],[11,3,11,4],[11,5,11,6],[11,7,11,8],[11,9,11,10],[12,3,12,4],[14,0,14,2],[14,3,14,6],[14,7,14,10],[15,0,16,2],[15,3,15,4],[15,5,15,6],[15,7,15,8],[15,9,15,10],[16,3,16,4],[16,5,16,6],[16,7,16,8],[16,9,16,10],[17,3,17,6],[17,7,17,10],[33,0,35,1],[33,2,35,3],[21,0,26,1],[21,2,23,3],[24,2,26,3],[27,0,32,1],[27,2,29,3],[30,2,32,3],[18,0,20,1],[18,2,20,3],[18,4,18,10],[17,0,17,2]]}
["自家用有償旅客運送者登録簿",null,null,null,null,null,null,null,null,null,null,"第２号様式（第５１条の５関係）",null,null,"目次"]
["登録番号",null,null,"北旭福第6号",null,null,null,null,null,null,null,"←福祉のシートからコピペ"]
["登録年月日",null,null,"2007-08-06"]
["更新登録年月日",null,null,"2021-09-17"]
["有効期間",null,null,"2024-08-31",null,null,null,null,null,null,null,"本省様式はなし"]
["名称",null,null,"社会福祉法人　東川町社会福祉協議会"]
["代表者の氏名",null,null,"会長　永江　竜心"]
["住所",null,null,"上川郡東川町東町1丁目7番14号"]
["運送の種別",null,null,"福祉有償運送"]
[null,null,null,"○"]
["事務所の名称及び位置",null,null,"名　　　　称",null,"位　　　　　置",null,"名　　　　称",null,"位　　　　　置"]
[null,null,null,"東川町社会福祉協議会",null,"上川郡東川町東町1丁目7番14号"]
[]
["路線又は運送の区域",null,null,"東川町"]
["運送する旅客の範囲",null,null,"イロ　ニホ　ト"]
["事業者協力型自家用有償旅客運送を行うときは協力を得る一般旅客自動車運送事業者の氏名又は名称及び住所",null,null,"氏名又は名称",null,"住　　　　所",null,"氏名又は名称",null,"住　　　　所"]
[]
["備考"]
["運送の種別",null,"事務所",null,"　　自家用有償旅客運送自動車の数"]
[null,null,null,null,"寝台車","車いす車","兼用車","回転シート車","セダン等","バ　ス","合　計"]
[null,null,null,null,"（軽自動車）","（軽自動車）","（軽自動車）","（軽自動車）","（軽自動車）",null,"（軽自動車）"]
["福祉有償運送",null,"東川町社会福祉協議会"]
[null,null,null,null,null,2,null,1,5,null,8]
[null,null,null,null,null,-2,null,null,-5,null,-7]
[]
[null,null,null,null,null,null,null,null,null,null,0]
[null,null,null,null,null,null,null,null,null,null,0]
[]
[null,null,null,null,null,null,null,null,null,null,0]
[null,null,null,null,null,null,null,null,null,null,0]
[]
[null,null,null,null,null,null,null,null,null,null,0]
[null,null,null,null,null,null,null,null,null,null,0]
[null,null,"合計"]
[null,null,null,null,{"$f":"SUM(E23+E26+E29+E32)","v":0},{"$f":"SUM(F23+F26+F29+F32)","v":2},0,1,5,0,{"$f":"SUM(E35:J35)","v":8}]
[null,null,null,null,{"$f":"SUM(E24+E27+E30+E33)","v":0},{"$f":"SUM(F24+F27+F30+F33)","v":-2},{"$f":"SUM(G24+G27+G30+G33)","v":0},{"$f":"SUM(H24+H27+H30+H33)","v":0},{"$f":"SUM(I24+I27+I30+I33)","v":-5},null,{"$f":"SUM(E36:I36)","v":-7}]

{"sheet":"北旭福第7号","index":14,"n_rows":36,"n_cols":15,"rows_kept":36,"cut":false,"hidden":false,"merged":[[0,0,0,10],[0,14,0,16],[1,0,1,2],[1,3,1,10],[2,0,2,2],[2,3,2,10],[3,0,3,2],[3,3,3,10],[4,0,4,2],[4,3,4,10],[5,0,5,2],[5,3,5,10],[6,0,6,2],[6,3,6,10],[7,0,7,2],[7,3,7,10],[8,0,9,2],[8,3,8,10],[9,3,9,10],[12,5,12,6],[12,7,12,8],[12,9,12,10],[13,0,13,2],[13,3,13,6],[13,7,13,10],[10,0,12,2],[10,3,10,4],[10,5,10,6],[10,7,10,8],[10,9,10,10],[11,3,11,4],[11,5,11,6],[11,7,11,8],[11,9,11,10],[12,3,12,4],[14,0,14,2],[14,3,14,6],[14,7,14,10],[15,0,16,2],[15,3,15,4],[15,5,15,6],[15,7,15,8],[15,9,15,10],[16,3,16,4],[16,5,16,6],[16,7,16,8],[16,9,16,10],[17,3,17,6],[17,7,17,10],[33,0,35,1],[33,2,35,3],[21,0,26,1],[21,2,23,3],[24,2,26,3],[27,0,32,1],[27,2,29,3],[30,2,32,3],[18,0,20,1],[18,2,20,3],[18,4,18,10],[17,0,17,2]]}
["自家用有償旅客運送者登録簿",null,null,null,null,null,null,null,null,null,null,"第２号様式（第５１条の５関係）",null,null,"目次"]
["登録番号",null,null,"北旭福第7号",null,null,null,null,null,null,null,"←福祉のシートからコピペ"]
["登録年月日",null,null,"2006-10-01"]
["更新登録年月日",null,null,"2022-09-21"]
["有効期間",null,null,"2025-09-30",null,null,null,null,null,null,null,"本省様式はなし"]
["名称",null,null,"社会福祉法人　北竜町社会福祉協議会"]
["代表者の氏名",null,null,"会長　山本　剛嗣"]
["住所",null,null,"雨竜郡北竜町字和１９番地６"]
["運送の種別",null,null,"福祉有償運送"]
[null,null,null,"○"]
["事務所の名称及び位置",null,null,"名　　　　称",null,"位　　　　　置",null,"名　　　　称",null,"位　　　　　置"]
[null,null,null,"社会福祉法人北竜町社会福祉協議会",null,"雨竜郡北竜町字和１９番地６"]
[]
["路線又は運送の区域",null,null,"北竜町"]
["運送する旅客の範囲",null,null,"　ニホ"]
["事業者協力型自家用有償旅客運送を行うときは協力を得る一般旅客自動車運送事業者の氏名又は名称及び住所",null,null,"氏名又は名称",null,"住　　　　所",null,"氏名又は名称",null,"住　　　　所"]
[]
["備考"]
["運送の種別",null,"事務所",null,"　　自家用有償旅客運送自動車の数"]
[null,null,null,null,"寝台車","車いす車","兼用車","回転シート車","セダン等","バ　ス","合　計"]
[null,null,null,null,"（軽自動車）","（軽自動車）","（軽自動車）","（軽自動車）","（軽自動車）",null,"（軽自動車）"]
["福祉有償運送",null,"社会福祉法人北竜町社会福祉協議会"]
[null,null,null,null,null,null,1,null,null,null,1]
[null,null,null,null,null,null,null,null,null,null,0]
[]
[null,null,null,null,null,null,null,null,null,null,0]
[null,null,null,null,null,null,null,null,null,null,0]
[]
[null,null,null,null,null,null,null,null,null,null,0]
[null,null,null,null,null,null,null,null,null,null,0]
[]
[null,null,null,null,null,null,null,null,null,null,0]
[null,null,null,null,null,null,null,null,null,null,0]
[null,null,"合計"]
[null,null,null,null,{"$f":"SUM(E23+E26+E29+E32)","v":0},{"$f":"SUM(F23+F26+F29+F32)","v":0},1,0,0,0,{"$f":"SUM(E35:J35)","v":1}]
[null,null,null,null,{"$f":"SUM(E24+E27+E30+E33)","v":0},{"$f":"SUM(F24+F27+F30+F33)","v":0},{"$f":"SUM(G24+G27+G30+G33)","v":0},{"$f":"SUM(H24+H27+H30+H33)","v":0},{"$f":"SUM(I24+I27+I30+I33)","v":0},null,{"$f":"SUM(E36:I36)","v":0}]

{"sheet":"北旭福第10号","index":15,"n_rows":36,"n_cols":15,"rows_kept":36,"cut":false,"hidden":false,"merged":[[0,0,0,10],[0,14,0,16],[1,0,1,2],[1,3,1,10],[2,0,2,2],[2,3,2,10],[3,0,3,2],[3,3,3,10],[4,0,4,2],[4,3,4,10],[5,0,5,2],[5,3,5,10],[6,0,6,2],[6,3,6,10],[7,0,7,2],[7,3,7,10],[8,0,9,2],[8,3,8,10],[9,3,9,10],[12,5,12,6],[12,7,12,8],[12,9,12,10],[13,0,13,2],[13,3,13,6],[13,7,13,10],[10,0,12,2],[10,3,10,4],[10,5,10,6],[10,7,10,8],[10,9,10,10],[11,3,11,4],[11,5,11,6],[11,7,11,8],[11,9,11,10],[12,3,12,4],[14,0,14,2],[14,3,14,6],[14,7,14,10],[15,0,16,2],[15,3,15,4],[15,5,15,6],[15,7,15,8],[15,9,15,10],[16,3,16,4],[16,5,16,6],[16,7,16,8],[16,9,16,10],[17,3,17,6],[17,7,17,10],[33,0,35,1],[33,2,35,3],[21,0,26,1],[21,2,23,3],[24,2,26,3],[27,0,32,1],[27,2,29,3],[30,2,32,3],[18,0,20,1],[18,2,20,3],[18,4,18,10],[17,0,17,2]]}
["自家用有償旅客運送者登録簿",null,null,null,null,null,null,null,null,null,null,"第２号様式（第５１条の５関係）",null,null,"目次"]
["登録番号",null,null,"北旭福第10号",null,null,null,null,null,null,null,"←福祉のシートからコピペ"]
["登録年月日",null,null,"2006-10-01"]
["更新登録年月日",null,null,"2023-01-25"]
["有効期間",null,null,"2026-01-31",null,null,null,null,null,null,null,"本省様式はなし"]
["名称",null,null,"社会福祉法人　愛別町社会福祉協議会"]
["代表者の氏名",null,null,"理事長　鈴木　彰"]
["住所",null,null,"上川郡愛別町字本町３４５番地１"]
["運送の種別",null,null,"福祉有償運送"]
[null,null,null,"○"]
["事務所の名称及び位置",null,null,"名　　　　称",null,"位　　　　　置",null,"名　　　　称",null,"位　　　　　置"]
[null,null,null,"社会福祉法人愛別町社会福祉協議会",null,"愛別町字本町３４５番地の１"]
[]
["路線又は運送の区域",null,null,"愛別町"]
["運送する旅客の範囲",null,null,"イニホト"]
["事業者協力型自家用有償旅客運送を行うときは協力を得る一般旅客自動車運送事業者の氏名又は名称及び住所",null,null,"氏名又は名称",null,"住　　　　所",null,"氏名又は名称",null,"住　　　　所"]
[]
["備考"]
["運送の種別",null,"事務所",null,"　　自家用有償旅客運送自動車の数"]
[null,null,null,null,"寝台車","車いす車","兼用車","回転シート車","セダン等","バ　ス","合　計"]
[null,null,null,null,"（軽自動車）","（軽自動車）","（軽自動車）","（軽自動車）","（軽自動車）",null,"（軽自動車）"]
["福祉有償運送",null,"社会福祉法人愛別町社会福祉協議会"]
[null,null,null,null,null,null,1,null,null,null,1]
[null,null,null,null,null,null,null,null,null,null,0]
[]
[null,null,null,null,null,null,null,null,null,null,0]
[null,null,null,null,null,null,null,null,null,null,0]
[]
[null,null,null,null,null,null,null,null,null,null,0]
[null,null,null,null,null,null,null,null,null,null,0]
[]
[null,null,null,null,null,null,null,null,null,null,0]
[null,null,null,null,null,null,null,null,null,null,0]
[null,null,"合計"]
[null,null,null,null,{"$f":"SUM(E23+E26+E29+E32)","v":0},{"$f":"SUM(F23+F26+F29+F32)","v":0},1,0,0,0,{"$f":"SUM(E35:J35)","v":1}]
[null,null,null,null,{"$f":"SUM(E24+E27+E30+E33)","v":0},{"$f":"SUM(F24+F27+F30+F33)","v":0},{"$f":"SUM(G24+G27+G30+G33)","v":0},{"$f":"SUM(H24+H27+H30+H33)","v":0},{"$f":"SUM(I24+I27+I30+I33)","v":0},null,{"$f":"SUM(E36:I36)","v":0}]

{"sheet":"北旭福第11号","index":16,"n_rows":36,"n_cols":15,"rows_kept":36,"cut":false,"hidden":false,"merged":[[0,0,0,10],[0,14,0,16],[1,0,1,2],[1,3,1,10],[2,0,2,2],[2,3,2,10],[3,0,3,2],[3,3,3,10],[4,0,4,2],[4,3,4,10],[5,0,5,2],[5,3,5,10],[6,0,6,2],[6,3,6,10],[7,0,7,2],[7,3,7,10],[8,0,9,2],[8,3,8,10],[9,3,9,10],[12,5,12,6],[12,7,12,8],[12,9,12,10],[13,0,13,2],[13,3,13,6],[13,7,13,10],[10,0,12,2],[10,3,10,4],[10,5,10,6],[10,7,10,8],[10,9,10,10],[11,3,11,4],[11,5,11,6],[11,7,11,8],[11,9,11,10],[12,3,12,4],[14,0,14,2],[14,3,14,6],[14,7,14,10],[15,0,16,2],[15,3,15,4],[15,5,15,6],[15,7,15,8],[15,9,15,10],[16,3,16,4],[16,5,16,6],[16,7,16,8],[16,9,16,10],[17,3,17,6],[17,7,17,10],[33,0,35,1],[33,2,35,3],[21,0,26,1],[21,2,23,3],[24,2,26,3],[27,0,32,1],[27,2,29,3],[30,2,32,3],[18,0,20,1],[18,2,20,3],[18,4,18,10],[17,0,17,2]]}
["自家用有償旅客運送者登録簿",null,null,null,null,null,null,null,null,null,null,"第２号様式（第５１条の５関係）",null,null,"目次"]
["登録番号",null,null,"北旭福第11号",null,null,null,null,null,null,null,"←福祉のシートからコピペ"]
["登録年月日",null,null,"2006-10-01"]
["更新登録年月日",null,null,"2023-03-28"]
["有効期間",null,null,"2026-03-31",null,null,null,null,null,null,null,"本省様式はなし"]
["名称",null,null,"社会福祉法人　幌延町社会福祉協議会"]
["代表者の氏名",null,null,"会長　中岡　妙子"]
["住所",null,null,"天塩郡幌延町字幌延102番地1"]
["運送の種別",null,null,"福祉有償運送"]
[null,null,null,"○"]
["事務所の名称及び位置",null,null,"名　　　　称",null,"位　　　　　置",null,"名　　　　称",null,"位　　　　　置"]
[null,null,null,"社会福祉法人幌延町社会福祉協議会幌延町指定訪問介護事業所",null,"天塩郡幌延町字幌延102番地1"]
[]
["路線又は運送の区域",null,null,"幌延町"]
["運送する旅客の範囲",null,null,"イハニホト"]
["事業者協力型自家用有償旅客運送を行うときは協力を得る一般旅客自動車運送事業者の氏名又は名称及び住所",null,null,"氏名又は名称",null,"住　　　　所",null,"氏名又は名称",null,"住　　　　所"]
[]
["備考"]
["運送の種別",null,"事務所",null,"　　自家用有償旅客運送自動車の数"]
[null,null,null,null,"寝台車","車いす車","兼用車","回転シート車","セダン等","バ　ス","合　計"]
[null,null,null,null,"（軽自動車）","（軽自動車）","（軽自動車）","（軽自動車）","（軽自動車）",null,"（軽自動車）"]
["福祉有償運送",null,"社会福祉法人幌延町社会福祉協議会幌延町指定訪問介護事業所"]
[null,null,null,null,null,1,null,null,3,null,4]
[null,null,null,null,null,-1,null,null,-3,null,-4]
[]
[null,null,null,null,null,null,null,null,null,null,0]
[null,null,null,null,null,null,null,null,null,null,0]
[]
[null,null,null,null,null,null,null,null,null,null,0]
[null,null,null,null,null,null,null,null,null,null,0]
[]
[null,null,null,null,null,null,null,null,null,null,0]
[null,null,null,null,null,null,null,null,null,null,0]
[null,null,"合計"]
[null,null,null,null,{"$f":"SUM(E23+E26+E29+E32)","v":0},{"$f":"SUM(F23+F26+F29+F32)","v":1},0,0,3,0,{"$f":"SUM(E35:J35)","v":4}]
[null,null,null,null,{"$f":"SUM(E24+E27+E30+E33)","v":0},{"$f":"SUM(F24+F27+F30+F33)","v":-1},{"$f":"SUM(G24+G27+G30+G33)","v":0},{"$f":"SUM(H24+H27+H30+H33)","v":0},{"$f":"SUM(I24+I27+I30+I33)","v":-3},null,{"$f":"SUM(E36:I36)","v":-4}]

{"sheet":"北旭福第12号","index":17,"n_rows":36,"n_cols":15,"rows_kept":36,"cut":false,"hidden":false,"merged":[[0,0,0,10],[0,14,0,16],[1,0,1,2],[1,3,1,10],[2,0,2,2],[2,3,2,10],[3,0,3,2],[3,3,3,10],[4,0,4,2],[4,3,4,10],[5,0,5,2],[5,3,5,10],[6,0,6,2],[6,3,6,10],[7,0,7,2],[7,3,7,10],[8,0,9,2],[8,3,8,10],[9,3,9,10],[12,5,12,6],[12,7,12,8],[12,9,12,10],[13,0,13,2],[13,3,13,6],[13,7,13,10],[10,0,12,2],[10,3,10,4],[10,5,10,6],[10,7,10,8],[10,9,10,10],[11,3,11,4],[11,5,11,6],[11,7,11,8],[11,9,11,10],[12,3,12,4],[14,0,14,2],[14,3,14,6],[14,7,14,10],[15,0,16,2],[15,3,15,4],[15,5,15,6],[15,7,15,8],[15,9,15,10],[16,3,16,4],[16,5,16,6],[16,7,16,8],[16,9,16,10],[17,3,17,6],[17,7,17,10],[33,0,35,1],[33,2,35,3],[21,0,26,1],[21,2,23,3],[24,2,26,3],[27,0,32,1],[27,2,29,3],[30,2,32,3],[18,0,20,1],[18,2,20,3],[18,4,18,10],[17,0,17,2]]}
["自家用有償旅客運送者登録簿",null,null,null,null,null,null,null,null,null,null,"第２号様式（第５１条の５関係）",null,null,"目次"]
["登録番号",null,null,"北旭福第12号",null,null,null,null,null,null,null,"←福祉のシートからコピペ"]
["登録年月日",null,null,"2006-10-01"]
["更新登録年月日",null,null,"2023-03-28"]
["有効期間",null,null,"2026-03-31",null,null,null,null,null,null,null,"本省様式はなし"]
["名称",null,null,"社会福祉法人　幌延福祉会"]
["代表者の氏名",null,null,"理事長　山本　昭博"]
["住所",null,null,"天塩郡幌延町1条北2丁目1番3"]
["運送の種別",null,null,"福祉有償運送"]
[null,null,null,"○"]
["事務所の名称及び位置",null,null,"名　　　　称",null,"位　　　　　置",null,"名　　　　称",null,"位　　　　　置"]
[null,null,null,"特別養護老人ホームこざくら荘",null,"天塩郡幌延町1条北2丁目1番3",null,"障害者支援施設幌延町立北星園",null,"天塩郡幌延町幌延１５番地４"]
[null,null,null,"こざくら荘短期入所生活介護事業所"]
["路線又は運送の区域",null,null,"幌延町"]
["運送する旅客の範囲",null,null,"イハニホヘ"]
["事業者協力型自家用有償旅客運送を行うときは協力を得る一般旅客自動車運送事業者の氏名又は名称及び住所",null,null,"氏名又は名称",null,"住　　　　所",null,"氏名又は名称",null,"住　　　　所"]
[]
["備考"]
["運送の種別",null,"事務所",null,"　　自家用有償旅客運送自動車の数"]
[null,null,null,null,"寝台車","車いす車","兼用車","回転シート車","セダン等","バ　ス","合　計"]
[null,null,null,null,"（軽自動車）","（軽自動車）","（軽自動車）","（軽自動車）","（軽自動車）",null,"（軽自動車）"]
["福祉有償運送",null,"特別養護老人ホームこざくら荘"]
[null,null,null,null,null,1,1,null,3,null,5]
[null,null,null,null,null,null,null,null,null,null,0]
[null,null,"こざくら荘短期入所生活介護事業所"]
[null,null,null,null,null,1,1,null,3,null,5]
[null,null,null,null,null,null,null,null,null,null,0]
[null,null,"障害者支援施設幌延町立北星園"]
[null,null,null,null,null,2,null,null,2,null,4]
[null,null,null,null,null,-1,null,null,null,null,-1]
[]
[null,null,null,null,null,null,null,null,null,null,0]
[null,null,null,null,null,null,null,null,null,null,0]
[null,null,"合計"]
[null,null,null,null,{"$f":"SUM(E23+E26+E29+E32)","v":0},{"$f":"SUM(F23+F26+F29+F32)","v":4},2,0,8,0,{"$f":"SUM(E35:J35)","v":14}]
[null,null,null,null,{"$f":"SUM(E24+E27+E30+E33)","v":0},{"$f":"SUM(F24+F27+F30+F33)","v":-1},{"$f":"SUM(G24+G27+G30+G33)","v":0},{"$f":"SUM(H24+H27+H30+H33)","v":0},{"$f":"SUM(I24+I27+I30+I33)","v":0},null,{"$f":"SUM(E36:I36)","v":-1}]

{"sheet":"北旭福第13号","index":18,"n_rows":36,"n_cols":15,"rows_kept":36,"cut":false,"hidden":false,"merged":[[0,0,0,10],[0,14,0,16],[1,0,1,2],[1,3,1,10],[2,0,2,2],[2,3,2,10],[3,0,3,2],[3,3,3,10],[4,0,4,2],[4,3,4,10],[5,0,5,2],[5,3,5,10],[6,0,6,2],[6,3,6,10],[7,0,7,2],[7,3,7,10],[8,0,9,2],[8,3,8,10],[9,3,9,10],[12,5,12,6],[12,7,12,8],[12,9,12,10],[13,0,13,2],[13,3,13,6],[13,7,13,10],[10,0,12,2],[10,3,10,4],[10,5,10,6],[10,7,10,8],[10,9,10,10],[11,3,11,4],[11,5,11,6],[11,7,11,8],[11,9,11,10],[12,3,12,4],[14,0,14,2],[14,3,14,6],[14,7,14,10],[15,0,16,2],[15,3,15,4],[15,5,15,6],[15,7,15,8],[15,9,15,10],[16,3,16,4],[16,5,16,6],[16,7,16,8],[16,9,16,10],[17,3,17,6],[17,7,17,10],[33,0,35,1],[33,2,35,3],[21,0,26,1],[21,2,23,3],[24,2,26,3],[27,0,32,1],[27,2,29,3],[30,2,32,3],[18,0,20,1],[18,2,20,3],[18,4,18,10],[17,0,17,2]]}
["自家用有償旅客運送者登録簿",null,null,null,null,null,null,null,null,null,null,"第２号様式（第５１条の５関係）",null,null,"目次"]
["登録番号",null,null,"北旭福第13号",null,null,null,null,null,null,null,"←福祉のシートからコピペ"]
["登録年月日",null,null,"2006-10-01"]
["更新登録年月日",null,null,"2023-03-23"]
["有効期間",null,null,"2026-03-31",null,null,null,null,null,null,null,"本省様式はなし"]
["名称",null,null,"社会福祉法人　当麻柏陽会"]
["代表者の氏名",null,null,"理事長　安田　秀敏"]
["住所",null,null,"上川郡当麻町6条東4丁目6番1号"]
["運送の種別",null,null,"福祉有償運送"]
[null,null,null,"○"]
["事務所の名称及び位置",null,null,"名　　　　称",null,"位　　　　　置",null,"名　　　　称",null,"位　　　　　置"]
[null,null,null,"訪問介護事業所当麻柏陽園",null,"上川郡当麻町4条東3丁目4番35号"]
[]
["路線又は運送の区域",null,null,"当麻町"]
["運送する旅客の範囲",null,null,"ニホヘ"]
["事業者協力型自家用有償旅客運送を行うときは協力を得る一般旅客自動車運送事業者の氏名又は名称及び住所",null,null,"氏名又は名称",null,"住　　　　所",null,"氏名又は名称",null,"住　　　　所"]
[]
["備考"]
["運送の種別",null,"事務所",null,"　　自家用有償旅客運送自動車の数"]
[null,null,null,null,"寝台車","車いす車","兼用車","回転シート車","セダン等","バ　ス","合　計"]
[null,null,null,null,"（軽自動車）","（軽自動車）","（軽自動車）","（軽自動車）","（軽自動車）",null,"（軽自動車）"]
["福祉有償運送",null,"訪問介護事業所当麻柏陽園"]
[null,null,null,null,null,1,null,null,3,null,4]
[null,null,null,null,null,-1,null,null,-1,null,-2]
[]
[null,null,null,null,null,null,null,null,null,null,0]
[null,null,null,null,null,null,null,null,null,null,0]
[]
[null,null,null,null,null,null,null,null,null,null,0]
[null,null,null,null,null,null,null,null,null,null,0]
[]
[null,null,null,null,null,null,null,null,null,null,0]
[null,null,null,null,null,null,null,null,null,null,0]
[null,null,"合計"]
[null,null,null,null,{"$f":"SUM(E23+E26+E29+E32)","v":0},{"$f":"SUM(F23+F26+F29+F32)","v":1},0,0,3,0,{"$f":"SUM(E35:J35)","v":4}]
[null,null,null,null,{"$f":"SUM(E24+E27+E30+E33)","v":0},{"$f":"SUM(F24+F27+F30+F33)","v":-1},{"$f":"SUM(G24+G27+G30+G33)","v":0},{"$f":"SUM(H24+H27+H30+H33)","v":0},{"$f":"SUM(I24+I27+I30+I33)","v":-1},null,{"$f":"SUM(E36:I36)","v":-2}]

{"sheet":"北旭福第14号","index":19,"n_rows":36,"n_cols":15,"rows_kept":36,"cut":false,"hidden":false,"merged":[[0,0,0,10],[0,14,0,16],[1,0,1,2],[1,3,1,10],[2,0,2,2],[2,3,2,10],[3,0,3,2],[3,3,3,10],[4,0,4,2],[4,3,4,10],[5,0,5,2],[5,3,5,10],[6,0,6,2],[6,3,6,10],[7,0,7,2],[7,3,7,10],[8,0,9,2],[8,3,8,10],[9,3,9,10],[12,5,12,6],[12,7,12,8],[12,9,12,10],[13,0,13,2],[13,3,13,6],[13,7,13,10],[10,0,12,2],[10,3,10,4],[10,5,10,6],[10,7,10,8],[10,9,10,10],[11,3,11,4],[11,5,11,6],[11,7,11,8],[11,9,11,10],[12,3,12,4],[14,0,14,2],[14,3,14,6],[14,7,14,10],[15,0,16,2],[15,3,15,4],[15,5,15,6],[15,7,15,8],[15,9,15,10],[16,3,16,4],[16,5,16,6],[16,7,16,8],[16,9,16,10],[17,3,17,6],[17,7,17,10],[33,0,35,1],[33,2,35,3],[21,0,26,1],[21,2,23,3],[24,2,26,3],[27,0,32,1],[27,2,29,3],[30,2,32,3],[18,0,20,1],[18,2,20,3],[18,4,18,10],[17,0,17,2]]}
["自家用有償旅客運送者登録簿",null,null,null,null,null,null,null,null,null,null,"第２号様式（第５１条の５関係）",null,null,"目次"]
["登録番号",null,null,"北旭福第14号",null,null,null,null,null,null,null,"←福祉のシートからコピペ"]
["登録年月日",null,null,"2006-10-01"]
["更新登録年月日",null,null,"2023-02-24"]
["有効期間",null,null,"2026-02-28",null,null,null,null,null,null,null,"本省様式はなし"]
["名称",null,null,"社会福祉法人　下川町社会福祉協議会"]
["代表者の氏名",null,null,"会長　加藤　久"]
["住所",null,null,"上川郡下川町幸町40番地1"]
["運送の種別",null,null,"福祉有償運送"]
[null,null,null,"○"]
["事務所の名称及び位置",null,null,"名　　　　称",null,"位　　　　　置",null,"名　　　　称",null,"位　　　　　置"]
[null,null,null,"社会福祉法人下川町社会福祉協議会",null,"上川郡下川町幸町40番地1"]
[]
["路線又は運送の区域",null,null,"下川町"]
["運送する旅客の範囲",null,null,"イロニホヘト"]
["事業者協力型自家用有償旅客運送を行うときは協力を得る一般旅客自動車運送事業者の氏名又は名称及び住所",null,null,"氏名又は名称",null,"住　　　　所",null,"氏名又は名称",null,"住　　　　所"]
[]
["備考"]
["運送の種別",null,"事務所",null,"　　自家用有償旅客運送自動車の数"]
[null,null,null,null,"寝台車","車いす車","兼用車","回転シート車","セダン等","バ　ス","合　計"]
[null,null,null,null,"（軽自動車）","（軽自動車）","（軽自動車）","（軽自動車）","（軽自動車）",null,"（軽自動車）"]
["福祉有償運送",null,"社会福祉法人下川町社会福祉協議会"]
[null,null,null,null,null,2,null,null,2,null,4]
[null,null,null,null,null,-1,null,null,-1,null,-2]
[]
[null,null,null,null,null,null,null,null,null,null,0]
[null,null,null,null,null,null,null,null,null,null,0]
[]
[null,null,null,null,null,null,null,null,null,null,0]
[null,null,null,null,null,null,null,null,null,null,0]
[]
[null,null,null,null,null,null,null,null,null,null,0]
[null,null,null,null,null,null,null,null,null,null,0]
[null,null,"合計"]
[null,null,null,null,{"$f":"SUM(E23+E26+E29+E32)","v":0},{"$f":"SUM(F23+F26+F29+F32)","v":2},0,0,2,0,{"$f":"SUM(E35:J35)","v":4}]
[null,null,null,null,{"$f":"SUM(E24+E27+E30+E33)","v":0},{"$f":"SUM(F24+F27+F30+F33)","v":-1},{"$f":"SUM(G24+G27+G30+G33)","v":0},{"$f":"SUM(H24+H27+H30+H33)","v":0},{"$f":"SUM(I24+I27+I30+I33)","v":-1},null,{"$f":"SUM(E36:I36)","v":-2}]

{"sheet":"北旭福第16号","index":20,"n_rows":36,"n_cols":15,"rows_kept":36,"cut":false,"hidden":false,"merged":[[0,0,0,10],[0,14,0,16],[1,0,1,2],[1,3,1,10],[2,0,2,2],[2,3,2,10],[3,0,3,2],[3,3,3,10],[4,0,4,2],[4,3,4,10],[5,0,5,2],[5,3,5,10],[6,0,6,2],[6,3,6,10],[7,0,7,2],[7,3,7,10],[8,0,9,2],[8,3,8,10],[9,3,9,10],[12,5,12,6],[12,7,12,8],[12,9,12,10],[13,0,13,2],[13,3,13,6],[13,7,13,10],[10,0,12,2],[10,3,10,4],[10,5,10,6],[10,7,10,8],[10,9,10,10],[11,3,11,4],[11,5,11,6],[11,7,11,8],[11,9,11,10],[12,3,12,4],[14,0,14,2],[14,3,14,6],[14,7,14,10],[15,0,16,2],[15,3,15,4],[15,5,15,6],[15,7,15,8],[15,9,15,10],[16,3,16,4],[16,5,16,6],[16,7,16,8],[16,9,16,10],[17,3,17,6],[17,7,17,10],[33,0,35,1],[33,2,35,3],[21,0,26,1],[21,2,23,3],[24,2,26,3],[27,0,32,1],[27,2,29,3],[30,2,32,3],[18,0,20,1],[18,2,20,3],[18,4,18,10],[17,0,17,2]]}
["自家用有償旅客運送者登録簿",null,null,null,null,null,null,null,null,null,null,"第２号様式（第５１条の５関係）",null,null,"目次"]
["登録番号",null,null,"北旭福第16号",null,null,null,null,null,null,null,"←福祉のシートからコピペ"]
["登録年月日",null,null,"2006-10-01"]
["更新登録年月日",null,null,"2023-03-17"]
["有効期間",null,null,"2026-03-31",null,null,null,null,null,null,null,"本省様式はなし"]
["名称",null,null,"社会福祉法人　初山別村社会福祉協議会"]
["代表者の氏名",null,null,"会長　伊藤　太一"]
["住所",null,null,"苫前郡初山別村字初山別149番地"]
["運送の種別",null,null,"福祉有償運送"]
[null,null,null,"○"]
["事務所の名称及び位置",null,null,"名　　　　称",null,"位　　　　　置",null,"名　　　　称",null,"位　　　　　置"]
[null,null,null,"初山別村社会福祉協議会",null,"苫前郡初山別村字初山別149番地"]
[]
["路線又は運送の区域",null,null,"初山別村"]
["運送する旅客の範囲",null,null,"イニホト"]
["事業者協力型自家用有償旅客運送を行うときは協力を得る一般旅客自動車運送事業者の氏名又は名称及び住所",null,null,"氏名又は名称",null,"住　　　　所",null,"氏名又は名称",null,"住　　　　所"]
[]
["備考"]
["運送の種別",null,"事務所",null,"　　自家用有償旅客運送自動車の数"]
[null,null,null,null,"寝台車","車いす車","兼用車","回転シート車","セダン等","バ　ス","合　計"]
[null,null,null,null,"（軽自動車）","（軽自動車）","（軽自動車）","（軽自動車）","（軽自動車）",null,"（軽自動車）"]
["福祉有償運送",null,"初山別村社会福祉協議会"]
[null,null,null,null,null,1,null,null,3,null,4]
[null,null,null,null,null,null,null,null,-1,null,-1]
[]
[null,null,null,null,null,null,null,null,null,null,0]
[null,null,null,null,null,null,null,null,null,null,0]
[]
[null,null,null,null,null,null,null,null,null,null,0]
[null,null,null,null,null,null,null,null,null,null,0]
[]
[null,null,null,null,null,null,null,null,null,null,0]
[null,null,null,null,null,null,null,null,null,null,0]
[null,null,"合計"]
[null,null,null,null,{"$f":"SUM(E23+E26+E29+E32)","v":0},{"$f":"SUM(F23+F26+F29+F32)","v":1},0,0,3,0,{"$f":"SUM(E35:J35)","v":4}]
[null,null,null,null,{"$f":"SUM(E24+E27+E30+E33)","v":0},{"$f":"SUM(F24+F27+F30+F33)","v":0},{"$f":"SUM(G24+G27+G30+G33)","v":0},{"$f":"SUM(H24+H27+H30+H33)","v":0},{"$f":"SUM(I24+I27+I30+I33)","v":-1},null,{"$f":"SUM(E36:I36)","v":-1}]

{"sheet":"北旭福第17号","index":21,"n_rows":36,"n_cols":15,"rows_kept":36,"cut":false,"hidden":false,"merged":[[0,0,0,10],[0,14,0,16],[1,0,1,2],[1,3,1,10],[2,0,2,2],[2,3,2,10],[3,0,3,2],[3,3,3,10],[4,0,4,2],[4,3,4,10],[5,0,5,2],[5,3,5,10],[6,0,6,2],[6,3,6,10],[7,0,7,2],[7,3,7,10],[8,0,9,2],[8,3,8,10],[9,3,9,10],[12,5,12,6],[12,7,12,8],[12,9,12,10],[13,0,13,2],[13,3,13,6],[13,7,13,10],[10,0,12,2],[10,3,10,4],[10,5,10,6],[10,7,10,8],[10,9,10,10],[11,3,11,4],[11,5,11,6],[11,7,11,8],[11,9,11,10],[12,3,12,4],[14,0,14,2],[14,3,14,6],[14,7,14,10],[15,0,16,2],[15,3,15,4],[15,5,15,6],[15,7,15,8],[15,9,15,10],[16,3,16,4],[16,5,16,6],[16,7,16,8],[16,9,16,10],[17,3,17,6],[17,7,17,10],[33,0,35,1],[33,2,35,3],[21,0,26,1],[21,2,23,3],[24,2,26,3],[27,0,32,1],[27,2,29,3],[30,2,32,3],[18,0,20,1],[18,2,20,3],[18,4,18,10],[17,0,17,2]]}
["自家用有償旅客運送者登録簿",null,null,null,null,null,null,null,null,null,null,"第２号様式（第５１条の５関係）",null,null,"目次"]
["登録番号",null,null,"北旭福第17号",null,null,null,null,null,null,null,"←福祉のシートからコピペ"]
["登録年月日",null,null,"2006-10-01"]
["更新登録年月日",null,null,"2023-02-28"]
["有効期間",null,null,"2026-02-28",null,null,null,null,null,null,null,"本省様式はなし"]
["名称",null,null,"社会福祉法人　上富良野町社会福祉協議会"]
["代表者の氏名",null,null,"理事長　田中　利幸"]
["住所",null,null,"空知郡上富良野町大町2丁目8番4号"]
["運送の種別",null,null,"福祉有償運送"]
[null,null,null,"○"]
["事務所の名称及び位置",null,null,"名　　　　称",null,"位　　　　　置",null,"名　　　　称",null,"位　　　　　置"]
[null,null,null,"社会福祉法人上富良野町社会福祉協議会",null,"空知郡上富良野町大町2丁目8番4号"]
[]
["路線又は運送の区域",null,null,"上富良野町"]
["運送する旅客の範囲",null,null,"イニホト"]
["事業者協力型自家用有償旅客運送を行うときは協力を得る一般旅客自動車運送事業者の氏名又は名称及び住所",null,null,"氏名又は名称",null,"住　　　　所",null,"氏名又は名称",null,"住　　　　所"]
[]
["備考"]
["運送の種別",null,"事務所",null,"　　自家用有償旅客運送自動車の数"]
[null,null,null,null,"寝台車","車いす車","兼用車","回転シート車","セダン等","バ　ス","合　計"]
[null,null,null,null,"（軽自動車）","（軽自動車）","（軽自動車）","（軽自動車）","（軽自動車）",null,"（軽自動車）"]
["福祉有償運送",null,"社会福祉法人上富良野町社会福祉協議会"]
[null,null,null,null,null,2,2,null,null,null,4]
[null,null,null,null,null,-1,null,null,null,null,-1]
[]
[null,null,null,null,null,null,null,null,null,null,0]
[null,null,null,null,null,null,null,null,null,null,0]
[]
[null,null,null,null,null,null,null,null,null,null,0]
[null,null,null,null,null,null,null,null,null,null,0]
[]
[null,null,null,null,null,null,null,null,null,null,0]
[null,null,null,null,null,null,null,null,null,null,0]
[null,null,"合計"]
[null,null,null,null,{"$f":"SUM(E23+E26+E29+E32)","v":0},{"$f":"SUM(F23+F26+F29+F32)","v":2},2,0,0,0,{"$f":"SUM(E35:J35)","v":4}]
[null,null,null,null,{"$f":"SUM(E24+E27+E30+E33)","v":0},{"$f":"SUM(F24+F27+F30+F33)","v":-1},{"$f":"SUM(G24+G27+G30+G33)","v":0},{"$f":"SUM(H24+H27+H30+H33)","v":0},{"$f":"SUM(I24+I27+I30+I33)","v":0},null,{"$f":"SUM(E36:I36)","v":-1}]

{"sheet":"北旭福第19号","index":22,"n_rows":36,"n_cols":15,"rows_kept":36,"cut":false,"hidden":false,"merged":[[0,0,0,10],[0,14,0,16],[1,0,1,2],[1,3,1,10],[2,0,2,2],[2,3,2,10],[3,0,3,2],[3,3,3,10],[4,0,4,2],[4,3,4,10],[5,0,5,2],[5,3,5,10],[6,0,6,2],[6,3,6,10],[7,0,7,2],[7,3,7,10],[8,0,9,2],[8,3,8,10],[9,3,9,10],[12,5,12,6],[12,7,12,8],[12,9,12,10],[13,0,13,2],[13,3,13,6],[13,7,13,10],[10,0,12,2],[10,3,10,4],[10,5,10,6],[10,7,10,8],[10,9,10,10],[11,3,11,4],[11,5,11,6],[11,7,11,8],[11,9,11,10],[12,3,12,4],[14,0,14,2],[14,3,14,6],[14,7,14,10],[15,0,16,2],[15,3,15,4],[15,5,15,6],[15,7,15,8],[15,9,15,10],[16,3,16,4],[16,5,16,6],[16,7,16,8],[16,9,16,10],[17,3,17,6],[17,7,17,10],[33,0,35,1],[33,2,35,3],[21,0,26,1],[21,2,23,3],[24,2,26,3],[27,0,32,1],[27,2,29,3],[30,2,32,3],[18,0,20,1],[18,2,20,3],[18,4,18,10],[17,0,17,2]]}
["自家用有償旅客運送者登録簿",null,null,null,null,null,null,null,null,null,null,"第２号様式（第５１条の５関係）",null,null,"目次"]
["登録番号",null,null,"北旭福第19号",null,null,null,null,null,null,null,"←福祉のシートからコピペ"]
["登録年月日",null,null,"2006-10-01"]
["更新登録年月日",null,null,"2023-03-28"]
["有効期間",null,null,"2026-03-31",null,null,null,null,null,null,null,"本省様式はなし"]
["名称",null,null,"社会福祉法人　当麻町社会福祉協議会"]
["代表者の氏名",null,null,"会長　　河野　豊"]
["住所",null,null,"上川郡当麻町４条東２丁目１６番３号"]
["運送の種別",null,null,"福祉有償運送"]
[null,null,null,"○"]
["事務所の名称及び位置",null,null,"名　　　　称",null,"位　　　　　置",null,"名　　　　称",null,"位　　　　　置"]
[null,null,null,"社会福祉法人当麻町社会福祉協議会",null,"上川郡当麻町４条東２丁目１６番３号"]
[]
["路線又は運送の区域",null,null,"当麻町"]
["運送する旅客の範囲",null,null,"イロニホヘト"]
["事業者協力型自家用有償旅客運送を行うときは協力を得る一般旅客自動車運送事業者の氏名又は名称及び住所",null,null,"氏名又は名称",null,"住　　　　所",null,"氏名又は名称",null,"住　　　　所"]
[]
["備考"]
["運送の種別",null,"事務所",null,"　　自家用有償旅客運送自動車の数"]
[null,null,null,null,"寝台車","車いす車","兼用車","回転シート車","セダン等","バ　ス","合　計"]
[null,null,null,null,"（軽自動車）","（軽自動車）","（軽自動車）","（軽自動車）","（軽自動車）",null,"（軽自動車）"]
["福祉有償運送",null,"社会福祉法人当麻町社会福祉協議会"]
[null,null,null,null,null,5,null,null,2,null,7]
[null,null,null,null,null,-2,null,null,-1,null,-3]
[]
[null,null,null,null,null,null,null,null,null,null,0]
[null,null,null,null,null,null,null,null,null,null,0]
[]
[null,null,null,null,null,null,null,null,null,null,0]
[null,null,null,null,null,null,null,null,null,null,0]
[]
[null,null,null,null,null,null,null,null,null,null,0]
[null,null,null,null,null,null,null,null,null,null,0]
[null,null,"合計"]
[null,null,null,null,{"$f":"SUM(E23+E26+E29+E32)","v":0},{"$f":"SUM(F23+F26+F29+F32)","v":5},0,0,2,0,{"$f":"SUM(E35:J35)","v":7}]
[null,null,null,null,{"$f":"SUM(E24+E27+E30+E33)","v":0},{"$f":"SUM(F24+F27+F30+F33)","v":-2},{"$f":"SUM(G24+G27+G30+G33)","v":0},{"$f":"SUM(H24+H27+H30+H33)","v":0},{"$f":"SUM(I24+I27+I30+I33)","v":-1},null,{"$f":"SUM(E36:I36)","v":-3}]

{"sheet":"北旭福第20号","index":23,"n_rows":36,"n_cols":15,"rows_kept":36,"cut":false,"hidden":false,"merged":[[0,0,0,10],[0,14,0,16],[1,0,1,2],[1,3,1,10],[2,0,2,2],[2,3,2,10],[3,0,3,2],[3,3,3,10],[4,0,4,2],[4,3,4,10],[5,0,5,2],[5,3,5,10],[6,0,6,2],[6,3,6,10],[7,0,7,2],[7,3,7,10],[8,0,9,2],[8,3,8,10],[9,3,9,10],[12,5,12,6],[12,7,12,8],[12,9,12,10],[13,0,13,2],[13,3,13,6],[13,7,13,10],[10,0,12,2],[10,3,10,4],[10,5,10,6],[10,7,10,8],[10,9,10,10],[11,3,11,4],[11,5,11,6],[11,7,11,8],[11,9,11,10],[12,3,12,4],[14,0,14,2],[14,3,14,6],[14,7,14,10],[15,0,16,2],[15,3,15,4],[15,5,15,6],[15,7,15,8],[15,9,15,10],[16,3,16,4],[16,5,16,6],[16,7,16,8],[16,9,16,10],[17,3,17,6],[17,7,17,10],[33,0,35,1],[33,2,35,3],[21,0,26,1],[21,2,23,3],[24,2,26,3],[27,0,32,1],[27,2,29,3],[30,2,32,3],[18,0,20,1],[18,2,20,3],[18,4,18,10],[17,0,17,2]]}
["自家用有償旅客運送者登録簿",null,null,null,null,null,null,null,null,null,null,"第２号様式（第５１条の５関係）",null,null,"目次"]
["登録番号",null,null,"北旭福第20号",null,null,null,null,null,null,null,"←福祉のシートからコピペ"]
["登録年月日",null,null,"2006-10-01"]
["更新登録年月日",null,null,"2023-03-30"]
["有効期間",null,null,"2026-03-31",null,null,null,null,null,null,null,"本省様式はなし"]
["名称",null,null,"社会福祉法人　比布町社会福祉協議会"]
["代表者の氏名",null,null,"会長　大西　昭博"]
["住所",null,null,"上川郡比布町北町1丁目2番2号"]
["運送の種別",null,null,"福祉有償運送"]
[null,null,null,"○"]
["事務所の名称及び位置",null,null,"名　　　　称",null,"位　　　　　置",null,"名　　　　称",null,"位　　　　　置"]
[null,null,null,"社会福祉法人比布町社会福祉協議会",null,"上川郡比布町北町1丁目2番2号"]
[]
["路線又は運送の区域",null,null,"比布町"]
["運送する旅客の範囲",null,null,"イロニホヘ"]
["事業者協力型自家用有償旅客運送を行うときは協力を得る一般旅客自動車運送事業者の氏名又は名称及び住所",null,null,"氏名又は名称",null,"住　　　　所",null,"氏名又は名称",null,"住　　　　所"]
[]
["備考"]
["運送の種別",null,"事務所",null,"　　自家用有償旅客運送自動車の数"]
[null,null,null,null,"寝台車","車いす車","兼用車","回転シート車","セダン等","バ　ス","合　計"]
[null,null,null,null,"（軽自動車）","（軽自動車）","（軽自動車）","（軽自動車）","（軽自動車）",null,"（軽自動車）"]
["福祉有償運送",null,"社会福祉法人比布町社会福祉協議会"]
[null,null,null,null,null,2,null,2,3,null,7]
[null,null,null,null,null,-1,null,-2,-2,null,-5]
[]
[null,null,null,null,null,null,null,null,null,null,0]
[null,null,null,null,null,null,null,null,null,null,0]
[]
[null,null,null,null,null,null,null,null,null,null,0]
[null,null,null,null,null,null,null,null,null,null,0]
[]
[null,null,null,null,null,null,null,null,null,null,0]
[null,null,null,null,null,null,null,null,null,null,0]
[null,null,"合計"]
[null,null,null,null,{"$f":"SUM(E23+E26+E29+E32)","v":0},{"$f":"SUM(F23+F26+F29+F32)","v":2},0,2,3,0,{"$f":"SUM(E35:J35)","v":7}]
[null,null,null,null,{"$f":"SUM(E24+E27+E30+E33)","v":0},{"$f":"SUM(F24+F27+F30+F33)","v":-1},{"$f":"SUM(G24+G27+G30+G33)","v":0},{"$f":"SUM(H24+H27+H30+H33)","v":-2},{"$f":"SUM(I24+I27+I30+I33)","v":-2},null,{"$f":"SUM(E36:I36)","v":-5}]

{"sheet":"北旭福第21号","index":24,"n_rows":36,"n_cols":15,"rows_kept":36,"cut":false,"hidden":false,"merged":[[0,0,0,10],[0,14,0,16],[1,0,1,2],[1,3,1,10],[2,0,2,2],[2,3,2,10],[3,0,3,2],[3,3,3,10],[4,0,4,2],[4,3,4,10],[5,0,5,2],[5,3,5,10],[6,0,6,2],[6,3,6,10],[7,0,7,2],[7,3,7,10],[8,0,9,2],[8,3,8,10],[9,3,9,10],[12,5,12,6],[12,7,12,8],[12,9,12,10],[13,0,13,2],[13,3,13,6],[13,7,13,10],[10,0,12,2],[10,3,10,4],[10,5,10,6],[10,7,10,8],[10,9,10,10],[11,3,11,4],[11,5,11,6],[11,7,11,8],[11,9,11,10],[12,3,12,4],[14,0,14,2],[14,3,14,6],[14,7,14,10],[15,0,16,2],[15,3,15,4],[15,5,15,6],[15,7,15,8],[15,9,15,10],[16,3,16,4],[16,5,16,6],[16,7,16,8],[16,9,16,10],[17,3,17,6],[17,7,17,10],[33,0,35,1],[33,2,35,3],[21,0,26,1],[21,2,23,3],[24,2,26,3],[27,0,32,1],[27,2,29,3],[30,2,32,3],[18,0,20,1],[18,2,20,3],[18,4,18,10],[17,0,17,2]]}
["自家用有償旅客運送者登録簿",null,null,null,null,null,null,null,null,null,null,"第２号様式（第５１条の５関係）",null,null,"目次"]
["登録番号",null,null,"北旭福第21号",null,null,null,null,null,null,null,"←福祉のシートからコピペ"]
["登録年月日",null,null,"2006-10-01"]
["更新登録年月日",null,null,"2023-03-31"]
["有効期間",null,null,"2026-03-31",null,null,null,null,null,null,null,"本省様式はなし"]
["名称",null,null,"社会福祉法人　当麻町かたるべの森"]
["代表者の氏名",null,null,"理事長　貞森　裕一"]
["住所",null,null,"上川郡当麻町5条東3丁目7番25号"]
["運送の種別",null,null,"福祉有償運送"]
[null,null,null,"○"]
["事務所の名称及び位置",null,null,"名　　　　称",null,"位　　　　　置",null,"名　　　　称",null,"位　　　　　置"]
[null,null,null,"ギャラリーかたるべプラス",null,"上川郡当麻町5条東3丁目7番25号"]
[]
["路線又は運送の区域",null,null,"当麻町"]
["運送する旅客の範囲",null,null,"ハト"]
["事業者協力型自家用有償旅客運送を行うときは協力を得る一般旅客自動車運送事業者の氏名又は名称及び住所",null,null,"氏名又は名称",null,"住　　　　所",null,"氏名又は名称",null,"住　　　　所"]
[]
["備考"]
["運送の種別",null,"事務所",null,"　　自家用有償旅客運送自動車の数"]
[null,null,null,null,"寝台車","車いす車","兼用車","回転シート車","セダン等","バ　ス","合　計"]
[null,null,null,null,"（軽自動車）","（軽自動車）","（軽自動車）","（軽自動車）","（軽自動車）",null,"（軽自動車）"]
["福祉有償運送",null,"ギャラリーかたるべプラス"]
[null,null,null,null,null,null,null,null,8,null,8]
[null,null,null,null,null,null,null,null,-1,null,-1]
[]
[null,null,null,null,null,null,null,null,null,null,0]
[null,null,null,null,null,null,null,null,null,null,0]
[]
[null,null,null,null,null,null,null,null,null,null,0]
[null,null,null,null,null,null,null,null,null,null,0]
[]
[null,null,null,null,null,null,null,null,null,null,0]
[null,null,null,null,null,null,null,null,null,null,0]
[null,null,"合計"]
[null,null,null,null,{"$f":"SUM(E23+E26+E29+E32)","v":0},{"$f":"SUM(F23+F26+F29+F32)","v":0},0,0,8,0,{"$f":"SUM(E35:J35)","v":8}]
[null,null,null,null,{"$f":"SUM(E24+E27+E30+E33)","v":0},{"$f":"SUM(F24+F27+F30+F33)","v":0},{"$f":"SUM(G24+G27+G30+G33)","v":0},{"$f":"SUM(H24+H27+H30+H33)","v":0},{"$f":"SUM(I24+I27+I30+I33)","v":-1},null,{"$f":"SUM(E36:I36)","v":-1}]

{"sheet":"北旭福第22号","index":25,"n_rows":36,"n_cols":15,"rows_kept":36,"cut":false,"hidden":false,"merged":[[0,0,0,10],[0,14,0,16],[1,0,1,2],[1,3,1,10],[2,0,2,2],[2,3,2,10],[3,0,3,2],[3,3,3,10],[4,0,4,2],[4,3,4,10],[5,0,5,2],[5,3,5,10],[6,0,6,2],[6,3,6,10],[7,0,7,2],[7,3,7,10],[8,0,9,2],[8,3,8,10],[9,3,9,10],[12,5,12,6],[12,7,12,8],[12,9,12,10],[13,0,13,2],[13,3,13,6],[13,7,13,10],[10,0,12,2],[10,3,10,4],[10,5,10,6],[10,7,10,8],[10,9,10,10],[11,3,11,4],[11,5,11,6],[11,7,11,8],[11,9,11,10],[12,3,12,4],[14,0,14,2],[14,3,14,6],[14,7,14,10],[15,0,16,2],[15,3,15,4],[15,5,15,6],[15,7,15,8],[15,9,15,10],[16,3,16,4],[16,5,16,6],[16,7,16,8],[16,9,16,10],[17,3,17,6],[17,7,17,10],[33,0,35,1],[33,2,35,3],[21,0,26,1],[21,2,23,3],[24,2,26,3],[27,0,32,1],[27,2,29,3],[30,2,32,3],[18,0,20,1],[18,2,20,3],[18,4,18,10],[17,0,17,2]]}
["自家用有償旅客運送者登録簿",null,null,null,null,null,null,null,null,null,null,"第２号様式（第５１条の５関係）",null,null,"目次"]
["登録番号",null,null,"北旭福第22号",null,null,null,null,null,null,null,"←福祉のシートからコピペ"]
["登録年月日",null,null,"2006-10-01"]
["更新登録年月日",null,null,"2023-03-23"]
["有効期間",null,null,"2026-03-31",null,null,null,null,null,null,null,"本省様式はなし"]
["名称",null,null,"社会福祉法人　剣渕北斗会"]
["代表者の氏名",null,null,"理事長　渡辺　祐一"]
["住所",null,null,"上川郡剣淵町西原町3084番地"]
["運送の種別",null,null,"福祉有償運送"]
[null,null,null,"○"]
["事務所の名称及び位置",null,null,"名　　　　称",null,"位　　　　　置",null,"名　　　　称",null,"位　　　　　置"]
[null,null,null,"社会福祉法人剣渕北斗会",null,"上川郡剣淵町西原町3084番地"]
[]
["路線又は運送の区域",null,null,"剣淵町"]
["運送する旅客の範囲",null,null,"イロハト"]
["事業者協力型自家用有償旅客運送を行うときは協力を得る一般旅客自動車運送事業者の氏名又は名称及び住所",null,null,"氏名又は名称",null,"住　　　　所",null,"氏名又は名称",null,"住　　　　所"]
[]
["備考"]
["運送の種別",null,"事務所",null,"　　自家用有償旅客運送自動車の数"]
[null,null,null,null,"寝台車","車いす車","兼用車","回転シート車","セダン等","バ　ス","合　計"]
[null,null,null,null,"（軽自動車）","（軽自動車）","（軽自動車）","（軽自動車）","（軽自動車）",null,"（軽自動車）"]
["福祉有償運送",null,"社会福祉法人剣渕北斗会"]
[null,null,null,null,null,null,null,null,7,null,7]
[null,null,null,null,null,null,null,null,null,null,0]
[]
[null,null,null,null,null,null,null,null,null,null,0]
[null,null,null,null,null,null,null,null,null,null,0]
[]
[null,null,null,null,null,null,null,null,null,null,0]
[null,null,null,null,null,null,null,null,null,null,0]
[]
[null,null,null,null,null,null,null,null,null,null,0]
[null,null,null,null,null,null,null,null,null,null,0]
[null,null,"合計"]
[null,null,null,null,{"$f":"SUM(E23+E26+E29+E32)","v":0},{"$f":"SUM(F23+F26+F29+F32)","v":0},0,0,7,0,{"$f":"SUM(E35:J35)","v":7}]
[null,null,null,null,{"$f":"SUM(E24+E27+E30+E33)","v":0},{"$f":"SUM(F24+F27+F30+F33)","v":0},{"$f":"SUM(G24+G27+G30+G33)","v":0},{"$f":"SUM(H24+H27+H30+H33)","v":0},{"$f":"SUM(I24+I27+I30+I33)","v":0},null,{"$f":"SUM(E36:I36)","v":0}]

{"sheet":"北旭福第23号","index":26,"n_rows":36,"n_cols":15,"rows_kept":36,"cut":false,"hidden":false,"merged":[[0,0,0,10],[0,14,0,16],[1,0,1,2],[1,3,1,10],[2,0,2,2],[2,3,2,10],[3,0,3,2],[3,3,3,10],[4,0,4,2],[4,3,4,10],[5,0,5,2],[5,3,5,10],[6,0,6,2],[6,3,6,10],[7,0,7,2],[7,3,7,10],[8,0,9,2],[8,3,8,10],[9,3,9,10],[12,5,12,6],[12,7,12,8],[12,9,12,10],[13,0,13,2],[13,3,13,6],[13,7,13,10],[10,0,12,2],[10,3,10,4],[10,5,10,6],[10,7,10,8],[10,9,10,10],[11,3,11,4],[11,5,11,6],[11,7,11,8],[11,9,11,10],[12,3,12,4],[14,0,14,2],[14,3,14,6],[14,7,14,10],[15,0,16,2],[15,3,15,4],[15,5,15,6],[15,7,15,8],[15,9,15,10],[16,3,16,4],[16,5,16,6],[16,7,16,8],[16,9,16,10],[17,3,17,6],[17,7,17,10],[33,0,35,1],[33,2,35,3],[21,0,26,1],[21,2,23,3],[24,2,26,3],[27,0,32,1],[27,2,29,3],[30,2,32,3],[18,0,20,1],[18,2,20,3],[18,4,18,10],[17,0,17,2]]}
["自家用有償旅客運送者登録簿",null,null,null,null,null,null,null,null,null,null,"第２号様式（第５１条の５関係）",null,null,"目次"]
["登録番号",null,null,"北旭福第23号",null,null,null,null,null,null,null,"←福祉のシートからコピペ"]
["登録年月日",null,null,"2006-10-01"]
["更新登録年月日",null,null,"2023-03-17"]
["有効期間",null,null,"2026-02-28",null,null,null,null,null,null,null,"本省様式はなし"]
["名称",null,null,"社会福祉法人　礼文町社会福祉協議会"]
["代表者の氏名",null,null,"会長　道場　好"]
["住所",null,null,"礼文郡礼文町香深村字ベッシュ９６１番２"]
["運送の種別",null,null,"福祉有償運送"]
[null,null,null,"○"]
["事務所の名称及び位置",null,null,"名　　　　称",null,"位　　　　　置",null,"名　　　　称",null,"位　　　　　置"]
[null,null,null,"社会福祉法人礼文町社会福祉協議会",null,"礼文郡礼文町香深村字ベッシュ９６１番２"]
[]
["路線又は運送の区域",null,null,"礼文町"]
["運送する旅客の範囲",null,null,"イニホト"]
["事業者協力型自家用有償旅客運送を行うときは協力を得る一般旅客自動車運送事業者の氏名又は名称及び住所",null,null,"氏名又は名称",null,"住　　　　所",null,"氏名又は名称",null,"住　　　　所"]
[]
["備考"]
["運送の種別",null,"事務所",null,"　　自家用有償旅客運送自動車の数"]
[null,null,null,null,"寝台車","車いす車","兼用車","回転シート車","セダン等","バ　ス","合　計"]
[null,null,null,null,"（軽自動車）","（軽自動車）","（軽自動車）","（軽自動車）","（軽自動車）",null,"（軽自動車）"]
["福祉有償運送",null,"社会福祉法人礼文町社会福祉協議会"]
[null,null,null,null,null,3,null,2,3,null,8]
[null,null,null,null,null,-3,null,null,null,null,-3]
[]
[null,null,null,null,null,null,null,null,null,null,0]
[null,null,null,null,null,null,null,null,null,null,0]
[]
[null,null,null,null,null,null,null,null,null,null,0]
[null,null,null,null,null,null,null,null,null,null,0]
[]
[null,null,null,null,null,null,null,null,null,null,0]
[null,null,null,null,null,null,null,null,null,null,0]
[null,null,"合計"]
[null,null,null,null,{"$f":"SUM(E23+E26+E29+E32)","v":0},{"$f":"SUM(F23+F26+F29+F32)","v":3},0,2,3,0,{"$f":"SUM(E35:J35)","v":8}]
[null,null,null,null,{"$f":"SUM(E24+E27+E30+E33)","v":0},{"$f":"SUM(F24+F27+F30+F33)","v":-3},{"$f":"SUM(G24+G27+G30+G33)","v":0},{"$f":"SUM(H24+H27+H30+H33)","v":0},{"$f":"SUM(I24+I27+I30+I33)","v":0},null,{"$f":"SUM(E36:I36)","v":-3}]

{"sheet":"北旭福第24号","index":27,"n_rows":36,"n_cols":15,"rows_kept":36,"cut":false,"hidden":false,"merged":[[0,0,0,10],[0,14,0,16],[1,0,1,2],[1,3,1,10],[2,0,2,2],[2,3,2,10],[3,0,3,2],[3,3,3,10],[4,0,4,2],[4,3,4,10],[5,0,5,2],[5,3,5,10],[6,0,6,2],[6,3,6,10],[7,0,7,2],[7,3,7,10],[8,0,9,2],[8,3,8,10],[9,3,9,10],[12,5,12,6],[12,7,12,8],[12,9,12,10],[13,0,13,2],[13,3,13,6],[13,7,13,10],[10,0,12,2],[10,3,10,4],[10,5,10,6],[10,7,10,8],[10,9,10,10],[11,3,11,4],[11,5,11,6],[11,7,11,8],[11,9,11,10],[12,3,12,4],[14,0,14,2],[14,3,14,6],[14,7,14,10],[15,0,16,2],[15,3,15,4],[15,5,15,6],[15,7,15,8],[15,9,15,10],[16,3,16,4],[16,5,16,6],[16,7,16,8],[16,9,16,10],[17,3,17,6],[17,7,17,10],[33,0,35,1],[33,2,35,3],[21,0,26,1],[21,2,23,3],[24,2,26,3],[27,0,32,1],[27,2,29,3],[30,2,32,3],[18,0,20,1],[18,2,20,3],[18,4,18,10],[17,0,17,2]]}
["自家用有償旅客運送者登録簿",null,null,null,null,null,null,null,null,null,null,"第２号様式（第５１条の５関係）",null,null,"目次"]
["登録番号",null,null,"北旭福第24号",null,null,null,null,null,null,null,"←福祉のシートからコピペ"]
["登録年月日",null,null,"2006-10-01"]
["更新登録年月日",null,null,"2023-03-31"]
["有効期間",null,null,"2026-03-31",null,null,null,null,null,null,null,"本省様式はなし"]
["名称",null,null,"社会福祉法人　剣淵町社会福祉協議会"]
["代表者の氏名",null,null,"会長　柴田　泰成"]
["住所",null,null,"上川郡剣淵町仲町28番1号"]
["運送の種別",null,null,"福祉有償運送"]
[null,null,null,"○"]
["事務所の名称及び位置",null,null,"名　　　　称",null,"位　　　　　置",null,"名　　　　称",null,"位　　　　　置"]
[null,null,null,"剣淵町社会福祉協議会",null,"上川郡剣淵町仲町28番1号 剣淵町健康福祉総合センター内"]
[]
["路線又は運送の区域",null,null,"剣淵町"]
["運送する旅客の範囲",null,null,"ニ"]
["事業者協力型自家用有償旅客運送を行うときは協力を得る一般旅客自動車運送事業者の氏名又は名称及び住所",null,null,"氏名又は名称",null,"住　　　　所",null,"氏名又は名称",null,"住　　　　所"]
[]
["備考"]
["運送の種別",null,"事務所",null,"　　自家用有償旅客運送自動車の数"]
[null,null,null,null,"寝台車","車いす車","兼用車","回転シート車","セダン等","バ　ス","合　計"]
[null,null,null,null,"（軽自動車）","（軽自動車）","（軽自動車）","（軽自動車）","（軽自動車）",null,"（軽自動車）"]
["福祉有償運送",null,"剣淵町社会福祉協議会"]
[null,null,null,null,null,2,null,null,2,null,4]
[null,null,null,null,null,-1,null,null,null,null,-1]
[]
[null,null,null,null,null,null,null,null,null,null,0]
[null,null,null,null,null,null,null,null,null,null,0]
[]
[null,null,null,null,null,null,null,null,null,null,0]
[null,null,null,null,null,null,null,null,null,null,0]
[]
[null,null,null,null,null,null,null,null,null,null,0]
[null,null,null,null,null,null,null,null,null,null,0]
[null,null,"合計"]
[null,null,null,null,{"$f":"SUM(E23+E26+E29+E32)","v":0},{"$f":"SUM(F23+F26+F29+F32)","v":2},0,0,2,0,{"$f":"SUM(E35:J35)","v":4}]
[null,null,null,null,{"$f":"SUM(E24+E27+E30+E33)","v":0},{"$f":"SUM(F24+F27+F30+F33)","v":-1},{"$f":"SUM(G24+G27+G30+G33)","v":0},{"$f":"SUM(H24+H27+H30+H33)","v":0},{"$f":"SUM(I24+I27+I30+I33)","v":0},null,{"$f":"SUM(E36:I36)","v":-1}]

{"sheet":"北旭福第26号","index":28,"n_rows":36,"n_cols":15,"rows_kept":36,"cut":false,"hidden":false,"merged":[[0,0,0,10],[0,14,0,16],[1,0,1,2],[1,3,1,10],[2,0,2,2],[2,3,2,10],[3,0,3,2],[3,3,3,10],[4,0,4,2],[4,3,4,10],[5,0,5,2],[5,3,5,10],[6,0,6,2],[6,3,6,10],[7,0,7,2],[7,3,7,10],[8,0,9,2],[8,3,8,10],[9,3,9,10],[12,5,12,6],[12,7,12,8],[12,9,12,10],[13,0,13,2],[13,3,13,6],[13,7,13,10],[10,0,12,2],[10,3,10,4],[10,5,10,6],[10,7,10,8],[10,9,10,10],[11,3,11,4],[11,5,11,6],[11,7,11,8],[11,9,11,10],[12,3,12,4],[14,0,14,2],[14,3,14,6],[14,7,14,10],[15,0,16,2],[15,3,15,4],[15,5,15,6],[15,7,15,8],[15,9,15,10],[16,3,16,4],[16,5,16,6],[16,7,16,8],[16,9,16,10],[17,3,17,6],[17,7,17,10],[33,0,35,1],[33,2,35,3],[21,0,26,1],[21,2,23,3],[24,2,26,3],[27,0,32,1],[27,2,29,3],[30,2,32,3],[18,0,20,1],[18,2,20,3],[18,4,18,10],[17,0,17,2]]}
["自家用有償旅客運送者登録簿",null,null,null,null,null,null,null,null,null,null,"第２号様式（第５１条の５関係）",null,null,"目次"]
["登録番号",null,null,"北旭福第26号",null,null,null,null,null,null,null,"←福祉のシートからコピペ"]
["登録年月日",null,null,"2006-10-01"]
["更新登録年月日",null,null,"2023-03-14"]
["有効期間",null,null,"2026-03-31",null,null,null,null,null,null,null,"本省様式はなし"]
["名称",null,null,"社会福祉法人　天塩町社会福祉協議会"]
["代表者の氏名",null,null,"会長　長瀬　啓嗣"]
["住所",null,null,"天塩郡天塩町字川口5699番地の1"]
["運送の種別",null,null,"福祉有償運送"]
[null,null,null,"○"]
["事務所の名称及び位置",null,null,"名　　　　称",null,"位　　　　　置",null,"名　　　　称",null,"位　　　　　置"]
[null,null,null,"本部事務所",null,"天塩郡天塩町字川口5699番地の1"]
[]
["路線又は運送の区域",null,null,"天塩町"]
["運送する旅客の範囲",null,null,"イニホヘト"]
["事業者協力型自家用有償旅客運送を行うときは協力を得る一般旅客自動車運送事業者の氏名又は名称及び住所",null,null,"氏名又は名称",null,"住　　　　所",null,"氏名又は名称",null,"住　　　　所"]
[]
["備考"]
["運送の種別",null,"事務所",null,"　　自家用有償旅客運送自動車の数"]
[null,null,null,null,"寝台車","車いす車","兼用車","回転シート車","セダン等","バ　ス","合　計"]
[null,null,null,null,"（軽自動車）","（軽自動車）","（軽自動車）","（軽自動車）","（軽自動車）",null,"（軽自動車）"]
["福祉有償運送",null,"本部事務所"]
[null,null,null,null,null,6,null,null,2,null,8]
[null,null,null,null,null,-2,null,null,null,null,-2]
[]
[null,null,null,null,null,null,null,null,null,null,0]
[null,null,null,null,null,null,null,null,null,null,0]
[]
[null,null,null,null,null,null,null,null,null,null,0]
[null,null,null,null,null,null,null,null,null,null,0]
[]
[null,null,null,null,null,null,null,null,null,null,0]
[null,null,null,null,null,null,null,null,null,null,0]
[null,null,"合計"]
[null,null,null,null,{"$f":"SUM(E23+E26+E29+E32)","v":0},{"$f":"SUM(F23+F26+F29+F32)","v":6},0,0,2,0,{"$f":"SUM(E35:J35)","v":8}]
[null,null,null,null,{"$f":"SUM(E24+E27+E30+E33)","v":0},{"$f":"SUM(F24+F27+F30+F33)","v":-2},{"$f":"SUM(G24+G27+G30+G33)","v":0},{"$f":"SUM(H24+H27+H30+H33)","v":0},{"$f":"SUM(I24+I27+I30+I33)","v":0},null,{"$f":"SUM(E36:I36)","v":-2}]

{"sheet":"北旭福第27号","index":29,"n_rows":36,"n_cols":15,"rows_kept":36,"cut":false,"hidden":false,"merged":[[0,0,0,10],[0,14,0,16],[1,0,1,2],[1,3,1,10],[2,0,2,2],[2,3,2,10],[3,0,3,2],[3,3,3,10],[4,0,4,2],[4,3,4,10],[5,0,5,2],[5,3,5,10],[6,0,6,2],[6,3,6,10],[7,0,7,2],[7,3,7,10],[8,0,9,2],[8,3,8,10],[9,3,9,10],[12,5,12,6],[12,7,12,8],[12,9,12,10],[13,0,13,2],[13,3,13,6],[13,7,13,10],[10,0,12,2],[10,3,10,4],[10,5,10,6],[10,7,10,8],[10,9,10,10],[11,3,11,4],[11,5,11,6],[11,7,11,8],[11,9,11,10],[12,3,12,4],[14,0,14,2],[14,3,14,6],[14,7,14,10],[15,0,16,2],[15,3,15,4],[15,5,15,6],[15,7,15,8],[15,9,15,10],[16,3,16,4],[16,5,16,6],[16,7,16,8],[16,9,16,10],[17,3,17,6],[17,7,17,10],[33,0,35,1],[33,2,35,3],[21,0,26,1],[21,2,23,3],[24,2,26,3],[27,0,32,1],[27,2,29,3],[30,2,32,3],[18,0,20,1],[18,2,20,3],[18,4,18,10],[17,0,17,2]]}
["自家用有償旅客運送者登録簿",null,null,null,null,null,null,null,null,null,null,"第２号様式（第５１条の５関係）",null,null,"目次"]
["登録番号",null,null,"北旭福第27号",null,null,null,null,null,null,null,"←福祉のシートからコピペ"]
["登録年月日",null,null,"2006-10-01"]
["更新登録年月日",null,null,"2023-03-28"]
["有効期間",null,null,"2026-03-31",null,null,null,null,null,null,null,"本省様式はなし"]
["名称",null,null,"特定非営利活動法人　ウイシュ"]
["代表者の氏名",null,null,"下田　智"]
["住所",null,null,"留萌市明元町６丁目２２－１"]
["運送の種別",null,null,"福祉有償運送"]
[null,null,null,"○"]
["事務所の名称及び位置",null,null,"名　　　　称",null,"位　　　　　置",null,"名　　　　称",null,"位　　　　　置"]
[null,null,null,"特定非営利活動法人ウイシュ",null,"留萌市明元町６丁目２２－１"]
[]
["路線又は運送の区域",null,null,"留萌市"]
["運送する旅客の範囲",null,null,"ニホ"]
["事業者協力型自家用有償旅客運送を行うときは協力を得る一般旅客自動車運送事業者の氏名又は名称及び住所",null,null,"氏名又は名称",null,"住　　　　所",null,"氏名又は名称",null,"住　　　　所"]
[]
["備考"]
["運送の種別",null,"事務所",null,"　　自家用有償旅客運送自動車の数"]
[null,null,null,null,"寝台車","車いす車","兼用車","回転シート車","セダン等","バ　ス","合　計"]
[null,null,null,null,"（軽自動車）","（軽自動車）","（軽自動車）","（軽自動車）","（軽自動車）",null,"（軽自動車）"]
["福祉有償運送",null,"特定非営利活動法人ウイシュ"]
[null,null,null,null,null,1,null,null,2,null,3]
[null,null,null,null,null,-1,null,null,null,null,-1]
[]
[null,null,null,null,null,null,null,null,null,null,0]
[null,null,null,null,null,null,null,null,null,null,0]
[]
[null,null,null,null,null,null,null,null,null,null,0]
[null,null,null,null,null,null,null,null,null,null,0]
[]
[null,null,null,null,null,null,null,null,null,null,0]
[null,null,null,null,null,null,null,null,null,null,0]
[null,null,"合計"]
[null,null,null,null,{"$f":"SUM(E23+E26+E29+E32)","v":0},{"$f":"SUM(F23+F26+F29+F32)","v":1},0,0,2,0,{"$f":"SUM(E35:J35)","v":3}]
[null,null,null,null,{"$f":"SUM(E24+E27+E30+E33)","v":0},{"$f":"SUM(F24+F27+F30+F33)","v":-1},{"$f":"SUM(G24+G27+G30+G33)","v":0},{"$f":"SUM(H24+H27+H30+H33)","v":0},{"$f":"SUM(I24+I27+I30+I33)","v":0},null,{"$f":"SUM(E36:I36)","v":-1}]

{"sheet":"北旭福第28号","index":30,"n_rows":36,"n_cols":15,"rows_kept":36,"cut":false,"hidden":false,"merged":[[0,0,0,10],[0,14,0,16],[1,0,1,2],[1,3,1,10],[2,0,2,2],[2,3,2,10],[3,0,3,2],[3,3,3,10],[4,0,4,2],[4,3,4,10],[5,0,5,2],[5,3,5,10],[6,0,6,2],[6,3,6,10],[7,0,7,2],[7,3,7,10],[8,0,9,2],[8,3,8,10],[9,3,9,10],[12,5,12,6],[12,7,12,8],[12,9,12,10],[13,0,13,2],[13,3,13,6],[13,7,13,10],[10,0,12,2],[10,3,10,4],[10,5,10,6],[10,7,10,8],[10,9,10,10],[11,3,11,4],[11,5,11,6],[11,7,11,8],[11,9,11,10],[12,3,12,4],[14,0,14,2],[14,3,14,6],[14,7,14,10],[15,0,16,2],[15,3,15,4],[15,5,15,6],[15,7,15,8],[15,9,15,10],[16,3,16,4],[16,5,16,6],[16,7,16,8],[16,9,16,10],[17,3,17,6],[17,7,17,10],[33,0,35,1],[33,2,35,3],[21,0,26,1],[21,2,23,3],[24,2,26,3],[27,0,32,1],[27,2,29,3],[30,2,32,3],[18,0,20,1],[18,2,20,3],[18,4,18,10],[17,0,17,2]]}
["自家用有償旅客運送者登録簿",null,null,null,null,null,null,null,null,null,null,"第２号様式（第５１条の５関係）",null,null,"目次"]
["登録番号",null,null,"北旭福第28号",null,null,null,null,null,null,null,"←福祉のシートからコピペ"]
["登録年月日",null,null,"2006-10-01"]
["更新登録年月日",null,null,"2023-08-24"]
["有効期間",null,null,"2026-08-31",null,null,null,null,null,null,null,"本省様式はなし"]
["名称",null,null,"社会福祉法人　歌登福祉会"]
["代表者の氏名",null,null,"理事長　澤田　礼二"]
["住所",null,null,"枝幸郡枝幸町歌登桧垣町142番地"]
["運送の種別",null,null,"福祉有償運送"]
[null,null,null,"○"]
["事務所の名称及び位置",null,null,"名　　　　称",null,"位　　　　　置",null,"名　　　　称",null,"位　　　　　置"]
[null,null,null,"歌翠園",null,"枝幸郡枝幸町歌登桧垣町１４２番地"]
[]
["路線又は運送の区域",null,null,"枝幸町歌登地区"]
["運送する旅客の範囲",null,null,"イニト"]
["事業者協力型自家用有償旅客運送を行うときは協力を得る一般旅客自動車運送事業者の氏名又は名称及び住所",null,null,"氏名又は名称",null,"住　　　　所",null,"氏名又は名称",null,"住　　　　所"]
[]
["備考"]
["運送の種別",null,"事務所",null,"　　自家用有償旅客運送自動車の数"]
[null,null,null,null,"寝台車","車いす車","兼用車","回転シート車","セダン等","バ　ス","合　計"]
[null,null,null,null,"（軽自動車）","（軽自動車）","（軽自動車）","（軽自動車）","（軽自動車）",null,"（軽自動車）"]
["福祉有償運送",null,"歌翠園"]
[null,null,null,null,null,null,2,null,null,null,2]
[null,null,null,null,null,null,null,null,null,null,0]
[]
[null,null,null,null,null,null,null,null,null,null,0]
[null,null,null,null,null,null,null,null,null,null,0]
[]
[null,null,null,null,null,null,null,null,null,null,0]
[null,null,null,null,null,null,null,null,null,null,0]
[]
[null,null,null,null,null,null,null,null,null,null,0]
[null,null,null,null,null,null,null,null,null,null,0]
[null,null,"合計"]
[null,null,null,null,{"$f":"SUM(E23+E26+E29+E32)","v":0},{"$f":"SUM(F23+F26+F29+F32)","v":0},2,0,0,0,{"$f":"SUM(E35:J35)","v":2}]
[null,null,null,null,{"$f":"SUM(E24+E27+E30+E33)","v":0},{"$f":"SUM(F24+F27+F30+F33)","v":0},{"$f":"SUM(G24+G27+G30+G33)","v":0},{"$f":"SUM(H24+H27+H30+H33)","v":0},{"$f":"SUM(I24+I27+I30+I33)","v":0},null,{"$f":"SUM(E36:I36)","v":0}]

{"sheet":"北旭福第29号","index":31,"n_rows":36,"n_cols":15,"rows_kept":36,"cut":false,"hidden":false,"merged":[[0,0,0,10],[0,14,0,16],[1,0,1,2],[1,3,1,10],[2,0,2,2],[2,3,2,10],[3,0,3,2],[3,3,3,10],[4,0,4,2],[4,3,4,10],[5,0,5,2],[5,3,5,10],[6,0,6,2],[6,3,6,10],[7,0,7,2],[7,3,7,10],[8,0,9,2],[8,3,8,10],[9,3,9,10],[12,5,12,6],[12,7,12,8],[12,9,12,10],[13,0,13,2],[13,3,13,6],[13,7,13,10],[10,0,12,2],[10,3,10,4],[10,5,10,6],[10,7,10,8],[10,9,10,10],[11,3,11,4],[11,5,11,6],[11,7,11,8],[11,9,11,10],[12,3,12,4],[14,0,14,2],[14,3,14,6],[14,7,14,10],[15,0,16,2],[15,3,15,4],[15,5,15,6],[15,7,15,8],[15,9,15,10],[16,3,16,4],[16,5,16,6],[16,7,16,8],[16,9,16,10],[17,3,17,6],[17,7,17,10],[33,0,35,1],[33,2,35,3],[21,0,26,1],[21,2,23,3],[24,2,26,3],[27,0,32,1],[27,2,29,3],[30,2,32,3],[18,0,20,1],[18,2,20,3],[18,4,18,10],[17,0,17,2]]}
["自家用有償旅客運送者登録簿",null,null,null,null,null,null,null,null,null,null,"第２号様式（第５１条の５関係）",null,null,"目次"]
["登録番号",null,null,"北旭福第29号",null,null,null,null,null,null,null,"←福祉のシートからコピペ"]
["登録年月日",null,null,"2006-10-01"]
["更新登録年月日",null,null,"2022-05-27"]
["有効期間",null,null,"2025-04-30",null,null,null,null,null,null,null,"本省様式はなし"]
["名称",null,null,"社会福祉法人　　南富良野大乗会"]
["代表者の氏名",null,null,"理事長　鷹嘴　充子"]
["住所",null,null,"空知郡南富良野町字幾寅528番2"]
["運送の種別",null,null,"福祉有償運送"]
[null,null,null,"○"]
["事務所の名称及び位置",null,null,"名　　　　称",null,"位　　　　　置",null,"名　　　　称",null,"位　　　　　置"]
[null,null,null,"南富良野からまつ園",null,"空知郡南富良野町字幾寅528番2",null,"なんぷ～香房",null,"空知郡南富良野町字幾寅695番地2"]
[null,null,null,"南富良野こざくら園",null,null,null,"ふくしあ",null,"空知郡南富良野町字金山586番地4"]
["路線又は運送の区域",null,null,"南富良野町"]
["運送する旅客の範囲",null,null,"　　ハニ"]
["事業者協力型自家用有償旅客運送を行うときは協力を得る一般旅客自動車運送事業者の氏名又は名称及び住所",null,null,"氏名又は名称",null,"住　　　　所",null,"氏名又は名称",null,"住　　　　所"]
[]
["備考"]
["運送の種別",null,"事務所",null,"　　自家用有償旅客運送自動車の数"]
[null,null,null,null,"寝台車","車いす車","兼用車","回転シート車","セダン等","バ　ス","合　計"]
[null,null,null,null,"（軽自動車）","（軽自動車）","（軽自動車）","（軽自動車）","（軽自動車）",null,"（軽自動車）"]
["福祉有償運送",null,"南富良野からまつ園"]
[null,null,null,null,null,1,null,null,3,null,4]
[null,null,null,null,null,null,null,null,-1,null,-1]
[null,null,"南富良野こざくら園"]
[null,null,null,null,null,1,null,null,2,null,3]
[null,null,null,null,null,null,null,null,null,null,0]
[null,null,"なんぷ～香房"]
[null,null,null,null,null,null,null,null,2,null,2]
[null,null,null,null,null,null,null,null,null,null,0]
[null,null,"ふくしあ"]
[null,null,null,null,null,1,null,null,null,null,1]
[null,null,null,null,null,null,null,null,null,null,0]
[null,null,"合計"]
[null,null,null,null,{"$f":"SUM(E23+E26+E29+E32)","v":0},{"$f":"SUM(F23+F26+F29+F32)","v":3},0,0,7,0,{"$f":"SUM(E35:J35)","v":10}]
[null,null,null,null,{"$f":"SUM(E24+E27+E30+E33)","v":0},{"$f":"SUM(F24+F27+F30+F33)","v":0},{"$f":"SUM(G24+G27+G30+G33)","v":0},{"$f":"SUM(H24+H27+H30+H33)","v":0},{"$f":"SUM(I24+I27+I30+I33)","v":-1},null,{"$f":"SUM(E36:I36)","v":-1}]

{"sheet":"北旭福第32号","index":32,"n_rows":36,"n_cols":15,"rows_kept":36,"cut":false,"hidden":false,"merged":[[0,0,0,10],[0,14,0,16],[1,0,1,2],[1,3,1,10],[2,0,2,2],[2,3,2,10],[3,0,3,2],[3,3,3,10],[4,0,4,2],[4,3,4,10],[5,0,5,2],[5,3,5,10],[6,0,6,2],[6,3,6,10],[7,0,7,2],[7,3,7,10],[8,0,9,2],[8,3,8,10],[9,3,9,10],[12,5,12,6],[12,7,12,8],[12,9,12,10],[13,0,13,2],[13,3,13,6],[13,7,13,10],[10,0,12,2],[10,3,10,4],[10,5,10,6],[10,7,10,8],[10,9,10,10],[11,3,11,4],[11,5,11,6],[11,7,11,8],[11,9,11,10],[12,3,12,4],[14,0,14,2],[14,3,14,6],[14,7,14,10],[15,0,16,2],[15,3,15,4],[15,5,15,6],[15,7,15,8],[15,9,15,10],[16,3,16,4],[16,5,16,6],[16,7,16,8],[16,9,16,10],[17,3,17,6],[17,7,17,10],[33,0,35,1],[33,2,35,3],[21,0,26,1],[21,2,23,3],[24,2,26,3],[27,0,32,1],[27,2,29,3],[30,2,32,3],[18,0,20,1],[18,2,20,3],[18,4,18,10],[17,0,17,2]]}
["自家用有償旅客運送者登録簿",null,null,null,null,null,null,null,null,null,null,"第２号様式（第５１条の５関係）",null,null,"目次"]
["登録番号",null,null,"北旭福第32号",null,null,null,null,null,null,null,"←福祉のシートからコピペ"]
["登録年月日",null,null,"2010-03-19"]
["更新登録年月日",null,null,"2021-04-07"]
["有効期間",null,null,"2024-03-31",null,null,null,null,null,null,null,"本省様式はなし"]
["名称",null,null,"社会福祉法人　浜頓別福祉会"]
["代表者の氏名",null,null,"理事長　平井　義春"]
["住所",null,null,"枝幸郡浜頓別町旭ヶ丘3丁目８番地"]
["運送の種別",null,null,"福祉有償運送"]
[null,null,null,"○"]
["事務所の名称及び位置",null,null,"名　　　　称",null,"位　　　　　置",null,"名　　　　称",null,"位　　　　　置"]
[null,null,null,"特別養護老人ホーム　清風苑",null,"枝幸郡浜頓別町旭ヶ丘3丁目８番地"]
[]
["路線又は運送の区域",null,null,"浜頓別町"]
["運送する旅客の範囲",null,null,"イロハニホ　ト"]
["事業者協力型自家用有償旅客運送を行うときは協力を得る一般旅客自動車運送事業者の氏名又は名称及び住所",null,null,"氏名又は名称",null,"住　　　　所",null,"氏名又は名称",null,"住　　　　所"]
[]
["備考"]
["運送の種別",null,"事務所",null,"　　自家用有償旅客運送自動車の数"]
[null,null,null,null,"寝台車","車いす車","兼用車","回転シート車","セダン等","バ　ス","合　計"]
[null,null,null,null,"（軽自動車）","（軽自動車）","（軽自動車）","（軽自動車）","（軽自動車）",null,"（軽自動車）"]
["福祉有償運送",null,"特別養護老人ホーム　清風苑"]
[null,null,null,null,null,3,null,null,1,null,4]
[null,null,null,null,null,null,null,null,null,null,0]
[]
[null,null,null,null,null,null,null,null,null,null,0]
[null,null,null,null,null,null,null,null,null,null,0]
[]
[null,null,null,null,null,null,null,null,null,null,0]
[null,null,null,null,null,null,null,null,null,null,0]
[]
[null,null,null,null,null,null,null,null,null,null,0]
[null,null,null,null,null,null,null,null,null,null,0]
[null,null,"合計"]
[null,null,null,null,{"$f":"SUM(E23+E26+E29+E32)","v":0},{"$f":"SUM(F23+F26+F29+F32)","v":3},0,0,1,0,{"$f":"SUM(E35:J35)","v":4}]
[null,null,null,null,{"$f":"SUM(E24+E27+E30+E33)","v":0},{"$f":"SUM(F24+F27+F30+F33)","v":0},{"$f":"SUM(G24+G27+G30+G33)","v":0},{"$f":"SUM(H24+H27+H30+H33)","v":0},{"$f":"SUM(I24+I27+I30+I33)","v":0},null,{"$f":"SUM(E36:I36)","v":0}]

{"sheet":"北旭福第36号","index":33,"n_rows":36,"n_cols":15,"rows_kept":36,"cut":false,"hidden":false,"merged":[[0,0,0,10],[0,14,0,16],[1,0,1,2],[1,3,1,10],[2,0,2,2],[2,3,2,10],[3,0,3,2],[3,3,3,10],[4,0,4,2],[4,3,4,10],[5,0,5,2],[5,3,5,10],[6,0,6,2],[6,3,6,10],[7,0,7,2],[7,3,7,10],[8,0,9,2],[8,3,8,10],[9,3,9,10],[12,5,12,6],[12,7,12,8],[12,9,12,10],[13,0,13,2],[13,3,13,6],[13,7,13,10],[10,0,12,2],[10,3,10,4],[10,5,10,6],[10,7,10,8],[10,9,10,10],[11,3,11,4],[11,5,11,6],[11,7,11,8],[11,9,11,10],[12,3,12,4],[14,0,14,2],[14,3,14,6],[14,7,14,10],[15,0,16,2],[15,3,15,4],[15,5,15,6],[15,7,15,8],[15,9,15,10],[16,3,16,4],[16,5,16,6],[16,7,16,8],[16,9,16,10],[17,3,17,6],[17,7,17,10],[33,0,35,1],[33,2,35,3],[21,0,26,1],[21,2,23,3],[24,2,26,3],[27,0,32,1],[27,2,29,3],[30,2,32,3],[18,0,20,1],[18,2,20,3],[18,4,18,10],[17,0,17,2]]}
["自家用有償旅客運送者登録簿",null,null,null,null,null,null,null,null,null,null,"第２号様式（第５１条の５関係）",null,null,"目次"]
["登録番号",null,null,"北旭福第36号",null,null,null,null,null,null,null,"←福祉のシートからコピペ"]
["登録年月日",null,null,"2011-09-15"]
["更新登録年月日",null,null,"2022-09-15"]
["有効期間",null,null,"2025-09-30",null,null,null,null,null,null,null,"本省様式はなし"]
["名称",null,null,"社会福祉法人　苫前町社会福祉協議会"]
["代表者の氏名",null,null,"会長　渡部　一男"]
["住所",null,null,"苫前郡苫前町字旭３７番地の１"]
["運送の種別",null,null,"福祉有償運送"]
[null,null,null,"○"]
["事務所の名称及び位置",null,null,"名　　　　称",null,"位　　　　　置",null,"名　　　　称",null,"位　　　　　置"]
[null,null,null,"社会福祉法人苫前町社会福祉協議会",null,"苫前郡苫前町字旭３７番地の１"]
[]
["路線又は運送の区域",null,null,"苫前町"]
["運送する旅客の範囲",null,null,"　　　　ニホ"]
["事業者協力型自家用有償旅客運送を行うときは協力を得る一般旅客自動車運送事業者の氏名又は名称及び住所",null,null,"氏名又は名称",null,"住　　　　所",null,"氏名又は名称",null,"住　　　　所"]
[]
["備考"]
["運送の種別",null,"事務所",null,"　　自家用有償旅客運送自動車の数"]
[null,null,null,null,"寝台車","車いす車","兼用車","回転シート車","セダン等","バ　ス","合　計"]
[null,null,null,null,"（軽自動車）","（軽自動車）","（軽自動車）","（軽自動車）","（軽自動車）",null,"（軽自動車）"]
["福祉有償運送",null,"社会福祉法人苫前町社会福祉協議会"]
[null,null,null,null,null,2,null,1,3,null,6]
[null,null,null,null,null,-2,null,null,-2,null,-4]
[]
[null,null,null,null,null,null,null,null,null,null,0]
[null,null,null,null,null,null,null,null,null,null,0]
[]
[null,null,null,null,null,null,null,null,null,null,0]
[null,null,null,null,null,null,null,null,null,null,0]
[]
[null,null,null,null,null,null,null,null,null,null,0]
[null,null,null,null,null,null,null,null,null,null,0]
[null,null,"合計"]
[null,null,null,null,{"$f":"SUM(E23+E26+E29+E32)","v":0},{"$f":"SUM(F23+F26+F29+F32)","v":2},0,1,3,0,{"$f":"SUM(E35:J35)","v":6}]
[null,null,null,null,{"$f":"SUM(E24+E27+E30+E33)","v":0},{"$f":"SUM(F24+F27+F30+F33)","v":-2},{"$f":"SUM(G24+G27+G30+G33)","v":0},{"$f":"SUM(H24+H27+H30+H33)","v":0},{"$f":"SUM(I24+I27+I30+I33)","v":-2},null,{"$f":"SUM(E36:I36)","v":-4}]

{"sheet":"北旭福第38号","index":34,"n_rows":36,"n_cols":15,"rows_kept":36,"cut":false,"hidden":false,"merged":[[0,0,0,10],[0,14,0,16],[1,0,1,2],[1,3,1,10],[2,0,2,2],[2,3,2,10],[3,0,3,2],[3,3,3,10],[4,0,4,2],[4,3,4,10],[5,0,5,2],[5,3,5,10],[6,0,6,2],[6,3,6,10],[7,0,7,2],[7,3,7,10],[8,0,9,2],[8,3,8,10],[9,3,9,10],[12,5,12,6],[12,7,12,8],[12,9,12,10],[13,0,13,2],[13,3,13,6],[13,7,13,10],[10,0,12,2],[10,3,10,4],[10,5,10,6],[10,7,10,8],[10,9,10,10],[11,3,11,4],[11,5,11,6],[11,7,11,8],[11,9,11,10],[12,3,12,4],[14,0,14,2],[14,3,14,6],[14,7,14,10],[15,0,16,2],[15,3,15,4],[15,5,15,6],[15,7,15,8],[15,9,15,10],[16,3,16,4],[16,5,16,6],[16,7,16,8],[16,9,16,10],[17,3,17,6],[17,7,17,10],[33,0,35,1],[33,2,35,3],[21,0,26,1],[21,2,23,3],[24,2,26,3],[27,0,32,1],[27,2,29,3],[30,2,32,3],[18,0,20,1],[18,2,20,3],[18,4,18,10],[17,0,17,2]]}
["自家用有償旅客運送者登録簿",null,null,null,null,null,null,null,null,null,null,"第２号様式（第５１条の５関係）",null,null,"目次"]
["登録番号",null,null,"北旭福第38号",null,null,null,null,null,null,null,"←福祉のシートからコピペ"]
["登録年月日",null,null,"2014-02-27"]
["更新登録年月日",null,null,"2022-03-04"]
["有効期間",null,null,"2025-02-28",null,null,null,null,null,null,null,"本省様式はなし"]
["名称",null,null,"特定非営利活動法人　南宗谷ひだまりの会"]
["代表者の氏名",null,null,"理事長　　開米　一有"]
["住所",null,null,"枝幸郡枝幸町新栄町３１４番地１"]
["運送の種別",null,null,"福祉有償運送"]
[null,null,null,"○"]
["事務所の名称及び位置",null,null,"名　　　　称",null,"位　　　　　置",null,"名　　　　称",null,"位　　　　　置"]
[null,null,null,"特定非営利活動法人南宗谷ひだまりの会",null,"枝幸郡枝幸町新栄町３１４番地１"]
[]
["路線又は運送の区域",null,null,"枝幸町"]
["運送する旅客の範囲",null,null,"イロハ　　　ト"]
["事業者協力型自家用有償旅客運送を行うときは協力を得る一般旅客自動車運送事業者の氏名又は名称及び住所",null,null,"氏名又は名称",null,"住　　　　所",null,"氏名又は名称",null,"住　　　　所"]
[]
["備考"]
["運送の種別",null,"事務所",null,"　　自家用有償旅客運送自動車の数"]
[null,null,null,null,"寝台車","車いす車","兼用車","回転シート車","セダン等","バ　ス","合　計"]
[null,null,null,null,"（軽自動車）","（軽自動車）","（軽自動車）","（軽自動車）","（軽自動車）",null,"（軽自動車）"]
["福祉有償運送",null,"特定非営利活動法人南宗谷ひだまりの会"]
[null,null,null,null,null,null,1,null,1,null,2]
[null,null,null,null,null,null,null,null,-1,null,-1]
[]
[null,null,null,null,null,null,null,null,null,null,0]
[null,null,null,null,null,null,null,null,null,null,0]
[]
[null,null,null,null,null,null,null,null,null,null,0]
[null,null,null,null,null,null,null,null,null,null,0]
[]
[null,null,null,null,null,null,null,null,null,null,0]
[null,null,null,null,null,null,null,null,null,null,0]
[null,null,"合計"]
[null,null,null,null,{"$f":"SUM(E23+E26+E29+E32)","v":0},{"$f":"SUM(F23+F26+F29+F32)","v":0},1,0,1,0,{"$f":"SUM(E35:J35)","v":2}]
[null,null,null,null,{"$f":"SUM(E24+E27+E30+E33)","v":0},{"$f":"SUM(F24+F27+F30+F33)","v":0},{"$f":"SUM(G24+G27+G30+G33)","v":0},{"$f":"SUM(H24+H27+H30+H33)","v":0},{"$f":"SUM(I24+I27+I30+I33)","v":-1},null,{"$f":"SUM(E36:I36)","v":-1}]

{"sheet":"北旭福第40号","index":35,"n_rows":36,"n_cols":15,"rows_kept":36,"cut":false,"hidden":false,"merged":[[0,0,0,10],[0,14,0,16],[1,0,1,2],[1,3,1,10],[2,0,2,2],[2,3,2,10],[3,0,3,2],[3,3,3,10],[4,0,4,2],[4,3,4,10],[5,0,5,2],[5,3,5,10],[6,0,6,2],[6,3,6,10],[7,0,7,2],[7,3,7,10],[8,0,9,2],[8,3,8,10],[9,3,9,10],[12,5,12,6],[12,7,12,8],[12,9,12,10],[13,0,13,2],[13,3,13,6],[13,7,13,10],[10,0,12,2],[10,3,10,4],[10,5,10,6],[10,7,10,8],[10,9,10,10],[11,3,11,4],[11,5,11,6],[11,7,11,8],[11,9,11,10],[12,3,12,4],[14,0,14,2],[14,3,14,6],[14,7,14,10],[15,0,16,2],[15,3,15,4],[15,5,15,6],[15,7,15,8],[15,9,15,10],[16,3,16,4],[16,5,16,6],[16,7,16,8],[16,9,16,10],[17,3,17,6],[17,7,17,10],[33,0,35,1],[33,2,35,3],[21,0,26,1],[21,2,23,3],[24,2,26,3],[27,0,32,1],[27,2,29,3],[30,2,32,3],[18,0,20,1],[18,2,20,3],[18,4,18,10],[17,0,17,2]]}
["自家用有償旅客運送者登録簿",null,null,null,null,null,null,null,null,null,null,"第２号様式（第５１条の５関係）",null,null,"目次"]
["登録番号",null,null,"北旭福第40号",null,null,null,null,null,null,null,"←福祉のシートからコピペ"]
["登録年月日",null,null,"2014-03-18"]
["更新登録年月日",null,null,"2022-04-22"]
["有効期間",null,null,"2025-03-31",null,null,null,null,null,null,null,"本省様式はなし"]
["名称",null,null,"社会福祉法人　揺籃会"]
["代表者の氏名",null,null,"理事長　　永倉　隆太郎"]
["住所",null,null,"深川市納内町２丁目４１２３番地４"]
["運送の種別",null,null,"福祉有償運送"]
[null,null,null,"○"]
["事務所の名称及び位置",null,null,"名　　　　称",null,"位　　　　　置",null,"名　　　　称",null,"位　　　　　置"]
[null,null,null,"特別養護老人ホーム清祥園",null,"深川市納内町北３番９７号"]
[]
["路線又は運送の区域",null,null,"深川市"]
["運送する旅客の範囲",null,null,"　　　　ニ"]
["事業者協力型自家用有償旅客運送を行うときは協力を得る一般旅客自動車運送事業者の氏名又は名称及び住所",null,null,"氏名又は名称",null,"住　　　　所",null,"氏名又は名称",null,"住　　　　所"]
[]
["備考"]
["運送の種別",null,"事務所",null,"　　自家用有償旅客運送自動車の数"]
[null,null,null,null,"寝台車","車いす車","兼用車","回転シート車","セダン等","バ　ス","合　計"]
[null,null,null,null,"（軽自動車）","（軽自動車）","（軽自動車）","（軽自動車）","（軽自動車）",null,"（軽自動車）"]
["福祉有償運送",null,"特別養護老人ホーム清祥園"]
[null,null,null,null,null,2,null,null,null,null,2]
[null,null,null,null,null,null,null,null,null,null,0]
[]
[null,null,null,null,null,null,null,null,null,null,0]
[null,null,null,null,null,null,null,null,null,null,0]
[]
[null,null,null,null,null,null,null,null,null,null,0]
[null,null,null,null,null,null,null,null,null,null,0]
[]
[null,null,null,null,null,null,null,null,null,null,0]
[null,null,null,null,null,null,null,null,null,null,0]
[null,null,"合計"]
[null,null,null,null,{"$f":"SUM(E23+E26+E29+E32)","v":0},{"$f":"SUM(F23+F26+F29+F32)","v":2},0,0,0,0,{"$f":"SUM(E35:J35)","v":2}]
[null,null,null,null,{"$f":"SUM(E24+E27+E30+E33)","v":0},{"$f":"SUM(F24+F27+F30+F33)","v":0},{"$f":"SUM(G24+G27+G30+G33)","v":0},{"$f":"SUM(H24+H27+H30+H33)","v":0},{"$f":"SUM(I24+I27+I30+I33)","v":0},null,{"$f":"SUM(E36:I36)","v":0}]

{"sheet":"北旭福第41号","index":36,"n_rows":36,"n_cols":15,"rows_kept":36,"cut":false,"hidden":false,"merged":[[0,0,0,10],[0,14,0,16],[1,0,1,2],[1,3,1,10],[2,0,2,2],[2,3,2,10],[3,0,3,2],[3,3,3,10],[4,0,4,2],[4,3,4,10],[5,0,5,2],[5,3,5,10],[6,0,6,2],[6,3,6,10],[7,0,7,2],[7,3,7,10],[8,0,9,2],[8,3,8,10],[9,3,9,10],[12,5,12,6],[12,7,12,8],[12,9,12,10],[13,0,13,2],[13,3,13,6],[13,7,13,10],[10,0,12,2],[10,3,10,4],[10,5,10,6],[10,7,10,8],[10,9,10,10],[11,3,11,4],[11,5,11,6],[11,7,11,8],[11,9,11,10],[12,3,12,4],[14,0,14,2],[14,3,14,6],[14,7,14,10],[15,0,16,2],[15,3,15,4],[15,5,15,6],[15,7,15,8],[15,9,15,10],[16,3,16,4],[16,5,16,6],[16,7,16,8],[16,9,16,10],[17,3,17,6],[17,7,17,10],[33,0,35,1],[33,2,35,3],[21,0,26,1],[21,2,23,3],[24,2,26,3],[27,0,32,1],[27,2,29,3],[30,2,32,3],[18,0,20,1],[18,2,20,3],[18,4,18,10],[17,0,17,2]]}
["自家用有償旅客運送者登録簿",null,null,null,null,null,null,null,null,null,null,"第２号様式（第５１条の５関係）",null,null,"目次"]
["登録番号",null,null,"北旭福第41号",null,null,null,null,null,null,null,"←福祉のシートからコピペ"]
["登録年月日",null,null,"2015-06-01"]
["更新登録年月日",null,null,"2023-05-31"]
["有効期間",null,null,"2026-05-31",null,null,null,null,null,null,null,"本省様式はなし"]
["名称",null,null,"社会福祉法人　湯らん福祉会"]
["代表者の氏名",null,null,"理事長　　松田　祐太朗"]
["住所",null,null,"旭川市永山町１５丁目１１６番地４"]
["運送の種別",null,null,"福祉有償運送"]
[null,null,null,"○"]
["事務所の名称及び位置",null,null,"名　　　　称",null,"位　　　　　置",null,"名　　　　称",null,"位　　　　　置"]
[null,null,null,"特別養護老人ホーム友愛苑",null,"天塩郡遠別町字本町６丁目１－６"]
[]
["路線又は運送の区域",null,null,"遠別町"]
["運送する旅客の範囲",null,null,"イロニホト"]
["事業者協力型自家用有償旅客運送を行うときは協力を得る一般旅客自動車運送事業者の氏名又は名称及び住所",null,null,"氏名又は名称",null,"住　　　　所",null,"氏名又は名称",null,"住　　　　所"]
[]
["備考"]
["運送の種別",null,"事務所",null,"　　自家用有償旅客運送自動車の数"]
[null,null,null,null,"寝台車","車いす車","兼用車","回転シート車","セダン等","バ　ス","合　計"]
[null,null,null,null,"（軽自動車）","（軽自動車）","（軽自動車）","（軽自動車）","（軽自動車）",null,"（軽自動車）"]
["福祉有償運送",null,"特別養護老人ホーム友愛苑"]
[null,null,null,null,null,1,1,null,null,null,2]
[null,null,null,null,null,-1,null,null,null,null,-1]
[]
[null,null,null,null,null,null,null,null,null,null,0]
[null,null,null,null,null,null,null,null,null,null,0]
[]
[null,null,null,null,null,null,null,null,null,null,0]
[null,null,null,null,null,null,null,null,null,null,0]
[]
[null,null,null,null,null,null,null,null,null,null,0]
[null,null,null,null,null,null,null,null,null,null,0]
[null,null,"合計"]
[null,null,null,null,{"$f":"SUM(E23+E26+E29+E32)","v":0},{"$f":"SUM(F23+F26+F29+F32)","v":1},1,0,0,0,{"$f":"SUM(E35:J35)","v":2}]
[null,null,null,null,{"$f":"SUM(E24+E27+E30+E33)","v":0},{"$f":"SUM(F24+F27+F30+F33)","v":-1},{"$f":"SUM(G24+G27+G30+G33)","v":0},{"$f":"SUM(H24+H27+H30+H33)","v":0},{"$f":"SUM(I24+I27+I30+I33)","v":0},null,{"$f":"SUM(E36:I36)","v":-1}]

{"sheet":"北旭福第42号","index":37,"n_rows":36,"n_cols":15,"rows_kept":36,"cut":false,"hidden":false,"merged":[[0,0,0,10],[0,14,0,16],[1,0,1,2],[1,3,1,10],[2,0,2,2],[2,3,2,10],[3,0,3,2],[3,3,3,10],[4,0,4,2],[4,3,4,10],[5,0,5,2],[5,3,5,10],[6,0,6,2],[6,3,6,10],[7,0,7,2],[7,3,7,10],[8,0,9,2],[8,3,8,10],[9,3,9,10],[12,5,12,6],[12,7,12,8],[12,9,12,10],[13,0,13,2],[13,3,13,6],[13,7,13,10],[10,0,12,2],[10,3,10,4],[10,5,10,6],[10,7,10,8],[10,9,10,10],[11,3,11,4],[11,5,11,6],[11,7,11,8],[11,9,11,10],[12,3,12,4],[14,0,14,2],[14,3,14,6],[14,7,14,10],[15,0,16,2],[15,3,15,4],[15,5,15,6],[15,7,15,8],[15,9,15,10],[16,3,16,4],[16,5,16,6],[16,7,16,8],[16,9,16,10],[17,3,17,6],[17,7,17,10],[33,0,35,1],[33,2,35,3],[21,0,26,1],[21,2,23,3],[24,2,26,3],[27,0,32,1],[27,2,29,3],[30,2,32,3],[18,0,20,1],[18,2,20,3],[18,4,18,10],[17,0,17,2]]}
["自家用有償旅客運送者登録簿",null,null,null,null,null,null,null,null,null,null,"第２号様式（第５１条の５関係）",null,null,"目次"]
["登録番号",null,null,"北旭福第42号",null,null,null,null,null,null,null,"←福祉のシートからコピペ"]
["登録年月日",null,null,"2016-08-15"]
["更新登録年月日",null,null,"2021-08-31"]
["有効期間",null,null,"2024-08-31",null,null,null,null,null,null,null,"本省様式はなし"]
["名称",null,null,"社会福祉法人　あかしあ労働福祉センター"]
["代表者の氏名",null,null,"理事長　　北村　典幸"]
["住所",null,null,"旭川市末広２条１３丁目６番１７号"]
["運送の種別",null,null,"福祉有償運送"]
[null,null,null,"○"]
["事務所の名称及び位置",null,null,"名　　　　称",null,"位　　　　　置",null,"名　　　　称",null,"位　　　　　置"]
[null,null,null,"社会福祉法人あかしあ労働福祉センター",null,"旭川市末広２条１３丁目７番１１号"]
[]
["路線又は運送の区域",null,null,"旭川市"]
["運送する旅客の範囲",null,null,"イロハ　　　ト"]
["事業者協力型自家用有償旅客運送を行うときは協力を得る一般旅客自動車運送事業者の氏名又は名称及び住所",null,null,"氏名又は名称",null,"住　　　　所",null,"氏名又は名称",null,"住　　　　所"]
[]
["備考"]
["運送の種別",null,"事務所",null,"　　自家用有償旅客運送自動車の数"]
[null,null,null,null,"寝台車","車いす車","兼用車","回転シート車","セダン等","バ　ス","合　計"]
[null,null,null,null,"（軽自動車）","（軽自動車）","（軽自動車）","（軽自動車）","（軽自動車）",null,"（軽自動車）"]
["福祉有償運送",null,"社会福祉法人あかしあ労働福祉センター"]
[null,null,null,null,null,2,null,null,2,null,4]
[null,null,null,null,null,-1,null,null,-2,null,-3]
[]
[null,null,null,null,null,null,null,null,null,null,0]
[null,null,null,null,null,null,null,null,null,null,0]
[]
[null,null,null,null,null,null,null,null,null,null,0]
[null,null,null,null,null,null,null,null,null,null,0]
[]
[null,null,null,null,null,null,null,null,null,null,0]
[null,null,null,null,null,null,null,null,null,null,0]
[null,null,"合計"]
[null,null,null,null,{"$f":"SUM(E23+E26+E29+E32)","v":0},{"$f":"SUM(F23+F26+F29+F32)","v":2},0,0,2,0,{"$f":"SUM(E35:J35)","v":4}]
[null,null,null,null,{"$f":"SUM(E24+E27+E30+E33)","v":0},{"$f":"SUM(F24+F27+F30+F33)","v":-1},{"$f":"SUM(G24+G27+G30+G33)","v":0},{"$f":"SUM(H24+H27+H30+H33)","v":0},{"$f":"SUM(I24+I27+I30+I33)","v":-2},null,{"$f":"SUM(E36:I36)","v":-3}]

{"sheet":"北旭福第43号","index":38,"n_rows":36,"n_cols":15,"rows_kept":36,"cut":false,"hidden":false,"merged":[[0,0,0,10],[0,14,0,16],[1,0,1,2],[1,3,1,10],[2,0,2,2],[2,3,2,10],[3,0,3,2],[3,3,3,10],[4,0,4,2],[4,3,4,10],[5,0,5,2],[5,3,5,10],[6,0,6,2],[6,3,6,10],[7,0,7,2],[7,3,7,10],[8,0,9,2],[8,3,8,10],[9,3,9,10],[12,5,12,6],[12,7,12,8],[12,9,12,10],[13,0,13,2],[13,3,13,6],[13,7,13,10],[10,0,12,2],[10,3,10,4],[10,5,10,6],[10,7,10,8],[10,9,10,10],[11,3,11,4],[11,5,11,6],[11,7,11,8],[11,9,11,10],[12,3,12,4],[14,0,14,2],[14,3,14,6],[14,7,14,10],[15,0,16,2],[15,3,15,4],[15,5,15,6],[15,7,15,8],[15,9,15,10],[16,3,16,4],[16,5,16,6],[16,7,16,8],[16,9,16,10],[17,3,17,6],[17,7,17,10],[33,0,35,1],[33,2,35,3],[21,0,26,1],[21,2,23,3],[24,2,26,3],[27,0,32,1],[27,2,29,3],[30,2,32,3],[18,0,20,1],[18,2,20,3],[18,4,18,10],[17,0,17,2]]}
["自家用有償旅客運送者登録簿",null,null,null,null,null,null,null,null,null,null,"第２号様式（第５１条の５関係）",null,null,"目次"]
["登録番号",null,null,"北旭福第43号",null,null,null,null,null,null,null,"←福祉のシートからコピペ"]
["登録年月日",null,null,"2022-09-28"]
["更新登録年月日"]
["有効期間",null,null,"2024-09-30",null,null,null,null,null,null,null,"本省様式はなし"]
["名称",null,null,"社会福祉法人　北海道療育園"]
["代表者の氏名",null,null,"理事長　丸山　静男"]
["住所",null,null,"旭川市春光台４条１０丁目"]
["運送の種別",null,null,"福祉有償運送"]
[null,null,null,"○"]
["事務所の名称及び位置",null,null,"名　　　　称",null,"位　　　　　置",null,"名　　　　称",null,"位　　　　　置"]
[null,null,null,"社会福祉法人　北海道療育園",null,"旭川市春光台４条１０丁目"]
[]
["路線又は運送の区域",null,null,"旭川市"]
["運送する旅客の範囲",null,null,"イ　ハ"]
["事業者協力型自家用有償旅客運送を行うときは協力を得る一般旅客自動車運送事業者の氏名又は名称及び住所",null,null,"氏名又は名称",null,"住　　　　所",null,"氏名又は名称",null,"住　　　　所"]
[]
["備考"]
["運送の種別",null,"事務所",null,"　　自家用有償旅客運送自動車の数"]
[null,null,null,null,"寝台車","車いす車","兼用車","回転シート車","セダン等","バ　ス","合　計"]
[null,null,null,null,"（軽自動車）","（軽自動車）","（軽自動車）","（軽自動車）","（軽自動車）",null,"（軽自動車）"]
["福祉有償運送",null,"社会福祉法人　北海道療育園"]
[null,null,null,null,null,4,null,null,null,null,4]
[null,null,null,null,null,null,null,null,null,null,0]
[]
[null,null,null,null,null,null,null,null,null,null,0]
[null,null,null,null,null,null,null,null,null,null,0]
[]
[null,null,null,null,null,null,null,null,null,null,0]
[null,null,null,null,null,null,null,null,null,null,0]
[]
[null,null,null,null,null,null,null,null,null,null,0]
[null,null,null,null,null,null,null,null,null,null,0]
[null,null,"合計"]
[null,null,null,null,{"$f":"SUM(E23+E26+E29+E32)","v":0},{"$f":"SUM(F23+F26+F29+F32)","v":4},0,0,0,0,{"$f":"SUM(E35:J35)","v":4}]
[null,null,null,null,{"$f":"SUM(E24+E27+E30+E33)","v":0},{"$f":"SUM(F24+F27+F30+F33)","v":0},{"$f":"SUM(G24+G27+G30+G33)","v":0},{"$f":"SUM(H24+H27+H30+H33)","v":0},{"$f":"SUM(I24+I27+I30+I33)","v":0},null,{"$f":"SUM(E36:I36)","v":0}]

{"sheet":"北旭福第44号","index":39,"n_rows":36,"n_cols":15,"rows_kept":36,"cut":false,"hidden":false,"merged":[[17,3,17,6],[17,7,17,10],[33,0,35,1],[33,2,35,3],[21,0,26,1],[21,2,23,3],[24,2,26,3],[27,0,32,1],[27,2,29,3],[30,2,32,3],[18,0,20,1],[18,2,20,3],[18,4,18,10],[17,0,17,2],[14,0,14,2],[14,3,14,6],[14,7,14,10],[15,0,16,2],[15,3,15,4],[15,5,15,6],[15,7,15,8],[15,9,15,10],[16,3,16,4],[16,5,16,6],[16,7,16,8],[16,9,16,10],[12,5,12,6],[12,7,12,8],[12,9,12,10],[13,0,13,2],[13,3,13,6],[13,7,13,10],[10,0,12,2],[10,3,10,4],[10,5,10,6],[10,7,10,8],[10,9,10,10],[11,3,11,4],[11,5,11,6],[11,7,11,8],[11,9,11,10],[12,3,12,4],[6,0,6,2],[6,3,6,10],[7,0,7,2],[7,3,7,10],[8,0,9,2],[8,3,8,10],[9,3,9,10],[3,0,3,2],[3,3,3,10],[4,0,4,2],[4,3,4,10],[5,0,5,2],[5,3,5,10],[0,0,0,10],[0,14,0,16],[1,0,1,2],[1,3,1,10],[2,0,2,2],[2,3,2,10]]}
["自家用有償旅客運送者登録簿",null,null,null,null,null,null,null,null,null,null,"第２号様式（第５１条の５関係）",null,null,"目次"]
["登録番号",null,null,"北旭福第44号",null,null,null,null,null,null,null,"←福祉のシートからコピペ"]
["登録年月日",null,null,"2024-03-12"]
["更新登録年月日"]
["有効期間",null,null,"2026-03-31",null,null,null,null,null,null,null,"本省様式はなし"]
["名称",null,null,"社会福祉法人　浜頓別町社会福祉協議会"]
["代表者の氏名",null,null,"会長　横山　豊広"]
["住所",null,null,"北海道枝幸郡浜頓別町中央南１番地"]
["運送の種別",null,null,"福祉有償運送"]
[null,null,null,"○"]
["事務所の名称及び位置",null,null,"名　　　　称",null,"位　　　　　置",null,"名　　　　称",null,"位　　　　　置"]
[null,null,null,"浜頓別町役場庁舎内",null,"枝幸郡浜頓別町中央南１番地"]
[]
["路線又は運送の区域",null,null,"浜頓別町"]
["運送する旅客の範囲",null,null,"イロハニホト"]
["事業者協力型自家用有償旅客運送を行うときは協力を得る一般旅客自動車運送事業者の氏名又は名称及び住所",null,null,"氏名又は名称",null,"住　　　　所",null,"氏名又は名称",null,"住　　　　所"]
[]
["備考"]
["運送の種別",null,"事務所",null,"　　自家用有償旅客運送自動車の数"]
[null,null,null,null,"寝台車","車いす車","兼用車","回転シート車","セダン等","バ　ス","合　計"]
[null,null,null,null,"（軽自動車）","（軽自動車）","（軽自動車）","（軽自動車）","（軽自動車）",null,"（軽自動車）"]
["福祉有償運送",null,"浜頓別町役場庁舎内"]
[null,null,null,null,null,2,null,null,1,null,3]
[null,null,null,null,null,null,null,null,null,null,0]
[]
[null,null,null,null,null,null,null,null,null,null,0]
[null,null,null,null,null,null,null,null,null,null,0]
[]
[null,null,null,null,null,null,null,null,null,null,0]
[null,null,null,null,null,null,null,null,null,null,0]
[]
[null,null,null,null,null,null,null,null,null,null,0]
[null,null,null,null,null,null,null,null,null,null,0]
[null,null,"合計"]
[null,null,null,null,{"$f":"SUM(E23+E26+E29+E32)","v":0},{"$f":"SUM(F23+F26+F29+F32)","v":2},0,0,1,0,{"$f":"SUM(E35:J35)","v":3}]
[null,null,null,null,{"$f":"SUM(E24+E27+E30+E33)","v":0},{"$f":"SUM(F24+F27+F30+F33)","v":0},{"$f":"SUM(G24+G27+G30+G33)","v":0},{"$f":"SUM(H24+H27+H30+H33)","v":0},{"$f":"SUM(I24+I27+I30+I33)","v":0},null,{"$f":"SUM(E36:I36)","v":0}]